Workbook

Sheet Dash-1
C8: Specify your proposed Tax Input Parameters Here: | O8: Share to Overall Tax Burden by Institutional Sector
D10: Proposed Consumption Tax Rate: | I10: 0.1 | O10: Pre-tax Reform Scenario
D13: Proposed Tax Income Brackets:
E15: Income Brackets | H15: Tax Rate
E16: 0 | F16: 4160 | H16: 0
E17: =F16+0.01 -> 4160.01 | F17: 10400 | H17: 0.08
E18: =F17+0.01 -> 10400.01 | F18: 20800 | H18: 0.12 | O18: Reform Scenario
E19: above | F19: =F18 -> 20800 | H19: 0.16
D21: Business Profits Tax Rate | I21: 0.2
D23: Business Profit Tax Threshold | I23: 100000
D25: Are Local Governments MICT-registered? | I25: Yes
D27: =IF(I25="Yes","","Effective Consumption Tax Rate") ->  | I27: =IF(I25="Yes",I10,(1-Summary!G38-Summary!G39)*I10) -> 0.1
C31: National Government Revenue Collection (in million US Dollars) | O31: Impact of Wage Tax Reductions on Real Household Incomes4/
F33: FY22 Actual | I33: Reform | K33: Difference
C34: Wages Tax | F34: =TaxEst!C11*Factor -> 16.7130003 | I34: =TaxEst!D11*Factor -> 11.16799325 | K34: =I34-F34 -> -5.545007044
C35: Marshall Islands Consumption Tax | F35: 0 | I35: =TaxEst!D23*Factor -> 12.23010405 | K35: =I35-F35 -> 12.23010405
C36: Business Profit Tax | F36: 0 | I36: =TaxEst!D14*Factor -> 7.472122527 | K36: =I36-F36 -> 7.472122527
C37: Gross Revenue Tax | F37: =(TaxEst!C13+TaxEst!C21)*Factor -> 7.148000054 | I37: =TaxEst!D13*Factor -> 0.2969432735 | K37: -6.851056781
C38: General Import Taxes1/ | F38: =TaxEst!C17*Factor -> 5.146958434 | I38: 0 | K38: -5.146958434
C39: Other Import Taxes | F39: =(TaxEst!C20+TaxEst!C18+TaxEst!C19)*Factor -> 4.958041406 | I39: 0 | K39: -4.958041406
C40: Excise Taxes | F40: =TaxEst!C22*Factor -> 0 | I40: =TaxEst!D22*Factor -> 4.958041406 | K40: 4.958041406
C41: Miscellaneous Taxes2/ | F41: =TaxEst!C29*Factor -> 1.010000005 | I41: =TaxEst!D29*Factor -> 1.010000005
C42: Transfers to Local Governments | F42: =TaxEst!C24 -> 0 | I42: =TaxEst!D24*Factor -> -4.280536418 | K42: -4.280536418
C43: Total Collection | F43: =SUM(F34:G41) -> 34.9760002 | I43: =SUM(I34:I42) -> 32.8546681 | K43: -2.1213321
X44: ="On average, real incomes of Marshallese wage earners are estimated to "&IF(AVERAGE(Wage!P39:P9926)>0,"increase by ","decrease by ")&TEXT(ABS(AVERAGE(Wage!P39:P9926)),"0.0%")&" due to the tax reform." -> On average, real incomes of Marshallese wage earners are estimated to increase by 4.2% due to the tax reform.
C47: MALGOV+KALGOV Revenue Collection (in million US Dollars)
F49: FY22 Actual | I49: Reform | K49: Difference
C50: Sales Tax | F50: =-SUM(Summary!G25:G26) -> 3.99936439 | I50: =IF('Dash-1'!I25="Yes",0,F50) -> 0 | K50: =I50-F50 -> -3.99936439
C51: MICT Revenue Shares | F51: 0 | I51: =IF(I25="Yes",SUM(Summary!G38:G39)*Summary!G11,0) -> 4.280536418 | K51: =I51-F51 -> 4.280536418
C52: MICT Payments | F52: 0 | I52: =IF('Dash-1'!I25="Yes",0,-Summary!O15) -> 0 | K52: =I52-F52 -> 0
C53: Total Collection | F53: =SUM(F50:G52) -> 3.99936439 | I53: =SUM(I50:I52) -> 4.280536418 | K53: =I53-F53 -> 0.2811720276
C55: General Government (National+Local) | F55: =F53+F43 -> 38.97536459 | I55: =SUM(I53+I43) -> 37.13520452 | K55: =SUM(K53,K43) -> -1.840160072
B58: Notes:
C59: 1/ Includes duties levied on foodstuff and general imports
C60: 2/ Includes immovable property taxes and non-resident business gross revenue tax
C61: 3/ Includes tax burden of national government, NGOs, and tourists
C62: 4/ Estimates are based on annual earnings derived from Social Security data, regardless of whether the taxpayer worked for only part of or the entire fiscal year.

Sheet TaxEst
B2: RMI Tax Reform Revenue Estimates (in US Dollars)
B4: A. National Government Revenues
C5: FY2022
C6: Actual Revenue | D6: User-Choice Scenario | E6: Tax Reform Difference
B7: Income Tax- Wages and Salaries Taxation
B8: Income Tax- Wages and Salaries Tax (Marshallese employees on Marshallese tax rates) | C8: =Data!G62*1000000 -> 11649000.17 | D8: =Wage!L30 -> 7209208.332 | E8: =D8-C8 -> -4439791.836
B9: Income Tax- Wages and Salaries Tax (Expatriates on Marshallese tax rates) | C9: =Wage!J34 -> 3259308.175 | D9: =Wage!L34 -> 2154092.967 | E9: =D9-C9 -> -1105215.209
B10: Income Tax- Wages and Salaries Tax (Expatriates on reduced 5 percent tax rates in Kwajalein) | C10: =(Data!G63*1000000)-C9 -> 1804691.955 | D10: =C10 -> 1804691.955 | E10: =D10-C10 -> 0
B11: sub-total | C11: =SUM(C8:C10) -> 16713000.3 | D11: =SUM(D8:D10) -> 11167993.25 | E11: -5545007.044
B12: Income Tax- Business Taxation
B13: Gross Revenue Tax (GRT) | C13: =Data!G51*1000000 -> 7065000.057 | D13: ='Profits Tax'!S18 -> 296943.2735 | E13: =D13-C13 -> -6768056.784
B14: Business Profit Tax | C14: 0 | D14: ='Profits Tax'!S12 -> 7472122.527 | E14: =D14-C14 -> 7472122.527
B15: sub-total | C15: =SUM(C13:C14) -> 7065000.057 | D15: =SUM(D13:D14) -> 7769065.8 | E15: 704065.7432
B16: Indirect Taxes
B17: General Import Tax (food and non-food) | C17: =(Data!G56+Data!G57)*1000000 -> 5146958.434 | D17: 0 | E17: =D17-C17 -> -5146958.434
B18: Fuel Tax | C18: =Data!G60*1000000 -> 591000.0205 | E18: -591000.0205
B19: Alcohol and Cigarrete Taxes | C19: =Data!G58*1000000 -> 1465000.033 | E19: -1465000.033
B20: Miscellaneous Import Taxes | C20: =Data!G59*1000000 -> 2902041.352 | E20: -2902041.352
B21: Hotel and Resort Tax | C21: =Data!G53*1000000 -> 82999.99684 | D21: 0 | E21: -82999.99684
B22: Excise Taxes | C22: 0 | D22: =SUM(C18:C20) -> 4958041.406 | E22: 4958041.406
B23: Marshall Islands Consumption Tax (MICT) | C23: 0 | D23: =IF('Dash-1'!I25="Yes",Summary!G11*1000000,Summary!O11/Factor) -> 12230104.05 | E23: 12230104.05
B24: Transfers to Local Governments | D24: =IF('Dash-1'!I25="Yes",-(SUM(Summary!F38:F39))*D23,0) -> -4280536.418 | E24: -4280536.418
B25: sub-total | C25: =SUM(C17:C23) -> 10187999.84 | D25: =SUM(D17:D24) -> 12907609.04 | E25: =SUM(E17:E24) -> 2719609.201
B26: Other Taxes
B27: Immovable Property Tax | C27: =1000000*0.112000003457069 -> 112000.0035 | D27: =C27 -> 112000.0035 | E27: =D27-C27 -> 0
B28: Business Non-Resident Gross Revenue Tax | C28: =Data!G52*1000000 -> 898000.0019 | D28: =C28 -> 898000.0019 | E28: =D28-C28 -> 0
B29: sub-total | C29: =SUM(C27:C28) -> 1010000.005 | D29: =SUM(D27:D28) -> 1010000.005 | E29: =SUM(E27:E28) -> 0
B30: Total Tax and Customs Revenue | C30: =SUM(C29,C25,C15,C11) -> 34976000.2 | D30: =SUM(D29,D25,D15,D11) -> 32854668.1 | E30: =D30-C30 -> -2121332.1
B31: ="Note: Assumes that Local Governments are "&IF('Dash-1'!I25="Yes","MICT-registered.","MICT non-registered.") -> Note: Assumes that Local Governments are MICT-registered.
B33: B. MALGOV and KALGOV Revenues
C35: Actual Revenue | D35: User-Choice Scenario | E35: Tax Reform Difference
B36: Sales Taxes
B37: Majuro Atoll Local Government | C37: =-Summary!G25/Factor -> 2834449.43 | D37: =IF('Dash-1'!I25="Yes",0,C37) -> 0 | E37: =D37-C37 -> -2834449.43
B38: Kwajalein Atoll Local Government | C38: =-Summary!G26/Factor -> 1164914.96 | D38: =IF('Dash-1'!I25="Yes",0,C38) -> 0 | E38: =D38-C38 -> -1164914.96
B39: sub-total | C39: =SUM(C37:C38) -> 3999364.39 | D39: =SUM(D37:D38) -> 0 | E39: =D39-$C39 -> -3999364.39
B40: MICT Revenue Shares
B41: Majuro Atoll Local Government | C41: =0 -> 0 | D41: =IF('Dash-1'!$I$25="Yes",$D$23*Summary!G38,0) -> 3057526.013 | E41: =D41-C41 -> 3057526.013
B42: Kwajalein Atoll Local Government | C42: =0 -> 0 | D42: =IF('Dash-1'!$I$25="Yes",$D$23*Summary!G39,0) -> 1223010.405 | E42: =D42-C42 -> 1223010.405
B43: sub-total | C43: =SUM(C41:C42) -> 0 | D43: =SUM(D41:D42) -> 4280536.418 | E43: =D43-$C43 -> 4280536.418
B44: MICT Payments
B45: MICT Payments on Local Government Purchases | C45: 0 | D45: =IF('Dash-1'!$I$25="Yes",-Summary!G15/Factor,-Summary!O15/Factor) -> 0 | E45: =D45-C45 -> 0
B46: sub-total | C46: =SUM(C45) -> 0 | D46: =SUM(D45) -> 0 | E46: =D46-$C46 -> 0
B47: Total Revenues | C47: =C46+C43+C39 -> 3999364.39 | D47: =D46+D43+D39 -> 4280536.418 | E47: =D47-C47 -> 281172.0276
B48: ="Note: Assumes that Local Governments are "&IF('Dash-1'!I25="Yes","MICT-registered.","MICT non-registered.") -> Note: Assumes that Local Governments are MICT-registered.

Sheet WageImp
C3: Impact of Wage Tax Reductions on Real Household Incomes
E5: Decile 1 | F5: Decile 2 | G5: Decile 3 | H5: Decile 4 | I5: Decile 5 | J5: Decile 6 | K5: Decile 7 | L5: Decile 8 | M5: Decile 9 | N5: Decile 10
D6: Annual Gross Wage | E6: =Wage!S13 -> 849.7 | F6: =Wage!T13 -> 1986.554 | G6: =Wage!U13 -> 3600 | H6: =Wage!V13 -> 5760 | I6: =Wage!W13 -> 7514.85 | J6: =Wage!X13 -> 9776.734 | K6: =Wage!Y13 -> 12946.764 | L6: =Wage!Z13 -> 17172.904 | M6: =Wage!AA13 -> 24002.378 | N6: =Wage!AB13 -> 181246.68
D7: Nominal Gain/Loss | E7: =Wage!S18 -> 0 | F7: =Wage!T18 -> 34.12432 | G7: =Wage!U18 -> 163.2 | H7: =Wage!V18 -> 332.8008 | I7: =Wage!W18 -> 332.8008 | J7: =Wage!X18 -> 332.8008 | K7: =Wage!Y18 -> 536.54232 | L7: =Wage!Z18 -> 874.63352 | M7: =Wage!AA18 -> 1292.89512 | N7: =Wage!AB18 -> 7582.6672
D8: Real Gain/loss | E8: =Wage!S19 -> 10.73586144 | F8: =Wage!T19 -> 61.94530011 | G8: =Wage!U19 -> 196.4492701 | H8: =Wage!V19 -> 372.2438325 | I8: =Wage!W19 -> 330.4663473 | J8: =Wage!X19 -> 310.4746927 | K8: =Wage!Y19 -> 504.4191656 | L8: =Wage!Z19 -> 819.5467682 | M8: =Wage!AA19 -> 1137.089543 | N8: =Wage!AB19 -> 6198.500221
D9: % | E9: =Wage!S20 -> 0.0126348846 | F9: =Wage!T20 -> 0.03172728869 | G9: =Wage!U20 -> 0.05716051852 | H9: =Wage!V20 -> 0.07024528844 | I9: =Wage!W20 -> 0.04779903144 | J9: =Wage!X20 -> 0.03451791693 | K9: =Wage!Y20 -> 0.04346413556 | L9: =Wage!Z20 -> 0.05468631347 | M9: =Wage!AA20 -> 0.055603666 | N9: =Wage!AB20 -> 0.04238425683
D10: Bi-weekly Net Gain | E10: =E8/26 -> 0.4129177478 | F10: =F8/26 -> 2.382511543 | G10: 7.555741156 | H10: 14.31707048 | I10: 12.71024413 | J10: 11.94133433 | K10: 19.40073714 | L10: 31.52102955 | M10: 43.73421318 | N10: 238.4038546
C12: Impact of the Tax Reforms on the Price of Each Decile's Consumption Basket
E14: =CPI!Y15 -> -0.01247723616 | F14: =CPI!Z15 -> -0.01381122204 | G14: =CPI!AA15 -> -0.009151386978 | H14: =CPI!AB15 -> -0.006954672155 | I14: =CPI!AC15 -> 0.000322254468 | J14: =CPI!AD15 -> 0.002399348676 | K14: =CPI!AE15 -> 0.002652651063 | L14: =CPI!AF15 -> 0.003485208462 | M14: =CPI!AG15 -> 0.007217567766 | N14: =CPI!AH15 -> 0.009079848296

Sheet TaxLaws
B3: Income Tax Act 1989 | H3: Import Duties Act 1989 | K3: Last Amendment: 2019 (see PL 2019-113)
C6: Tax on Wages and Salaries | I6: Exempt Goods from Import Duty
D7: Income Bracket | E7: Current Tax Rate | I7: 1 | J7: imported goods by passengers or vessel/aircraft crew:
D8: $0 - $1,560 | E8: 0 | J8: not for resale up to the value of $3000
D9: $1,561- $5,200 | E9: 8% with the first $1,560 exempted from tax if income is no more than $5,200 | J9: not more than 300 ciggarettes, 70 cigars or 8 oz. of smoking tobacco, for personal consumption and not for resale
D10: $5,201 - $10,400 | E10: 0.08 | J10: not more than 2 liters of distilled alcoholc beverages for conumption and not for resale
D11: > $10,400 | E11: 0.12 | J11: gifts not exceeding $300 in value.
I12: 2 | J12: imported goods required for the use of passengers or crews of the vessel or aircraft while on board
D13: US Contractor personnel is levied a 5 percent tax on all wages and salaries received | I13: 3 | J13: goods in any one consignment whose duties do not exceed $20
I14: 4 | J14: goods imported by churches
C15: Tax on Gross Revenue | I15: 5 | J15: unmerchantable commercial travelers samples
E16: Tax Rate | I16: 6 | J16: general aviation gas, lube oil, and products, sealants, parts, etc. used for repairing and overhauling of aircrafts, engines and propellers.
D17: Turnover < $10,000 | E17: fixed tax of $80/year | I17: 7 | J17: lube oil and fuel oil imported by, or on behalf or sold to KAJUR for generation
D18: Turnover > $10,000 | E18: 3% of the gross revenues | I18: 8 | J18: all types of fuel imported by MEC for power generation and commercial re-sale
I19: 9 | J19: fishing equipment imported to the RMI for the use on licensed fishing vessels
C20: Tax on Immovable property | I20: 10 | J20: renewable energy equipments for the purposes of power generation
D21: There is a 3 percent tax on all gross income from immovable property leased, exclusive if buildings and other improvements on land by the lessee of such property. | I21: 11 | J21: energy efficient equipment (with Energy Star label)
I22: 12 | J22: renewable energy vehicles
C23: Non-resident Income Tax
D24: 10 percent income tax on the gross income earned by every non-resident persons in respect of services provided | I24: Zero-Rated Items
D25: Persons/organizations engaged by foreign missions and embassies of the RMI and offices of MFA outside RMI are exempted | I25: 1 | J25: imported inputs for the use of local manufacturing industries
J26: Note: input supplies refer to supplies used for manufacturing of local products or value addition invluding packaging and labelling
C27: Tax Incentives | J27: local manufacturing are industries involved in manufacturing, processing or calue addition of loal productsfor domestic consumption
D28: Tax Holidays. Any new incorporated or unincorporated business, with a minimum investment of $1,000,000 and/or which provides employment and pays wages in a sum over $150,000 per annum to local Marshallese citizens, shall be exempt from GRT for 5 years at the start date of the business. | I28: Treatment of Re-exports
J29: Re-exporters are entitled to a refund of the import duty paid on the goods.
C30: Exempt Persons and Organizations
D31: Government of RMI or any Department thereof; | I31: Goods in transit
D32: Sales of Electricity, Water, Sewer, or Telecom Services by Public Utility Companies; | J32: Goods in transit are not subject to import duty
D33: Domestic Flights and operations of any govt owned corporation providing air transport
D34: Any government owned copra processing corporation | I34: Notes on Import Duties
D35: Religious, charitable, non-profit educational organizations, associations or socities | J35: Specific taxes are paid on quantity, weight or volume
D36: Cooperative Associations organized by an act of the Nitijela | J36: Ad valorem tax shall be paid on CIF. However, goods imported on aircraft will be taxed based on the FOB value
C38: Hotel Tax
D39: 8 percent tax on the daily room rate on hotel and resort facilities in the RMI | I39: Import Tax Rates
D40: Note: Local Governments can levy their own hotel tax | J40: Product | K40: Current Rate
J41: General Imports | K41: 0.08
C42: Recent Developments | J42: Food Stuffs | K42: 0.05
C43: PL 2022- 44 [Amendment to the tax law] | J43: Gasoline | K43: $0.25 per gal
D44: All references to "quarters" have been changed to "months" | J44: Jet A-1 | K44: $0.08 per gal
D45: Notwithstanding the said change, all businesses who have been filing GRT returns on time and has a current stading in making consecutive payments of tax in GR, may submit a request to the SoF for an option to retain quarterly payment status. | J45: Diesel | K45: $0.08 per gal
J46: Motor Vehicles (whose value can be determined in the Kelly's Blue Book) | K46: 15% of value stated in the Kelly’s Blue Book or of accompanying invoice, whichever is higher, provided that in no case shall the duty assessed be less than $1,500.00 and the mileage shall not be more than 100,000 miles or 160934.4 km
J47: Motor Vehicles (whose value cannot be determined in the Kelly’s Blue Book | K47: New Motor Vehicles - $2,500.00 Used Motor Vehicles - $1,500.00
J48: Public Transport | K48: 0.05
C49: Complete Tax Legislation | J49: Tobacco, and Cigarettes | K49: $1.00 per pack of 20 rolls
J50: Cigars | K50: 1.51
J51: Other tobacco (Copenhagen) | K51: $2.75 per 34.2 grams or 1.2 oz
J52: Beer | K52: $0.35 cents per can or 12 oz. unit
J53: Wine | K53: $2.75 per gallon
J54: Spirits | K54: $15.00 per gallon
J55: Mixed drinks | K55: 0.26
J56: Softdrinks- carbonated beverages | K56: 0.01666 per oz
J57: Non-carbonated and artificially flavored beverages | K57: 0.1

Sheet  (hidden)

Sheet Summary (hidden)
A2: Tax Reform Fact Sheet
B4: Case A: Local Governments are MICT-registered and share revenue with National Government | K4: Case B: Local Governments are MICT non-registered
F6: Revenue Neutral | G6: User Choice | N6: =F6 -> Revenue Neutral | O6: =G6 -> User Choice
C7: ="VAT at "&VAT!G2*100&"%" -> VAT at 10% | D7: ="VAT at "&VAT!H2*100&"%" -> VAT at 12.5% | E7: ="VAT at "&VAT!I2*100&"%" -> VAT at 15% | F7: ="VAT at "&ROUND(VAT!J2*100,1)&"%" -> VAT at 12.7% | G7: ="VAT at "&ROUND(IF('Dash-1'!I25="Yes",'Dash-1'!I10,'Dash-1'!I27)*100,1)&"%" -> VAT at 10% | K7: =C7 -> VAT at 10% | L7: =D7 -> VAT at 12.5% | M7: =E7 -> VAT at 15% | N7: =F7 -> VAT at 12.7% | O7: =G7 -> VAT at 10%
C9: Millions | D9: Millions | E9: Millions | F9: Millions | G9: Millions | K9: Millions | L9: Millions | M9: Millions | N9: Millions | O9: Millions
B10: Gains
B11: MICT Collections | C11: =SUM(C12:C15) -> 12.23010405 | D11: 15.28763006 | E11: 18.34515608 | F11: 15.4937709 | G11: =SUM(G12:G15) -> 12.23010405 | K11: =SUM(K12:K15) -> 13.11667338 | L11: 16.39584173 | M11: 19.67501007 | N11: 16.61692586 | O11: =SUM(O12:O15) -> 13.11667338
B12: Households | C12: =VAT!G13+VAT!G16 -> 11.71835538 | D12: =VAT!H13+VAT!H16 -> 14.64794423 | E12: =VAT!I13+VAT!I16 -> 17.57753307 | F12: =VAT!J13+VAT!J16 -> 14.84545944 | G12: =VAT!F13+VAT!F16 -> 11.71835538 | K12: =C12 -> 11.71835538 | L12: =D12 -> 14.64794423 | M12: =E12 -> 17.57753307 | N12: =F12 -> 14.84545944 | O12: =G12 -> 11.71835538
B13: Tourists | C13: =VAT!G31 -> 0.1556069946 | D13: =VAT!H31 -> 0.1945087433 | E13: =VAT!I31 -> 0.233410492 | F13: =VAT!J31 -> 0.1971315301 | G13: =VAT!F31 -> 0.1556069946 | K13: =C13 -> 0.1556069946 | L13: 0.1945087433 | M13: 0.233410492 | N13: 0.1971315301 | O13: 0.1556069946
B14: Import (consumed by non MICT registered taxpayers) | C14: =VAT!G35 -> 0.3561416739 | D14: =VAT!H35 -> 0.4451770924 | E14: =VAT!I35 -> 0.5342125108 | F14: =VAT!J35 -> 0.451179931 | G14: =VAT!F35 -> 0.3561416739 | K14: 0.3561416739 | L14: 0.4451770924 | M14: 0.5342125108 | N14: 0.451179931 | O14: 0.3561416739
B15: Local Governments | C15: =0 -> 0 | D15: =0 -> 0 | E15: =0 -> 0 | F15: =0 -> 0 | G15: =0 -> 0 | K15: =VAT!G9 -> 0.886569333 | L15: =VAT!H9 -> 1.108211666 | M15: =VAT!I9 -> 1.329854 | N15: =VAT!J9 -> 1.123154968 | O15: =VAT!F9 -> 0.886569333
B16: Net Profit Tax | C16: ='Profits Tax'!$S12/1000000 -> 7.472122527 | D16: ='Profits Tax'!$S12/1000000 -> 7.472122527 | E16: ='Profits Tax'!$S12/1000000 -> 7.472122527 | F16: ='Profits Tax'!$S12/1000000 -> 7.472122527 | G16: ='Profits Tax'!$S12/1000000 -> 7.472122527 | K16: =C16 -> 7.472122527 | L16: =D16 -> 7.472122527 | M16: 7.472122527 | N16: 7.472122527 | O16: 7.472122527
B17: ="GRT at "&'Profits Tax'!S17*100&" percent for businesses with turnover between $10,000 and "&TEXT('Dash-1'!I23,"$0,000") -> GRT at 3 percent for businesses with turnover between $10,000 and $100,000 | C17: ='Profits Tax'!$S18/1000000 -> 0.2969432735 | D17: ='Profits Tax'!$S18/1000000 -> 0.2969432735 | E17: ='Profits Tax'!$S18/1000000 -> 0.2969432735 | F17: ='Profits Tax'!$S18/1000000 -> 0.2969432735 | G17: ='Profits Tax'!$S18/1000000 -> 0.2969432735 | K17: =C17 -> 0.2969432735 | L17: 0.2969432735 | M17: 0.2969432735 | N17: 0.2969432735 | O17: 0.2969432735
B19: Losses
B20: GRT Loss (including Hotel GRT) | C20: =-VAT!$B49 -> -7.148000054 | D20: =-VAT!$B49 -> -7.148000054 | E20: =-VAT!$B49 -> -7.148000054 | F20: =-VAT!$B49 -> -7.148000054 | G20: =-VAT!$B49 -> -7.148000054 | K20: =C20 -> -7.148000054 | L20: =D20 -> -7.148000054 | M20: -7.148000054 | N20: -7.148000054 | O20: -7.148000054
B21: Import Tax | C21: =-VAT!$B52-VAT!$B55 -> -5.146958434 | D21: =-VAT!$B52-VAT!$B55 -> -5.146958434 | E21: =-VAT!$B52-VAT!$B55 -> -5.146958434 | F21: =-VAT!$B52-VAT!$B55 -> -5.146958434 | G21: =-VAT!$B52-VAT!$B55 -> -5.146958434 | K21: =C21 -> -5.146958434 | L21: =D21 -> -5.146958434 | M21: =E21 -> -5.146958434 | N21: =F21 -> -5.146958434 | O21: =G21 -> -5.146958434
B22: Wage Taxes | C22: =(Wage!$L30-Wage!$J30)/1000000+(Wage!$L34-Wage!$J34)/1000000 -> -5.545007044 | D22: =(Wage!$L30-Wage!$J30)/1000000+(Wage!$L34-Wage!$J34)/1000000 -> -5.545007044 | E22: =(Wage!$L30-Wage!$J30)/1000000+(Wage!$L34-Wage!$J34)/1000000 -> -5.545007044 | F22: =(Wage!$L30-Wage!$J30)/1000000+(Wage!$L34-Wage!$J34)/1000000 -> -5.545007044 | G22: =(Wage!$L30-Wage!$J30)/1000000+(Wage!$L34-Wage!$J34)/1000000 -> -5.545007044 | K22: -5.545007044 | L22: -5.545007044 | M22: -5.545007044 | N22: -5.545007044 | O22: -5.545007044
B24: Sales Tax (2022) | C24: -3.99936439 | D24: -3.99936439 | E24: -3.99936439 | F24: -3.99936439 | G24: -3.99936439
B25: MALGOV | C25: =-2834.44943/1000 -> -2.83444943 | D25: =-2834.44943/1000 -> -2.83444943 | E25: -2.83444943 | F25: -2.83444943 | G25: -2.83444943
B26: KALGOV | C26: =C24-C25 -> -1.16491496 | D26: =D24-D25 -> -1.16491496 | E26: -1.16491496 | F26: -1.16491496 | G26: -1.16491496
B28: Net Tax Yields
B29: National Government | C29: =C11*(1-C38-C39)+SUM(C16:C22) -> -2.1213321 | D29: =D11*(1-D38-D39)+SUM(D16:D22) -> -0.1339401916 | E29: =E11*(1-E38-E39)+SUM(E16:E22) -> 1.853451717 | F29: =F11*(1-F38-F39)+SUM(F16:F22) -> 5.135009223e-05 | G29: =G11*(1-G38-G39)+SUM(G16:G22) -> -2.1213321 | K29: =SUM(K12:K22) -> 3.045773651 | L29: =SUM(L12:L24) -> 6.324941997 | M29: 9.604110342 | N29: 6.546026132 | O29: 3.045773651
K30: =-K15 -> -0.886569333 | L30: =-L15 -> -1.108211666 | M30: -1.329854 | N30: -1.123154968 | O30: =-O15 -> -0.886569333
B33: Percent of GDP | C33: =C29/Data!$G$47 -> -0.008197609517 | D33: =D29/Data!$G$47 -> -0.0005175942935 | E33: =E29/Data!$G$47 -> 0.00716242093 | F33: =F29/Data!$G$47 -> 1.984356928e-07 | G33: =G29/Data!$G$47 -> -0.008197609517 | K33: =K29/Data!$G$47 -> 0.01176999258 | L33: =L29/Data!$G$47 -> 0.02444190832 | M33: =M29/Data!$G$47 -> 0.03711382407 | N33: =N29/Data!$G$47 -> 0.02529625895 | O33: =O29/Data!$G$47 -> 0.01176999258
B36: Revenue Sharing Arrangements
B38: MALGOV | C38: 0.25 | D38: 0.25 | E38: 0.25 | F38: 0.25 | G38: 0.25 | O38: 0
B39: KAL | C39: 0.1 | D39: 0.1 | E39: 0.1 | F39: 0.1 | G39: 0.1 | O39: 0
B42: ToTal Change in NG Revenue Collection | G42: =TEXT(G29,"$0.0")&" million" -> -$2.1 million

Sheet Inst_Impact (hidden)
A2: Tax Incidence by Institutional Group
D3: Pre-Reform | F3: Reform | J3: For Graphing | L3: Post | M3: Pre
E4: Share | G4: Share | K4: Marshallese HHs | L4: =G6 -> 0.5332064621 | M4: =E6 -> 0.6661127868
C5: Households | D5: =SUM(C25:I25) -> 32.02384799 | E5: =D5/$D$14 -> 0.8216498262 | F5: =SUM(C41:K41) -> 26.69963089 | G5: =F5/$F$14 -> 0.7189843501 | K5: Non-Marshallese HHs | L5: =G7 -> 0.1857778881 | M5: =E7 -> 0.1555370395
C6: Marshallese HH | D6: =D5*MI_ratio -> 25.96178317 | E6: 0.6661127868 | F6: =SUM(C42:K42) -> 19.80073102 | G6: 0.5332064621 | K6: Businesses | L6: =G8 -> 0.23222598 | M6: =E8 -> 0.1094058519
C7: Non-Marshallese HHs | D7: =D5-D6 -> 6.062064824 | E7: 0.1555370395 | F7: 6.898899868 | G7: 0.1857778881 | K7: Local Governments | L7: =G9 -> 0 | M7: =E9 -> 0.00661540822
C8: Businesses | D8: =SUM(C28:I28) -> 4.264099205 | E8: 0.1094058519 | F8: 8.623759262 | G8: 0.23222598 | K8: Others | L8: =SUM(G10:G13) -> 0.04878966982 | M8: =SUM(E10:E13) -> 0.06232891365
C9: Local Governments | D9: =SUM(C33:I33) -> 0.2578359059 | E9: 0.00661540822 | F9: =SUM(C49:K49) -> 0 | G9: 0
C10: National Government | D10: =SUM(C32:I32) -> 0.9583384687 | E10: 0.0245885078 | F10: =SUM(C48:K48) -> 0 | G10: 0
C11: NGOs | D11: =SUM(C29:I29) -> 0.1588035292 | E11: 0.004074491368 | F11: =SUM(C45:J45) -> 0.4937378623 | G11: 0.01329568179
C12: Tourists | D12: =SUM(C30:I30) -> 0.302130897 | E12: 0.007751904114 | F12: =SUM(C46:K46) -> 0.3080764992 | G12: 0.008296076545
C13: Others | D13: =SUM(C31:I31) -> 1.010000005 | E13: 0.02591401037 | F13: =SUM(C47:K47) -> 1.010000005 | G13: 0.02719791148
C14: Total | D14: =SUM(D6:D13) -> 38.97505601 | F14: =SUM(F6:F13) -> 37.13520452
B19: Scaling Factor | C19: =1/1000000 -> 1e-06
A23: Pre-Reform
C24: GRT+ gen and food imp | D24: Income Tax | E24: Alcohol | F24: Fuel | G24: Other Excise | H24: Other Taxes | I24: Local Sales Tax
B25: Households | C25: =VAT!D13+VAT!D19*VAT!B67 -> 8.895578985 | D25: =TaxEst!C11*Factor -> 16.7130003 | E25: =Data!G58 -> 1.465000033 | F25: =F36*Data!B217 -> 0.2955000103 | G25: =$G$36*C25/(SUM($C$26:$C$31)) -> 2.245580211 | I25: =VAT!Q13+VAT!Q19*VAT!B67 -> 2.409188457
B26: MI HHs | C26: =C25*MI_ratio -> 7.211659661 | D26: =TaxEst!C8*Factor -> 11.64900017 | E26: =E25*MI_ratio -> 1.187677796 | F26: =F25*MI_ratio -> 0.239562316 | G26: =$G$36*C26/(SUM($C$26:$C$31)) -> 1.820495355 | I26: =I25*MI_ratio -> 1.953132814
B27: Non-MI HHs | C27: =C25-C26 -> 1.683919324 | D27: =D25-D26 -> 5.06400013 | E27: =E25-E26 -> 0.2773222372 | F27: =F25-F26 -> 0.05593769424 | G27: 0.4250848558 | I27: =I25-I26 -> 0.4560556433
B28: Businesses | C28: =VAT!D19*(1-VAT!B67)+VAT!D21+VAT!D27+VAT!D29+VAT!D30+VAT!D32 -> 2.390092803 | F28: =F36*Data!B219 -> 0.1773000062 | G28: 0.6033497211 | I28: =VAT!Q19*(1-VAT!B67)+VAT!Q21+VAT!Q27+VAT!Q29+VAT!Q30+VAT!Q32 -> 1.093356676
B29: NGO | C29: =VAT!D16 -> 0.08947872289 | G29: 0.02258781017 | I29: =VAT!Q16 -> 0.04673699619
B30: Tourists | C30: =VAT!D31 -> 0.1209153789 | F30: =F36*Data!B218 -> 0.1182000041 | G30: 0.03052360981 | I30: =VAT!Q31 -> 0.0324919042
B31: Others | C31: 0 | G31: 0 | H31: =SUM(TaxEst!C27:C28)*Factor -> 1.010000005 | I31: 0
B32: National Government | C32: =VAT!D6-VAT!D9 -> 0.6295228103 | I32: =VAT!Q6-VAT!Q9 -> 0.3288156584
B33: Local Government | C33: =VAT!D9 -> 0.1693697888 | I33: =VAT!Q9 -> 0.08846611706
B35: Total | C35: =SUM(C26:C33) -> 12.29495849 | D35: =SUM(D26:D33) -> 16.7130003 | E35: 1.465000033 | F35: 0.5910000205 | G35: =SUM(G26:G33) -> 2.902041352 | H35: 1.010000005 | I35: =SUM(I26:I33) -> 3.999055808
B36: net GRT/Control | C36: =VAT!D44 -> 12.29495849 | D36: =TaxEst!C11*Factor -> 16.7130003 | E36: =TaxEst!C19*Factor -> 1.465000033 | F36: =Data!G60 -> 0.5910000205 | G36: =Data!G59 -> 2.902041352 | H36: =SUM(TaxEst!C27:C28)*Factor -> 1.010000005 | I36: =VAT!P49 -> 3.99936439
C37: =C35-C36 -> 0 | D37: =D35-D36 -> 0 | E37: 0 | F37: 0 | G37: =G35-G36 -> 0 | H37: =H35-H36 -> 0 | I37: -0.0003085817021
A39: Post Reform (User Choice)
C40: VAT | D40: Income Tax | E40: Alcohol | F40: Fuel | G40: Other Excise | H40: Other Taxes | I40: Business Taxes | J40: VAT on Imports | K40: Local Sales Taxes
B41: Households | C41: =VAT!F13+VAT!F19*VAT!B67 -> 11.24997733 | D41: =SUM(D42:D43) -> 11.16799325 | E41: =E25 -> 1.465000033 | F41: =F25 -> 0.2955000103 | G41: =$G$51*C25/SUM($C$26:$C$31) -> 2.245580211 | H41: =H25 -> 0 | J41: =VAT!$F$35*C25/SUM($C$26:$C$31) -> 0.275580048 | K41: =IF('Dash-1'!$I$25="Yes",0,I25) -> 0
B42: MI HHs | C42: =C41*MI_ratio -> 9.120374047 | D42: =TaxEst!D8*Factor -> 7.209208332 | E42: =E26 -> 1.187677796 | F42: =F26 -> 0.239562316 | G42: 1.820495355 | H42: =H26 -> 0 | J42: =VAT!$F$35*C26/SUM($C$26:$C$31) -> 0.2234131718 | K42: =IF('Dash-1'!$I$25="Yes",0,I26) -> 0
B43: Non-MI HHs | C43: =C41-C42 -> 2.129603284 | D43: =SUM(TaxEst!D9:D10)*Factor -> 3.958784921 | E43: =E27 -> 0.2773222372 | F43: =F27 -> 0.05593769424 | G43: 0.4250848558 | H43: =H27 -> 0 | J43: =VAT!$F$35*C27/SUM($C$26:$C$31) -> 0.05216687625 | K43: =IF('Dash-1'!$I$25="Yes",0,I27) -> 0
B44: Businesses | C44: =VAT!F19*(1-VAT!B67)+VAT!F21+VAT!F27+VAT!F29+VAT!F30+VAT!F32 -> 0 | F44: =F28 -> 0.1773000062 | G44: 0.6033497211 | H44: =H28 -> 0 | I44: =SUM('Profits Tax'!S12,'Profits Tax'!S18)*Factor -> 7.7690658 | J44: =VAT!$F$35*C28/SUM($C$26:$C$31) -> 0.07404373458 | K44: =IF('Dash-1'!$I$25="Yes",0,I28) -> 0
B45: NGO | C45: =VAT!F16 -> 0.4683780515 | G45: 0.02258781017 | J45: =VAT!$F$35*C29/SUM($C$26:$C$31) -> 0.002772000653 | K45: =IF('Dash-1'!$I$25="Yes",0,I29) -> 0
B46: Tourists | C46: =VAT!F31 -> 0.1556069946 | F46: =F30 -> 0.1182000041 | G46: 0.03052360981 | H46: =H30 -> 0 | J46: =VAT!$F$35*C30/SUM($C$26:$C$31) -> 0.003745890625 | K46: =IF('Dash-1'!$I$25="Yes",0,I30) -> 0
B47: Others | C47: 0 | F47: =F31 -> 0 | G47: 0 | H47: =H31 -> 1.010000005 | J47: =VAT!$F$35*C31/SUM($C$26:$C$31) -> 0 | K47: =IF('Dash-1'!$I$25="Yes",0,I31) -> 0
B48: National Govt | K48: =IF('Dash-1'!$I$25="Yes",0,I32) -> 0
B49: Local Govt | C49: =IF('Dash-1'!I25="Yes",0,VAT!F9) -> 0 | K49: =IF('Dash-1'!$I$25="Yes",0,I33) -> 0
B50: Total | C50: =SUM(C42:C49) -> 11.87396238 | D50: =SUM(D42:D47) -> 11.16799325 | E50: 1.465000033 | F50: 0.5910000205 | G50: 2.902041352 | H50: 1.010000005 | I50: 7.7690658 | J50: =SUM(J42:J49) -> 0.3561416739 | K50: =SUM(K42:K49) -> 0
B51: net GRT/Control | C51: =IF('Dash-1'!I25="Yes",VAT!F46,VAT!F45)-J51 -> 11.87396238 | D51: =TaxEst!D11*Factor -> 11.16799325 | E51: =E36 -> 1.465000033 | F51: =F36 -> 0.5910000205 | G51: =G36 -> 2.902041352 | H51: =H36 -> 1.010000005 | I51: =TaxEst!D15*Factor -> 7.7690658 | J51: =VAT!$F$35 -> 0.3561416739 | K51: =-Summary!G24 -> 3.99936439
D52: =D50-D51 -> 0 | E52: 0 | F52: 0 | G52: 0 | H52: =H50-H51 -> 0 | I52: =I50-I51 -> 0 | J52: =J50-J51 -> 0 | K52: =K50-K51 -> -3.99936439

Sheet VAT (hidden)
A1: Expenditure on GDP | B1: FY22 | C1: less non -taxable items | D1: less GRT & import duties | E1: VAT base | F1: Selected VAT | G1: VAT | J1: Revenue neutral rate | K1: GRT | L1: GRT allocated | M1: Food | N1: General | O1: Total | P1: Local Sales Tax | Q1: Local Sales Tax Allocated | W1: HFCE | X1: GRT | Y1: Allocated GRT | Z1: Food Duty | AA1: General
F2: =IF('Dash-1'!I25="Yes",'Dash-1'!I10,'Dash-1'!I27) -> 0.1 | G2: 0.1 | H2: 0.125 | I2: 0.15 | J2: 0.1266855199
A3: Final Consumption Expenditure | B3: =B4+B12+B16 -> 334.0824599 | U3: Total HFCE-Acquisition | W3: =SUM(W4:W52) -> 153.6743204 | X3: =SUM(X4:X52) -> 4.470477004 | Y3: =X3/(K44-K13+X3)*B49 -> 4.497349937 | Z3: =W37/SUM(W37,B31)*B52 -> 2.704661273 | AA3: =SUM(W40:W41,W45:W49,W51)/(SUM(W40:W41,W45:W49,W51)+B19+B21+B27+SUM(B29:B32))*B55 -> 0.2780752114
A4: Government Final Consumption Expenditure (GFCE) | B4: =B5+B6+B11 -> 148.5988007 | U4: BusPriv_Fishing | V4: Pr1_11Af_Fish | W4: 0.1945039221 | X4: =W4*$B$50*0.5 -> 0.002917558831
A5: Compensation of Employees | B5: =INDEX(Data!$B5:$G5,MATCH($B$1,Data!$B$1:$G$1,0)) -> 82.64885712 | U5: BusPriv_Manufacturing | V5: Pr1_11CC_Manuf | W5: 0.7344740977 | X5: =W5*$B$50 -> 0.02203422293
A6: Purchases of goods and services | B6: =INDEX(Data!$B6:$G6,MATCH($B$1,Data!$B$1:$G$1,0)) -> 52.94126515 | D6: =O6 -> 0.7988925991 | E6: =B6-D6-C6 -> 52.14237255 | F6: =$E6*F$2*(1-$B$60-$B$61) -> 4.181818279 | G6: 4.181818279 | H6: 5.227272848 | I6: 6.272727418 | J6: 5.297758226 | K6: =B6*$B$50*0.5 -> 0.7941189773 | L6: =K6*($B$49/$K$44) -> 0.7988925991 | O6: =SUM(L6:N6) -> 0.7988925991 | P6: =B6*$P$50*0.5 -> 1.588237955 | Q6: =P6/$P$44*$P$49 -> 0.4172817755 | U6: BusPriv_Transport | V6: Pr1_11HA_Transport | W6: 0.3086125635 | X6: =W6*$B$50 -> 0.009258376905
A7: National Government | B7: =INDEX(Data!$B243:$G243,MATCH($B$1,Data!$B$1:$G$1,0)) -> 38.45099854 | D7: =O7 -> 0.5802320379 | E7: =B7-D7-C7 -> 37.87076651 | F7: 3.037235474 | G7: 3.037235474 | H7: 3.796544342 | I7: 4.555853211 | J7: 3.84773755 | K7: =B7*$B$50*0.5 -> 0.5767649782 | L7: =K7*($B$49/$K$44) -> 0.5802320379 | O7: =SUM(L7:N7) -> 0.5802320379 | P7: =B7*$P$50*0.5 -> 1.153529956 | Q7: =P7/$P$44*$P$49 -> 0.3030698435 | U7: BusPriv_Taxis | V7: Pr1_11HB_Taxis | W7: 0.9627822559 | X7: 0.02888346768
A8: Government Agencies | B8: =INDEX(Data!$B244:$G244,MATCH($B$1,Data!$B$1:$G$1,0)) -> 3.061738014 | D8: =O8 -> 0.04620214181 | E8: 3.015535872 | F8: 0.241845977 | G8: 0.241845977 | H8: 0.3023074712 | I8: 0.3627689655 | J8: 0.3063838332 | K8: =B8*$B$50*0.5 -> 0.04592607021 | L8: 0.04620214181 | O8: 0.04620214181 | P8: =B8*$P$50*0.5 -> 0.09185214043 | Q8: =P8/$P$44*$P$49 -> 0.02413254521 | U8: BusPriv_Hotels | V8: Pr1_11IA_Hotel | W8: 0.6607189327 | X8: 0.01982156798
A9: Local Government | B9: =INDEX(Data!$B245:$G245,MATCH($B$1,Data!$B$1:$G$1,0)) -> 11.22385025 | D9: 0.1693697888 | E9: 11.05448046 | F9: 0.886569333 | G9: 0.886569333 | H9: 1.108211666 | I9: 1.329854 | J9: 1.123154968 | K9: =B9*$B$50*0.5 -> 0.1683577538 | L9: 0.1693697888 | O9: 0.1693697888 | P9: =B9*$P$50*0.5 -> 0.3367155075 | Q9: =P9/$P$44*$P$49 -> 0.08846611706 | U9: BusPriv_Restaurants | V9: Pr1_11IB_Rest | W9: 1.174124166 | X9: 0.03522372498
A10: Social Security Funds | B10: =INDEX(Data!$B246:$G246,MATCH($B$1,Data!$B$1:$G$1,0)) -> 0.2438286394 | D10: 0.003679415195 | E10: =B10-D10-C10 -> 0.2401492242 | F10: 0.01925996778 | G10: 0.01925996778 | H10: 0.02407495973 | I10: 0.02888995167 | J10: 0.02439959031 | K10: 0.003657429591 | L10: 0.003679415195 | O10: 0.003679415195 | P10: =B10*$P$50*0.5 -> 0.007314859182 | Q10: =P10/$P$44*$P$49 -> 0.001921851457 | U10: BusPriv_Real estate | V10: Pr1_11LA_RealEst | W10: 0.5995218158 | X10: 0.01798565447
A11: less sales | B11: =INDEX(Data!$B7:$G7,MATCH($B$1,Data!$B$1:$G$1,0)) -> 13.00867839 | U11: BusPriv_Professional | V11: Pr1_11MA_Prof | W11: 0.03895392679 | X11: 0.001168617804
A12: Household Final Consumption Expenditure (HFCE) | B12: =B13+B14+B15 -> 179.5540552 | O12: =SUM(L12:N12) -> 0 | U12: BusPriv_Administrative | V12: Pr1_11NA_Admin | W12: 0.0981234911 | X12: 0.002943704733
A13: Households' acquisition | B13: =INDEX(Data!$B9:$G9,MATCH($B$1,Data!$B$1:$G$1,0)) -> 153.6743164 | C13: =INDEX(Data!$B87:$G87,MATCH($B$1,Data!$B$1:$G$1,0)) -> 4.6584203 | D13: =O13 -> 8.741864557 | E13: =B13-D13-C13 -> 140.2740315 | F13: =$E13*F$2*(1-$B$60-$B$61) -> 11.24997733 | G13: =$E13*G$2*(1-$B$60-$B$61) -> 11.24997733 | H13: =$E13*H$2*(1-$B$60-$B$61) -> 14.06247166 | I13: =$E13*I$2*(1-$B$60-$B$61) -> 16.874966 | J13: =$E13*J$2*(1-$B$60-$B$61) -> 14.25209227 | K13: =(B13-C13)*B50 -> 4.470476883 | L13: =K13*($B$49/$K$44) -> 4.497349892 | M13: =$B$52*(B13-C13)/($B$13-$C$13+$B$31) -> 2.734660024 | N13: =$B$55*(B13-C13)/($B$13-$C$13+$B$19+$B$21+$B$27+$B$29+$B$30+$B$31+$B$32) -> 1.509854641 | O13: =SUM(L13:N13) -> 8.741864557 | P13: =(B13-C13)*P50 -> 8.940953766 | Q13: =P13/$P$44*$P$49 -> 2.349079401 | U13: BusPriv_Health | V13: Pr1_11QA_Health | W13: 0.04888915926 | X13: 0.001466674778
A14: Dwellings | B14: =INDEX(Data!$B10:$G10,MATCH($B$1,Data!$B$1:$G$1,0)) -> 14.36909676 | O14: 0 | U14: BusPriv_Other services to HH | V14: Pr1_11RS_ServHH | W14: 0.2891716838 | X14: 0.008675150514
A15: Other (non-market on production) | B15: =INDEX(Data!$B11:$G11,MATCH($B$1,Data!$B$1:$G$1,0)) -> 11.51064205 | O15: 0 | U15: BusSOE_MEC(U) | V15: Pr1_12DA_MEC(U) | W15: 7.497435191 | X15: 0.2249230557
A16: NGOs | B16: =INDEX(Data!$B12:$G12,MATCH($B$1,Data!$B$1:$G$1,0)) -> 5.929604053 | D16: =O16 -> 0.08947872289 | E16: =B16-D16-C16 -> 5.840125331 | F16: =$E16*F$2*(1-$B$60-$B$61) -> 0.4683780515 | G16: =$E16*G$2*(1-$B$60-$B$61) -> 0.4683780515 | H16: =$E16*H$2*(1-$B$60-$B$61) -> 0.5854725644 | I16: =$E16*I$2*(1-$B$60-$B$61) -> 0.7025670773 | J16: =$E16*J$2*(1-$B$60-$B$61) -> 0.5933671695 | K16: =B16*B50*0.5 -> 0.0889440608 | L16: =K16*($B$49/$K$44) -> 0.08947872289 | O16: 0.08947872289 | P16: =B16*$P$50*0.5 -> 0.1778881216 | Q16: =P16/$P$44*$P$49 -> 0.04673699619 | U16: BusSOE_Kajur | V16: Pr1_12DB_Kajur | W16: 4.553621055 | X16: 0.1366086316
O17: 0 | U17: BusSOE_MWSC | V17: Pr1_12EA_MWSC | W17: 0.6064309548 | X17: 0.01819292864
A18: Investment and inventories | B18: =SUM(B19:B24) -> 52.01061523 | O18: 0 | U18: BusSOE_AMI | V18: Pr1_12HB_AMI | W18: 2.405133191 | X18: 0.07215399572
A19: Construction: Other | B19: =INDEX(Data!$B15:$G15,MATCH($B$1,Data!$B$1:$G$1,0)) -> 11.43921089 | D19: =O19 -> 0.4611432828 | K19: =B19*B50 -> 0.3431763268 | L19: =K19*($B$49/$K$44) -> 0.3452392343 | N19: =$B$55*(B19-C19)/($B$13-$C$13+$B$19+$B$21+$B$27+$B$29+$B$30+$B$31+$B$32) -> 0.1159040486 | O19: 0.4611432828 | P19: =B19*$P$50 -> 0.6863526535 | Q19: =P19/$P$44*$P$49 -> 0.1803271689 | U19: BusSOE_MISC | V19: Pr1_12HC_MISC | W19: 0.4282315318 | X19: 0.01284694595
A20: Construction: REPMAR | B20: =INDEX(Data!$B16:$G16,MATCH($B$1,Data!$B$1:$G$1,0)) -> 7.589000225 | U20: BusSOE_PO | V20: Pr1_12HD_PO | W20: 0.2041179738 | X20: 0.006123539214
A21: Equipment: other | B21: =INDEX(Data!$B17:$G17,MATCH($B$1,Data!$B$1:$G$1,0)) -> 26.94236374 | D21: =O21 -> 0.2729846547 | N21: =$B$55*(B21-C21)/($B$13-$C$13+$B$19+$B$21+$B$27+$B$29+$B$30+$B$31+$B$32) -> 0.2729846547 | O21: 0.2729846547 | P21: =B21*$P$50 -> 1.616541824 | Q21: =P21/$P$44*$P$49 -> 0.4247181228 | U21: BusSOE_MIR | V21: Pr1_12IA_MIR | W21: 1.092669373 | X21: 0.0327800812
A22: Equipment: REPMAR | B22: =INDEX(Data!$B18:$G18,MATCH($B$1,Data!$B$1:$G$1,0)) -> 5.368000031 | U22: BusSOE_NTA | V22: Pr1_12JB_NTA | W22: 2.606689754 | X22: 0.07820069262
A23: Ships, Aircraft | B23: =INDEX(Data!$B19:$G19,MATCH($B$1,Data!$B$1:$G$1,0)) -> 0 | T23: Exempt | U23: BankCom | V23: Pr1_21KA_BankCom | W23: 0.5848979502
A24: Changes in inventories | B24: =INDEX(Data!$B20:$G20,MATCH($B$1,Data!$B$1:$G$1,0)) -> 0.6720403433 | O24: 0 | T24: Exempt | U24: BankDev | V24: Pr1_22KB_BankDev | W24: 0.7429034344
O25: 0 | T25: Exempt | U25: FinOth_Insurance agents | V25: Pr1_23KC_FinIns | W25: 0.3334577133
A26: Exports of goods and services | B26: =SUM(B27:B33) -> 119.7417185 | O26: 0 | T26: Exempt | U26: FinOth_Financial Auxiliaries | V26: Pr1_23KD_FinAux | W26: 0.6473157025
A27: Re-Exports - Goods | B27: =INDEX(Data!$B23:$G23,MATCH($B$1,Data!$B$1:$G$1,0)) -> 20.20346451 | D27: =O27 -> 0.8144523286 | K27: =B27*$B$50 -> 0.6061039352 | L27: =K27*($B$49/$K$44) -> 0.6097473578 | N27: =$B$55*(B27-C27)/($B$13-$C$13+$B$19+$B$21+$B$27+$B$29+$B$30+$B$31+$B$32) -> 0.2047049708 | O27: 0.8144523286 | P27: =B27*$P$50*0.5 -> 0.6061039352 | Q27: =P27/$P$44*$P$49 -> 0.1592432201 | U27: GovNat_Public Admin | V27: Pr1_31OA_PubAdmin | W27: 0.4447500406 | X27: 0.01334250122
A28: Exports - Goods, Offshore Fish | B28: =INDEX(Data!$B24:$G24,MATCH($B$1,Data!$B$1:$G$1,0)) -> 71.09102631 | O28: 0 | U28: GovAgen_Public Admin | V28: Pr1_32OA_PubAdmin | W28: 0.004821860862 | X28: 0.0001446558259
A29: Exports - Goods, Other | B29: =INDEX(Data!$B25:$G25,MATCH($B$1,Data!$B$1:$G$1,0)) -> 8.481425285 | D29: =O29 -> 0.3419075263 | K29: =B29*$B$50 -> 0.2544427586 | L29: =K29*($B$49/$K$44) -> 0.2559722693 | N29: =$B$55*(B29-C29)/($B$13-$C$13+$B$19+$B$21+$B$27+$B$29+$B$30+$B$31+$B$32) -> 0.08593525703 | O29: 0.3419075263 | P29: =B29*$P$50 -> 0.5088855171 | Q29: =P29/$P$44*$P$49 -> 0.1337007792 | U29: GovAgen_CMI | V29: Pr1_32PA_CMI | W29: 6.595784187 | X29: 0.1978735256
A30: Exports: Services | B30: =INDEX(Data!$B26:$G26,MATCH($B$1,Data!$B$1:$G$1,0)) -> 7.510590553 | D30: 0.3027707432 | K30: =B30*$B$50 -> 0.2253177166 | L30: =K30*($B$49/$K$44) -> 0.2266721504 | N30: =$B$55*(B30-C30)/($B$13-$C$13+$B$19+$B$21+$B$27+$B$29+$B$30+$B$31+$B$32) -> 0.07609859285 | O30: 0.3027707432 | P30: =B30*$P$50 -> 0.4506354332 | Q30: =P30/$P$44*$P$49 -> 0.1183965873 | U30: GovAgen_HCRF | V30: Pr1_32QA_HCRF | W30: 0.4575958252 | X30: 0.01372787476
A31: Exports: Tourism (Goods & Services) | B31: =INDEX(Data!$B27:$G27,MATCH($B$1,Data!$B$1:$G$1,0)) -> 2.06115222 | D31: 0.1209153789 | E31: =B31-D31-C31 -> 1.940236841 | F31: =$E31*F$2*(1-$B$60-$B$61) -> 0.1556069946 | G31: =$E31*G$2*(1-$B$60-$B$61) -> 0.1556069946 | H31: =$E31*H$2*(1-$B$60-$B$61) -> 0.1945087433 | I31: =$E31*I$2*(1-$B$60-$B$61) -> 0.233410492 | J31: =$E31*J$2*(1-$B$60-$B$61) -> 0.1971315301 | K31: =B31*$B$50 -> 0.06183456659 | L31: =K31*($B$49/$K$44) -> 0.06220626762 | M31: =$B$52*(B31-C31)/($B$13-$C$13+$B$31) -> 0.03782516313 | N31: =$B$55*(B31-C31)/($B$13-$C$13+$B$19+$B$21+$B$27+$B$29+$B$30+$B$31+$B$32) -> 0.02088394814 | O31: 0.1209153789 | P31: =B31*$P$50 -> 0.1236691332 | Q31: =P31/$P$44*$P$49 -> 0.0324919042 | U31: GovAgen_HF | V31: Pr1_32QA_HF | W31: 0.6632566452 | X31: 0.01989769936
A32: Exports: Fishing boat provisions (Goods & Services) | B32: =INDEX(Data!$B28:$G28,MATCH($B$1,Data!$B$1:$G$1,0)) -> 8.6957798 | D32: 0.3505486945 | K32: =B32*$B$50 -> 0.260873394 | L32: =K32*($B$49/$K$44) -> 0.2624415607 | N32: =$B$55*(B32-C32)/($B$13-$C$13+$B$19+$B$21+$B$27+$B$29+$B$30+$B$31+$B$32) -> 0.08810713377 | O32: 0.3505486945 | P32: =B32*$P$50 -> 0.521746788 | Q32: =P32/$P$44*$P$49 -> 0.1370798535 | U32: Npish_Education | V32: Pr1_41PA_Ed | W32: 1.566563785 | X32: 0.04699691355
A33: Exports (embassies) | B33: =INDEX(Data!$B29:$G29,MATCH($B$1,Data!$B$1:$G$1,0)) -> 1.698279858 | U33: Npish_USP | V33: Pr1_41PA_USP | W33: 2.332381524 | X33: 0.06997144573
U34: HHcash_Csh_Fish | V34: Pr1_51Af_Csh_Fish | W34: 2.718879223 | X34: 0.08156637669
A35: less Imports | B35: =-SUM(B36:B42) -> -175.8963127 | E35: =(B40)*0.075 -> 4.44066925 | F35: =$E35*F$2*(1-$B$60-$B$61) -> 0.3561416739 | G35: =$E35*G$2*(1-$B$60-$B$61) -> 0.3561416739 | H35: =$E35*H$2*(1-$B$60-$B$61) -> 0.4451770924 | I35: =$E35*I$2*(1-$B$60-$B$61) -> 0.5342125108 | J35: =$E35*J$2*(1-$B$60-$B$61) -> 0.451179931 | U35: HHcash_Csh_Man | V35: Pr1_51CE_Csh_Man | W35: 0.9609381266 | X35: 0.0288281438
A36: Food, beverages, tobacco | B36: =INDEX(Data!$B32:$G32,MATCH($B$1,Data!$B$1:$G$1,0)) -> 59.90823746 | U36: FISIM | V36: Pr1_FISIM | W36: 9.54601645 | X36: 0.2863804935
A37: Fuel (landed) | B37: =INDEX(Data!$B33:$G33,MATCH($B$1,Data!$B$1:$G$1,0)) -> 29.67877769 | U37: Imports, Goods, Food | V37: Pr1_ImGd01 | W37: 82.19399704 | X37: 2.465819911
A38: Fishing Boats, Aircraft | B38: =INDEX(Data!$B34:$G34,MATCH($B$1,Data!$B$1:$G$1,0)) -> 0 | U38: Imports, Goods, Alcohol | V38: Pr1_ImGd02 | W38: 0.2168143687 | X38: 0.006504431061
A39: Fishing Boat, provisions at sea | B39: =INDEX(Data!$B35:$G35,MATCH($B$1,Data!$B$1:$G$1,0)) -> 11.46241951 | U39: Imports, Goods, Cigarettes, and other non-alcohol stimulants | V39: Pr1_ImGd03 | W39: 3.416520834 | X39: 0.102495625
A40: Other goods | B40: =INDEX(Data!$B36:$G36,MATCH($B$1,Data!$B$1:$G$1,0)) -> 59.20892334 | U40: Imports, Goods, Medical supplies and pharmaceuticals | V40: Pr1_ImGd04 | W40: 0.1647613669 | X40: 0.004942841007
A41: Construction | B41: =INDEX(Data!$B37:$G37,MATCH($B$1,Data!$B$1:$G$1,0)) -> 0 | U41: Imports, Goods, Industrial supplies (non-food), other | V41: Pr1_ImGd07 | W41: 0.1125841297 | X41: 0.00337752389
A42: Airlines, travel, medical | B42: =INDEX(Data!$B38:$G38,MATCH($B$1,Data!$B$1:$G$1,0)) -> 15.63795471 | U42: Imports, Goods, Fuels gasoline | V42: Pr1_ImGd09 | W42: 2.067385486 | X42: 0.06202156459
A43: Other services | B43: =INDEX(Data!$B39:$G39,MATCH($B$1,Data!$B$1:$G$1,0)) -> 14.74376869 | U43: Imports, Goods, Fuels - aviation gas lubricants | V43: Pr1_ImGd11 | W43: 0.06294932459 | X43: 0.001888479738
A44: Totals | B44: =B3+B18+B26+B35 -> 329.938481 | C44: =SUM(C6:C42) -> 4.6584203 | D44: =SUM(D6:D42)-SUM(D7:D10) -> 12.29495849 | E44: =SUM(E6:E42)-SUM(E7:E10) -> 204.6374355 | F44: =SUM(F6:F42)-SUM(F7:F10) -> 16.41192233 | G44: =SUM(G6:G42)-SUM(G7:G10) -> 16.41192233 | H44: 20.51490291 | I44: 24.61788349 | J44: =SUM(J6:J42)-SUM(J7:J10) -> 20.79152912 | K44: =SUM(K6:K42)-SUM(K7:K10) -> 7.105288619 | L44: =SUM(L6:L42)-SUM(L7:L10) -> 7.148000054 | M44: =SUM(M6:M42) -> 2.772485187 | N44: =SUM(N6:N42) -> 2.374473247 | O44: =SUM(O6:O42)-SUM(O7:O10) -> 12.29495849 | P44: =SUM(P7:P32) -> 15.22218964 | Q44: =P44/$P$44*$P$49 -> 3.99936439 | U44: Imports, Goods, Fuels - lubricants | V44: Pr1_ImGd12 | W44: 0.04122692016 | X44: 0.001236807605
A45: net of national government, agencies and SS VAT | E45: =E44-E7-E8-E10 -> 163.5109839 | F45: =F44-F7-F8-F10 -> 13.11358091 | G45: =G44-G7-G8-G10 -> 13.11358091 | H45: 16.39197614 | I45: 19.67037137 | J45: =J44-J7-J8-J10 -> 16.61300815 | U45: Imports, Goods, Machinery and other capital equipment | V45: Pr1_ImGd13 | W45: -0.7916067718 | X45: -0.02374820315
A46: net of government VAT including Local Government | E46: =E44-E6 -> 152.495063 | F46: =F44-F6 -> 12.23010405 | G46: =G44-G6 -> 12.23010405 | H46: =H44-H6 -> 15.28763006 | I46: 18.34515608 | J46: =J44-J6 -> 15.4937709 | U46: Imports, Goods, Parts and accessories | V46: Pr1_ImGd14 | W46: 0.05592326516 | X46: 0.001677697955
U47: Imports, Goods, Passenger motor vehicles | V47: Pr1_ImGd15 | W47: 3.712357955 | X47: 0.1113707386
A48: Existing tax collections | U48: Imports, Goods, Consumer goods not elsewhere specified | V48: Pr1_ImGd19 | W48: 3.536181133 | X48: 0.106085434
A49: GRT | B49: =INDEX(Data!$B54:$G54,MATCH($B$1,Data!$B$1:$G$1,0)) -> 7.148000054 | O49: Sales Tax | P49: =-SUM(Summary!G25:G26) -> 3.99936439 | U49: Imports, Goods, Humanitarian assistance | V49: Pr1_ImGd23 | W49: 0.5936769843 | X49: 0.01781030953
A50: GRT rate | B50: 0.03 | O50: Rate | P50: 0.06 | T50: Exempt | U50: Imports, Services, Foreign Airlines | V50: Pr1_ImSv03 | W50: 1.641475212
A51: Imports | B51: =SUM(B52:B55) -> 7.202958488 | U51: Imports, Services, Personal travel | V51: Pr1_ImSv06 | W51: 3.93518734 | X51: 0.1180556202
A52: Food | B52: =INDEX(Data!$B57:$G57,MATCH($B$1,Data!$B$1:$G$1,0)) -> 2.772485187 | T52: Exempt | U52: Imports, Services, Financial services | V52: Pr1_ImSv11 | W52: 0.6111183258
A53: Alcohol and Tobacco | B53: =INDEX(Data!$B58:$G58,MATCH($B$1,Data!$B$1:$G$1,0)) -> 1.465000033
A54: Fuel | B54: =INDEX(Data!$B60:$G60,MATCH($B$1,Data!$B$1:$G$1,0)) -> 0.5910000205
A55: General imports | B55: =INDEX(Data!$B56:$G56,MATCH($B$1,Data!$B$1:$G$1,0)) -> 2.374473247
A56: Wages tax (Marshallese Income Tax) | B56: =INDEX(Data!$B62:$G62,MATCH($B$1,Data!$B$1:$G$1,0)) -> 11.64900017
J58: =($B13-$D13+J13)/$B13-1 -> 0.03585652982
A59: Increase in Tax yield | J59: =#REF!/($B49+$B55) -> 
A60: Non-VAT registered businesses % turnover | B60: 0.098
A61: Allowance for error | B61: 0.1
J64: =J46*(1-Summary!F38-Summary!F39)+SUM(Summary!F16:F22) -> 5.135009224e-05
A67: Housing Construction Percentage | B67: =1/3 -> 0.3333333333
A68: NGO Share | B68: =1/3 -> 0.3333333333

Sheet Wage (hidden)
R1: Proposal
B2: Tax on Wages and Salaries | S2: Interval | U2: Rate | V2: Tax
B3: Income Bracket | I3: Current Tax Rate | R3: 1 | S3: ='Dash-1'!E16 -> 0 | T3: ='Dash-1'!F16 -> 4160 | U3: ='Dash-1'!H16 -> 0 | V3: 0 | X3: Exempt Income | Z3: ='Dash-1'!F16 -> 4160
B4: $0 - $1,560 | I4: 0 | R4: 2 | S4: ='Dash-1'!E17 -> 4160.01 | T4: ='Dash-1'!F17 -> 10400 | U4: ='Dash-1'!H17 -> 0.08 | V4: =(T3-S3)*U3 -> 0
B5: $1,561- $5,200 | I5: 8% with the first $1,560 if exempted from tax if income is no more than $5,200 | R5: 3 | S5: ='Dash-1'!E18 -> 10400.01 | T5: ='Dash-1'!F18 -> 20800 | U5: ='Dash-1'!H18 -> 0.12 | V5: =(T3-S3)*U3+(T4-T3)*U4 -> 499.2 | X5: Overall Reduction in Wage Tax Burden | Z5: =1-TaxEst!D11/TaxEst!C11 -> 0.3317780737
B6: $5,201 - $10,400 | I6: 0.08 | R6: 4 | S6: ='Dash-1'!F19 -> 20800 | U6: ='Dash-1'!H19 -> 0.16 | V6: =(T3-S3)*U3+(T4-T3)*U4+(T5-T4)*U5 -> 1747.2
B7: > $10,400 | I7: 0.12
R8: # of Marshallese filers | S8: =COUNTIFS(I39:I9926,">0") -> 9888
B9: US Contractor personnel is levied a 5 percent tax on all wages and salaries received | R9: Number of Taxpayers per Percentile | S9: =ROUND(COUNTIFS(I39:I9926,">="&0)/100,) -> 99
S11: 0.1 | T11: 0.2 | U11: 0.3 | V11: 0.4 | W11: 0.5 | X11: 0.6 | Y11: 0.7 | Z11: 0.8 | AA11: 0.9 | AB11: 1
G12: FY12 | S12: Decile 1 | T12: Decile 2 | U12: Decile 3 | V12: Decile 4 | W12: Decile 5 | X12: Decile 6 | Y12: Decile 7 | Z12: Decile 8 | AA12: Decile 9 | AB12: Decile 10
G13: Expats on Marshallese IT | H13: 2595.347 | R13: Income Cut-offs | S13: =_xlfn.PERCENTILE.INC($I$39:$I$9926,S11) -> 849.7 | T13: 1986.554 | U13: 3600 | V13: 5760 | W13: 7514.85 | X13: 9776.734 | Y13: 12946.764 | Z13: 17172.904 | AA13: 24002.378 | AB13: 181246.68
R14: Old Tax Paid at the Income Cut-off | S14: =IF(S13<=10400,IF(S13<5200,IF(S13<1560,0,(S13-1560)*0.08),S13*0.08),S13*0.08+(S13-10400)*0.12) -> 0 | T14: =IF(T13<=10400,IF(T13<5200,IF(T13<1560,0,(T13-1560)*0.08),T13*0.08),T13*0.08+(T13-10400)*0.12) -> 34.12432 | U14: 163.2 | V14: 460.8 | W14: 601.188 | X14: 782.13872 | Y14: 1341.3528 | Z14: 2186.5808 | AA14: 3552.4756 | AB14: 35001.336
R16: Bracket Under New Tax | S16: =IF(S13>$S$6,$R$6,INDEX($R$3:$R$5,MATCH(S13,$S$3:$S$5,1))) -> 1 | T16: =IF(T13>$S$6,$R$6,INDEX($R$3:$R$5,MATCH(T13,$S$3:$S$5,1))) -> 1 | U16: 1 | V16: 2 | W16: 2 | X16: 2 | Y16: 3 | Z16: 3 | AA16: 4 | AB16: 4
R17: Tax Paid under New System | S17: =INDEX($V$3:$V$6,MATCH(S16,$R$3:$R$6,0))+INDEX($U$3:$U$6,MATCH(S16,$R$3:$R$6,0))*(S13-INDEX($S$3:$S$6,MATCH(S16,$R$3:$R$6,0))) -> 0 | T17: =INDEX($V$3:$V$6,MATCH(T16,$R$3:$R$6,0))+INDEX($U$3:$U$6,MATCH(T16,$R$3:$R$6,0))*(T13-INDEX($S$3:$S$6,MATCH(T16,$R$3:$R$6,0))) -> 0 | U17: =INDEX($V$3:$V$6,MATCH(U16,$R$3:$R$6,0))+INDEX($U$3:$U$6,MATCH(U16,$R$3:$R$6,0))*(U13-INDEX($S$3:$S$6,MATCH(U16,$R$3:$R$6,0))) -> 0 | V17: 127.9992 | W17: 268.3872 | X17: 449.33792 | Y17: 804.81048 | Z17: 1311.94728 | AA17: 2259.58048 | AB17: 27418.6688
R18: Tax Savings | S18: =S14-S17 -> 0 | T18: =T14-T17 -> 34.12432 | U18: =U14-U17 -> 163.2 | V18: 332.8008 | W18: =W14-W17 -> 332.8008 | X18: 332.8008 | Y18: 536.54232 | Z18: 874.63352 | AA18: 1292.89512 | AB18: 7582.6672
R19: Real Tax Savings | S19: =S35/(1+S33)-S34 -> 10.73586144 | T19: 61.94530011 | U19: 196.4492701 | V19: 372.2438325 | W19: 330.4663473 | X19: 310.4746927 | Y19: 504.4191656 | Z19: 819.5467682 | AA19: 1137.089543 | AB19: =AB35/(1+AB33)-AB34 -> 6198.500221
R20: Percent Change in Real Income | S20: =S19/(S13-S14) -> 0.0126348846 | T20: =T19/(T13-T14) -> 0.03172728869 | U20: 0.05716051852 | V20: 0.07024528844 | W20: 0.04779903144 | X20: 0.03451791693 | Y20: 0.04346413556 | Z20: 0.05468631347 | AA20: 0.055603666 | AB20: 0.04238425683
B21: Total Income | R21: Bi-Weekly Gain | S21: =S19/26 -> 0.4129177478 | T21: =T19/26 -> 2.382511543 | U21: 7.555741156 | V21: 14.31707048 | W21: 12.71024413 | X21: 11.94133433 | Y21: 19.40073714 | Z21: 31.52102955 | AA21: 43.73421318 | AB21: 238.4038546
C22: Marshallese | G22: Expats on discounted IT in Kwaj | H22: 1437.054 | I22: =SUMIF(D39:D11393,"226",I39:I11393) -> 104923040.2 | J22: =I22/SUM(I22:I23) -> 0.8107015489 | R22: Total Tax Paid (No Reform) | S22: =SUMIFS($J$39:$J$9926,$I$39:$I$9926,"<="&S13) -> 0 | T22: =SUMIFS($J$39:$J$9926,$I$39:$I$9926,">"&S13,$I$39:$I$9926,"<="&T13) -> 5760.6432 | U22: =SUMIFS($J$39:$J$9926,$I$39:$I$9926,">"&T13,$I$39:$I$9926,"<="&U13) -> 104781.4104 | V22: 268497.3864 | W22: 523180.3688 | X22: 677156.252 | Y22: 993825.52 | Z22: 1660855.63 | AA22: 2816437.098 | AB22: 5752435.996
C23: Non-Marshallese | I23: =SUM(I39:I11393)-I22 -> 24499483.22 | R23: Cumulative Tax Paid | S23: =S22 -> 0 | T23: =S23+T22 -> 5760.6432 | U23: =T23+U22 -> 110542.0536 | V23: 379039.44 | W23: 902219.8088 | X23: 1579376.061 | Y23: 2573201.581 | Z23: 4234057.211 | AA23: 7050494.309 | AB23: 12802930.3
R24: Share | S24: =S22/SUM($S$22:$AB$22) -> 0 | T24: 0.0004499472435 | U24: 0.008184174084 | V24: 0.02097155729 | W24: 0.04086411129 | X24: 0.05289072391 | Y24: 0.07762484809 | Z24: 0.1297246482 | AA24: 0.2199837874 | AB24: 0.4493062025
E25: FY2022 | L25: =L30-J30 -> -4439791.836
R26: Total Tax Paid (Reform) | S26: =SUMIFS($L$39:$L$9926,$I$39:$I$9926,"<="&S13) -> 0 | T26: =SUMIFS($L$39:$L$9926,$I$39:$I$9926,">"&S13,$I$39:$I$9926,"<="&T13) -> 0 | U26: =SUMIFS($L$39:$L$9926,$I$39:$I$9926,">"&T13,$I$39:$I$9926,"<="&U13) -> 0 | V26: 46465.4632 | W26: 197368.3856 | X26: 348016.2608 | Y26: 593801.682 | Z26: 996512.1912 | AA26: 1715221.064 | AB26: 4025955.197 | AD26: Loss
R27: Cumulative Tax Paid | S27: =S26 -> 0 | T27: =S27+T26 -> 0 | U27: =T27+U26 -> 0 | V27: 46465.4632 | W27: 243833.8488 | X27: 591850.1096 | Y27: 1185651.792 | Z27: 2182163.983 | AA27: 3897385.047 | AB27: 7923340.244 | AD27: =(J30-L30)+(J34-L34) -> 5545007.044
R28: Number of Taxpayers | S28: =COUNTIFS($I$39:$I$9926,"<="&S13) -> 989 | T28: =COUNTIFS($I$39:$I$9926,">"&S13,$I$39:$I$9926,"<="&T13) -> 989 | U28: =COUNTIFS($I$39:$I$9926,">"&T13,$I$39:$I$9926,"<="&U13) -> 1043 | V28: =COUNTIFS($I$39:$I$9926,">"&U13,$I$39:$I$9926,"<="&V13) -> 944 | W28: 979 | X28: 989 | Y28: 988 | Z28: 989 | AA28: 989 | AB28: 989
I29: Undercollection | J29: =1-J30/J31 -> 0.09013015845 | L29: =J29 -> 0.09013015845 | R29: Share | S29: =S26/SUM($S$26:$AB$26) -> 0 | T29: =T26/SUM($S$26:$AB$26) -> 0 | U29: 0 | V29: 0.005864378125 | W29: 0.02490974507 | X29: 0.04392292267 | Y29: 0.07494335264 | Z29: 0.1257692035 | AA29: 0.2164770174 | AB29: 0.5081133806
I30: Collection | J30: =Data!G62*1000000 -> 11649000.17 | L30: =L31*J30/J31 -> 7209208.332
I31: Marshallese | J31: =SUMIF($D$39:$D$10860,"226",J39:J10860) -> 12802930.3 | L31: =SUMIF($D$39:$D$10860,"226",L39:L10860) -> 7923340.244 | R31: Gross Tax Savings | S31: =S22-S26 -> 0 | T31: =T22-T26 -> 5760.6432 | U31: 104781.4104 | V31: 222031.9232 | W31: 325811.9832 | X31: 329139.9912 | Y31: 400023.838 | Z31: 664343.4388 | AA31: 1101216.034 | AB31: 1726480.799
I33: Undercollection: | J33: =1-J34/J35 -> 0.06678363149 | R33: CPI Impact by Decile | S33: =CPI!Y15 -> -0.01247723616 | T33: =CPI!Z15 -> -0.01381122204 | U33: =CPI!AA15 -> -0.009151386978 | V33: =CPI!AB15 -> -0.006954672155 | W33: =CPI!AC15 -> 0.000322254468 | X33: =CPI!AD15 -> 0.002399348676 | Y33: =CPI!AE15 -> 0.002652651063 | Z33: =CPI!AF15 -> 0.003485208462 | AA33: =CPI!AG15 -> 0.007217567766 | AB33: =CPI!AH15 -> 0.009079848296
I34: Collection | J34: =(Data!G63*1000000)*H13/SUM(H13:H22) -> 3259308.175 | L34: =L35*J34/J35 -> 2154092.967 | R34: After Tax Income (old) | S34: =S13-S14 -> 849.7 | T34: 1952.42968 | U34: =U13-U14 -> 3436.8 | V34: =V13-V14 -> 5299.2 | W34: 6913.662 | X34: 8994.59528 | Y34: =Y13-Y14 -> 11605.4112 | Z34: =Z13-Z14 -> 14986.3232 | AA34: 20449.9024 | AB34: 146245.344
I35: Non-Marshallese in Marshallese Tax System | J35: =SUM(J9927:J11393) -> 3492553.587 | L35: =SUM(L9927:L11393) -> 2308246.018 | R35: After Tax Income (reform) | S35: =S13-S17 -> 849.7 | T35: 1986.554 | U35: =U13-U17 -> 3600 | V35: 5632.0008 | W35: 7246.4628 | X35: 9327.39608 | Y35: =Y13-Y17 -> 12141.95352 | Z35: =Z13-Z17 -> 15860.95672 | AA35: 21742.79752 | AB35: 153828.0112
I36: =COUNTIFS(I39:I9481,">"&6150) -> 5748 | J36: =I36/S8 -> 0.5813106796
I38: Annual | J38: Tax Paid | K38: Band | L38: Simulated Tax Liability | M38: After Tax Income | N38: Sim. After Tax Inc. | O38: Qtrs | P38: % Loss in Real Income | Q38: Decile | S38: Old After Tax Income | T38: Reform After Tax Inc | U38: CPI Impact | W38: Real Tax Saving
D39: 226 | I39: 181246.68 | J39: =IF(I39<=10400,IF(I39<5200,IF(I39<1560,0,(I39-1560)*0.08),I39*0.08),I39*0.08+(I39-10400)*0.12) -> 35001.336 | K39: =IF(I39>$S$6,$R$6,INDEX($R$3:$R$5,MATCH(I39,$S$3:$S$5,1))) -> 4 | L39: =INDEX($V$3:$V$6,MATCH(K39,$R$3:$R$6,0))+INDEX($U$3:$U$6,MATCH(K39,$R$3:$R$6,0))*(I39-INDEX($S$3:$S$6,MATCH(K39,$R$3:$R$6,0))) -> 27418.6688 | M39: =I39-J39 -> 146245.344 | N39: =I39-L39 -> 153828.0112 | O39: 4 | P39: =W39/S39 -> 0.04238425683 | Q39: Decile 10 | S39: =I39-J39 -> 146245.344 | T39: =I39-L39 -> 153828.0112 | U39: =INDEX($S$33:$AB$33,MATCH(Q39,$S$12:$AB$12,0)) -> 0.009079848296 | W39: =(T39/(1+U39)-S39) -> 6198.500221
D40: 226 | I40: 126330.2 | J40: =IF(I40<=10400,IF(I40<5200,IF(I40<1560,0,(I40-1560)*0.08),I40*0.08),I40*0.08+(I40-10400)*0.12) -> 24018.04 | K40: 4 | L40: 18632.032 | M40: =I40-J40 -> 102312.16 | N40: =I40-L40 -> 107698.168 | O40: 4 | P40: =W40/S40 -> 0.04317105716 | Q40: Decile 10 | S40: =I40-J40 -> 102312.16 | T40: =I40-L40 -> 107698.168 | U40: =INDEX($S$33:$AB$33,MATCH(Q40,$S$12:$AB$12,0)) -> 0.009079848296 | W40: =(T40/(1+U40)-S40) -> 4416.924108
D41: 226 | I41: 121499 | J41: 23051.8 | K41: 4 | L41: 17859.04 | M41: 98447.2 | N41: 103639.96 | O41: 4 | P41: 0.04327388141 | Q41: Decile 10 | S41: 98447.2 | T41: 103639.96 | U41: 0.009079848296 | W41: 4260.192458
D42: 226 | I42: 104647.84 | J42: 19681.568 | K42: 4 | L42: 15162.8544 | M42: 84966.272 | N42: 89484.9856 | O42: 4 | P42: 0.04370574939 | Q42: Decile 10 | S42: 84966.272 | T42: 89484.9856 | U42: 0.009079848296 | W42: 3713.514591
D43: 226 | I43: 102158.12 | J43: 19183.624 | K43: 4 | L43: 14764.4992 | M43: 82974.496 | N43: 87393.6208 | O43: 4 | P43: 0.04378145542 | Q43: Decile 10 | S43: 82974.496 | T43: 87393.6208 | U43: 0.009079848296 | W43: 3632.744198
D44: 226 | I44: 101462.76 | J44: 19044.552 | K44: 4 | L44: 14653.2416 | M44: 82418.208 | N44: 86809.5184 | O44: 4 | P44: 0.04380325324 | Q44: Decile 10 | S44: 82418.208 | T44: 86809.5184 | U44: 0.009079848296 | W44: 3610.185637
D45: 226 | I45: 97765.29 | J45: 18305.058 | K45: 4 | L45: 14061.6464 | M45: 79460.232 | N45: 83703.6436 | O45: 4 | P45: 0.04392428596 | Q45: Decile 10 | S45: 79460.232 | T45: 83703.6436 | U45: 0.009079848296 | W45: 3490.233953
D46: 226 | I46: 97481.39 | J46: 18248.278 | K46: 4 | L46: 14016.2224 | M46: 79233.112 | N46: 83465.1676 | O46: 4 | P46: 0.0439339527 | Q46: Decile 10 | S46: 79233.112 | T46: 83465.1676 | U46: 0.009079848296 | W46: 3481.023795
D47: 226 | I47: 93936.54 | J47: 17539.308 | K47: 4 | L47: 13449.0464 | M47: 76397.232 | N47: 80487.4936 | O47: 4 | P47: 0.04405949344 | Q47: Decile 10 | S47: 76397.232 | T47: 80487.4936 | U47: 0.009079848296 | W47: 3366.023342
D48: 226 | I48: 91312.37 | J48: 17014.474 | K48: 4 | L48: 13029.1792 | M48: 74297.896 | N48: 78283.1908 | O48: 4 | P48: 0.0441586015 | Q48: Decile 10 | S48: 74297.896 | T48: 78283.1908 | U48: 0.009079848296 | W48: 3280.891181
D49: 226 | I49: 90257.26 | J49: 16803.452 | K49: 4 | L49: 12860.3616 | M49: 73453.808 | N49: 77396.8984 | O49: 4 | P49: 0.04420004706 | Q49: Decile 10 | S49: 73453.808 | T49: 77396.8984 | U49: 0.009079848296 | W49: 3246.66177
D50: 226 | I50: 89460 | J50: 16644 | K50: 4 | L50: 12732.8 | M50: 72816 | N50: 76727.2 | O50: 4 | P50: 0.04423200141 | Q50: Decile 10 | S50: 72816 | T50: 76727.2 | U50: 0.009079848296 | W50: 3220.797415
D51: 226 | I51: 89104 | J51: 16572.8 | K51: 4 | L51: 12675.84 | M51: 72531.2 | N51: 76428.16 | O51: 4 | P51: 0.04424645146 | Q51: Decile 10 | S51: 72531.2 | T51: 76428.16 | U51: 0.009079848296 | W51: 3209.24822
D52: 226 | I52: 83412.02 | J52: 15434.404 | K52: 4 | L52: 11765.1232 | M52: 67977.616 | N52: 71646.8968 | O52: 4 | P52: 0.04449393352 | Q52: Decile 10 | S52: 67977.616 | T52: 71646.8968 | U52: 0.009079848296 | W52: 3024.591527
D53: 226 | I53: 83077 | J53: 15367.4 | K53: 4 | L53: 11711.52 | M53: 67709.6 | N53: 71365.48 | O53: 4 | P53: 0.04450953715 | Q53: Decile 10 | S53: 67709.6 | T53: 71365.48 | U53: 0.009079848296 | W53: 3013.722957
D54: 226 | I54: 82617.68 | J54: 15275.536 | K54: 4 | L54: 11638.0288 | M54: 67342.144 | N54: 70979.6512 | O54: 4 | P54: 0.04453113196 | Q54: Decile 10 | S54: 67342.144 | T54: 70979.6512 | U54: 0.009079848296 | W54: 2998.821901
D55: 226 | I55: 81961.04 | J55: 15144.208 | K55: 4 | L55: 11532.9664 | M55: 66816.832 | N55: 70428.0736 | O55: 4 | P55: 0.0445624162 | Q55: Decile 10 | S55: 66816.832 | T55: 70428.0736 | U55: 0.009079848296 | W55: 2977.519477
D56: 226 | I56: 81542.72 | J56: 15060.544 | K56: 4 | L56: 11466.0352 | M56: 66482.176 | N56: 70076.6848 | O56: 4 | P56: 0.04458260398 | Q56: Decile 10 | S56: 66482.176 | T56: 70076.6848 | U56: 0.009079848296 | W56: 2963.948525
D57: 226 | I57: 81014.31 | J57: 14954.862 | K57: 4 | L57: 11381.4896 | M57: 66059.448 | N57: 69632.8204 | O57: 4 | P57: 0.04460839699 | Q57: Decile 10 | S57: 66059.448 | T57: 69632.8204 | U57: 0.009079848296 | W57: 2946.806081
D58: 226 | I58: 79999.92 | J58: 14751.984 | K58: 4 | L58: 11219.1872 | M58: 65247.936 | N58: 68780.7328 | O58: 4 | P58: 0.04465884853 | Q58: Decile 10 | S58: 65247.936 | T58: 68780.7328 | U58: 0.009079848296 | W58: 2913.897691
D59: 226 | I59: 79999.92 | J59: 14751.984 | K59: 4 | L59: 11219.1872 | M59: 65247.936 | N59: 68780.7328 | O59: 4 | P59: 0.04465884853 | Q59: Decile 10 | S59: 65247.936 | T59: 68780.7328 | U59: 0.009079848296 | W59: 2913.897691
D60: 226 | I60: 77730 | J60: 14298 | K60: 4 | L60: 10856 | M60: 63432 | N60: 66874 | O60: 4 | P60: 0.04477642123 | Q60: Decile 10 | S60: 63432 | T60: 66874 | U60: 0.009079848296 | W60: 2840.257952
D61: 226 | I61: 77008.63 | J61: 14153.726 | K61: 4 | L61: 10740.5808 | M61: 62854.904 | N61: 66268.0492 | O61: 4 | P61: 0.04481520783 | Q61: Decile 10 | S61: 62854.904 | T61: 66268.0492 | U61: 0.009079848296 | W61: 2816.855586
D62: 226 | I62: 75000.12 | J62: 13752.024 | K62: 4 | L62: 10419.2192 | M62: 61248.096 | N62: 64580.9008 | O62: 4 | P62: 0.044927052 | Q62: Decile 10 | S62: 61248.096 | T62: 64580.9008 | U62: 0.009079848296 | W62: 2751.696394
D63: 226 | I63: 74409.4 | J63: 13633.88 | K63: 4 | L63: 10324.704 | M63: 60775.52 | N63: 64084.696 | O63: 4 | P63: 0.04496107179 | Q63: Decile 10 | S63: 60775.52 | T63: 64084.696 | U63: 0.009079848296 | W63: 2732.532518
D64: 226 | I64: 73500.06 | J64: 13452.012 | K64: 4 | L64: 10179.2096 | M64: 60048.048 | N64: 63320.8504 | O64: 4 | P64: 0.0450144876 | Q64: Decile 10 | S64: 60048.048 | T64: 63320.8504 | U64: 0.009079848296 | W64: 2703.032112
D65: 226 | I65: 73262.8 | J65: 13404.56 | K65: 4 | L65: 10141.248 | M65: 59858.24 | N65: 63121.552 | O65: 4 | P65: 0.04502863814 | Q65: Decile 10 | S65: 59858.24 | T65: 63121.552 | U65: 0.009079848296 | W65: 2695.335028
D66: 226 | I66: 72500 | J66: 13252 | K66: 4 | L66: 10019.2 | M66: 59248 | N66: 62480.8 | O66: 4 | P66: 0.04507474697 | Q66: Decile 10 | S66: 59248 | T66: 62480.8 | U66: 0.009079848296 | W66: 2670.588609
D67: 226 | I67: 72249.02 | J67: 13201.804 | K67: 4 | L67: 9979.0432 | M67: 59047.216 | N67: 62269.9768 | O67: 4 | P67: 0.04509012629 | Q67: Decile 10 | S67: 59047.216 | T67: 62269.9768 | U67: 0.009079848296 | W67: 2662.446427
D68: 226 | I68: 71923.14 | J68: 13136.628 | K68: 4 | L68: 9926.9024 | M68: 58786.512 | N68: 61996.2376 | O68: 4 | P68: 0.04511025203 | Q68: Decile 10 | S68: 58786.512 | T68: 61996.2376 | U68: 0.009079848296 | W68: 2651.874372
D69: 226 | I69: 71373.25 | J69: 13026.65 | K69: 4 | L69: 9838.92 | M69: 58346.6 | N69: 61534.33 | O69: 4 | P69: 0.04514461999 | Q69: Decile 10 | S69: 58346.6 | T69: 61534.33 | U69: 0.009079848296 | W69: 2634.035084
D70: 226 | I70: 70952.88 | J70: 12942.576 | K70: 4 | L70: 9771.6608 | M70: 58010.304 | N70: 61181.2192 | O70: 4 | P70: 0.04517124453 | Q70: Decile 10 | S70: 58010.304 | T70: 61181.2192 | U70: 0.009079848296 | W70: 2620.397627
D71: 226 | I71: 70371.27 | J71: 12826.254 | K71: 4 | L71: 9678.6032 | M71: 57545.016 | N71: 60692.6668 | O71: 4 | P71: 0.04520859449 | Q71: Decile 10 | S71: 57545.016 | T71: 60692.6668 | U71: 0.009079848296 | W71: 2601.529293
D72: 226 | I72: 70000.06 | J72: 12752.012 | K72: 4 | L72: 9619.2096 | M72: 57248.048 | N72: 60380.8504 | O72: 4 | P72: 0.04523275034 | Q72: Decile 10 | S72: 57248.048 | T72: 60380.8504 | U72: 0.009079848296 | W72: 2589.486663
D73: 226 | I73: 69984.78 | J73: 12748.956 | K73: 4 | L73: 9616.7648 | M73: 57235.824 | N73: 60368.0152 | O73: 4 | P73: 0.04523375004 | Q73: Decile 10 | S73: 57235.824 | T73: 60368.0152 | U73: 0.009079848296 | W73: 2588.990956
D74: 226 | I74: 69230.79 | J74: 12598.158 | K74: 4 | L74: 9496.1264 | M74: 56632.632 | N74: 59734.6636 | O74: 4 | P74: 0.04528361575 | Q74: Decile 10 | S74: 56632.632 | T74: 59734.6636 | U74: 0.009079848296 | W74: 2564.530346
D75: 226 | I75: 68958.1 | J75: 12543.62 | K75: 4 | L75: 9452.496 | M75: 56414.48 | N75: 59505.604 | O75: 4 | P75: 0.04530191288 | Q75: Decile 10 | S75: 56414.48 | T75: 59505.604 | U75: 0.009079848296 | W75: 2555.683858
D76: 226 | I76: 68743.53 | J76: 12500.706 | K76: 4 | L76: 9418.1648 | M76: 56242.824 | N76: 59325.3652 | O76: 4 | P76: 0.04531641002 | Q76: Decile 10 | S76: 56242.824 | T76: 59325.3652 | U76: 0.009079848296 | W76: 2548.722873
D77: 226 | I77: 68448.44 | J77: 12441.688 | K77: 4 | L77: 9370.9504 | M77: 56006.752 | N77: 59077.4896 | O77: 4 | P77: 0.04533649254 | Q77: Decile 10 | S77: 56006.752 | T77: 59077.4896 | U77: 0.009079848296 | W77: 2539.149694
D78: 226 | I78: 68128.99 | J78: 12377.798 | K78: 4 | L78: 9319.8384 | M78: 55751.192 | N78: 58809.1516 | O78: 4 | P78: 0.0453584246 | Q78: Decile 10 | S78: 55751.192 | T78: 58809.1516 | U78: 0.009079848296 | W78: 2528.786239
D79: 226 | I79: 67999.88 | J79: 12351.976 | K79: 4 | L79: 9299.1808 | M79: 55647.904 | N79: 58700.6992 | O79: 4 | P79: 0.0453673459 | Q79: Decile 10 | S79: 55647.904 | T79: 58700.6992 | U79: 0.009079848296 | W79: 2524.597709
D80: 226 | I80: 67211.06 | J80: 12194.212 | K80: 4 | L80: 9172.9696 | M80: 55016.848 | N80: 58038.0904 | O80: 4 | P80: 0.04542257965 | Q80: Decile 10 | S80: 55016.848 | T80: 58038.0904 | U80: 0.009079848296 | W80: 2499.007161
D81: 226 | I81: 65849.28 | J81: 11921.856 | K81: 4 | L81: 8955.0848 | M81: 53927.424 | N81: 56894.1952 | O81: 4 | P81: 0.04552097458 | Q81: Decile 10 | S81: 53927.424 | T81: 56894.1952 | U81: 0.009079848296 | W81: 2454.828897
D82: 226 | I82: 64765.74 | J82: 11705.148 | K82: 4 | L82: 8781.7184 | M82: 53060.592 | N82: 55984.0216 | O82: 4 | P82: 0.04560215183 | Q82: Decile 10 | S82: 53060.592 | T82: 55984.0216 | U82: 0.009079848296 | W82: 2419.677172
D83: 226 | I83: 63343.41 | J83: 11420.682 | K83: 4 | L83: 8554.1456 | M83: 51922.728 | N83: 54789.2644 | O83: 4 | P83: 0.04571282489 | Q83: Decile 10 | S83: 51922.728 | T83: 54789.2644 | U83: 0.009079848296 | W83: 2373.534573
D84: 226 | I84: 63301.5 | J84: 11412.3 | K84: 4 | L84: 8547.44 | M84: 51889.2 | N84: 54754.06 | O84: 4 | P84: 0.04571615957 | Q84: Decile 10 | S84: 51889.2 | T84: 54754.06 | U84: 0.009079848296 | W84: 2372.174947
D85: 226 | I85: 62091.48 | J85: 11170.296 | K85: 4 | L85: 8353.8368 | M85: 50921.184 | N85: 53737.6432 | O85: 4 | P85: 0.0458143317 | Q85: Decile 10 | S85: 50921.184 | T85: 53737.6432 | U85: 0.009079848296 | W85: 2332.920014
D86: 226 | I86: 61260.81 | J86: 11004.162 | K86: 4 | L86: 8220.9296 | M86: 50256.648 | N86: 53039.8804 | O86: 4 | P86: 0.04588391542 | Q86: Decile 10 | S86: 50256.648 | T86: 53039.8804 | U86: 0.009079848296 | W86: 2305.971786
D87: 226 | I87: 61216.96 | J87: 10995.392 | K87: 4 | L87: 8213.9136 | M87: 50221.568 | N87: 53003.0464 | O87: 4 | P87: 0.04588763983 | Q87: Decile 10 | S87: 50221.568 | T87: 53003.0464 | U87: 0.009079848296 | W87: 2304.549224
D88: 226 | I88: 61053.07 | J88: 10962.614 | K88: 4 | L88: 8187.6912 | M88: 50090.456 | N88: 52865.3788 | O88: 4 | P88: 0.04590160603 | Q88: Decile 10 | S88: 50090.456 | T88: 52865.3788 | U88: 0.009079848296 | W88: 2299.232377
D89: 226 | I89: 61000 | J89: 10952 | K89: 4 | L89: 8179.2 | M89: 50048 | N89: 52820.8 | O89: 4 | P89: 0.04590614418 | Q89: Decile 10 | S89: 50048 | T89: 52820.8 | U89: 0.009079848296 | W89: 2297.510704
D90: 226 | I90: 60632.62 | J90: 10878.524 | K90: 4 | L90: 8120.4192 | M90: 49754.096 | N90: 52512.2008 | O90: 4 | P90: 0.04593777213 | Q90: Decile 10 | S90: 49754.096 | T90: 52512.2008 | U90: 0.009079848296 | W90: 2285.592325
D91: 226 | I91: 60400.05 | J91: 10832.01 | K91: 4 | L91: 8083.208 | M91: 49568.04 | N91: 52316.842 | O91: 4 | P91: 0.04595798809 | Q91: Decile 10 | S91: 49568.04 | T91: 52316.842 | U91: 0.009079848296 | W91: 2278.047392
D92: 226 | I92: 60029.62 | J92: 10757.924 | K92: 4 | L92: 8023.9392 | M92: 49271.696 | N92: 52005.6808 | O92: 4 | P92: 0.04599050266 | Q92: Decile 10 | S92: 49271.696 | T92: 52005.6808 | U92: 0.009079848296 | W92: 2266.030066
D93: 226 | I93: 59711.18 | J93: 10694.236 | K93: 4 | L93: 7972.9888 | M93: 49016.944 | N93: 51738.1912 | O93: 4 | P93: 0.04601876805 | Q93: Decile 10 | S93: 49016.944 | T93: 51738.1912 | U93: 0.009079848296 | W93: 2255.699376
D94: 226 | I94: 59130.95 | J94: 10578.19 | K94: 4 | L94: 7880.152 | M94: 48552.76 | N94: 51250.798 | O94: 4 | P94: 0.04607103307 | Q94: Decile 10 | S94: 48552.76 | T94: 51250.798 | U94: 0.009079848296 | W94: 2236.875812
D95: 226 | I95: 58250.32 | J95: 10402.064 | K95: 4 | L95: 7739.2512 | M95: 47848.256 | N95: 50511.0688 | O95: 4 | P95: 0.04615229453 | Q95: Decile 10 | S95: 47848.256 | T95: 50511.0688 | U95: 0.009079848296 | W95: 2208.306804
D96: 226 | I96: 57348.8 | J96: 10221.76 | K96: 4 | L96: 7595.008 | M96: 47127.04 | N96: 49753.792 | O96: 4 | P96: 0.04623800033 | Q96: Decile 10 | S96: 47127.04 | T96: 49753.792 | U96: 0.009079848296 | W96: 2179.060091
D97: 226 | I97: 57304 | J97: 10212.8 | K97: 4 | L97: 7587.84 | M97: 47091.2 | N97: 49716.16 | O97: 4 | P97: 0.04624232785 | Q97: Decile 10 | S97: 47091.2 | T97: 49716.16 | U97: 0.009079848296 | W97: 2177.606709
D98: 226 | I98: 57115.42 | J98: 10175.084 | K98: 4 | L98: 7557.6672 | M98: 46940.336 | N98: 49557.7528 | O98: 4 | P98: 0.04626061647 | Q98: Decile 10 | S98: 46940.336 | T98: 49557.7528 | U98: 0.009079848296 | W98: 2171.488881
D99: 226 | I99: 56867.43 | J99: 10125.486 | K99: 4 | L99: 7517.9888 | M99: 46741.944 | N99: 49349.4412 | O99: 4 | P99: 0.04628484641 | Q99: Decile 10 | S99: 46741.944 | T99: 49349.4412 | U99: 0.009079848296 | W99: 2163.443699
D100: 226 | I100: 56730.91 | J100: 10098.182 | K100: 4 | L100: 7496.1456 | M100: 46632.728 | N100: 49234.7644 | O100: 4 | P100: 0.04629827312 | Q100: Decile 10 | S100: 46632.728 | T100: 49234.7644 | U100: 0.009079848296 | W100: 2159.014777
D101: 226 | I101: 56542.4 | J101: 10060.48 | K101: 4 | L101: 7465.984 | M101: 46481.92 | N101: 49076.416 | O101: 4 | P101: 0.04631691676 | Q101: Decile 10 | S101: 46481.92 | T101: 49076.416 | U101: 0.009079848296 | W101: 2152.89922
D102: 226 | I102: 56540.78 | J102: 10060.156 | K102: 4 | L102: 7465.7248 | M102: 46480.624 | N102: 49075.0552 | O102: 4 | P102: 0.0463170775 | Q102: Decile 10 | S102: 46480.624 | T102: 49075.0552 | U102: 0.009079848296 | W102: 2152.846664
D103: 226 | I103: 56478.24 | J103: 10047.648 | K103: =IF(I103>$S$6,$R$6,INDEX($R$3:$R$5,MATCH(I103,$S$3:$S$5,1))) -> 4 | L103: =INDEX($V$3:$V$6,MATCH(K103,$R$3:$R$6,0))+INDEX($U$3:$U$6,MATCH(K103,$R$3:$R$6,0))*(I103-INDEX($S$3:$S$6,MATCH(K103,$R$3:$R$6,0))) -> 7455.7184 | M103: 46430.592 | N103: 49022.5216 | O103: 4 | P103: 0.04632328981 | Q103: Decile 10 | S103: 46430.592 | T103: 49022.5216 | U103: 0.009079848296 | W103: 2150.817769
D104: 226 | I104: 55628.14 | J104: =IF(I104<=10400,IF(I104<5200,IF(I104<1560,0,(I104-1560)*0.08),I104*0.08),I104*0.08+(I104-10400)*0.12) -> 9877.628 | K104: 4 | L104: 7319.7024 | M104: =I104-J104 -> 45750.512 | N104: =I104-L104 -> 48308.4376 | O104: 4 | P104: =W104/S104 -> 0.04640908066 | Q104: Decile 10 | S104: =I104-J104 -> 45750.512 | T104: =I104-L104 -> 48308.4376 | U104: =INDEX($S$33:$AB$33,MATCH(Q104,$S$12:$AB$12,0)) -> 0.009079848296 | W104: =(T104/(1+U104)-S104) -> 2123.239202
D105: 226 | I105: 55590.58 | J105: 9870.116 | K105: 4 | L105: 7313.6928 | M105: 45720.464 | N105: 48276.8872 | O105: 4 | P105: 0.04641293004 | Q105: Decile 10 | S105: 45720.464 | T105: 48276.8872 | U105: 0.009079848296 | W105: 2122.020697
D106: 226 | I106: 55565.26 | J106: 9865.052 | K106: 4 | L106: 7309.6416 | M106: 45700.208 | N106: 48255.6184 | O106: 3 | P106: 0.04641552784 | Q106: Decile 10 | S106: 45700.208 | T106: 48255.6184 | U106: 0.009079848296 | W106: 2121.199277
D107: 226 | I107: 55428.26 | J107: 9837.652 | K107: 4 | L107: 7287.7216 | M107: 45590.608 | N107: 48140.5384 | O107: 4 | P107: 0.04642962391 | Q107: Decile 10 | S107: 45590.608 | T107: 48140.5384 | U107: 0.009079848296 | W107: 2116.754783
D108: 226 | I108: 55328.92 | J108: 9817.784 | K108: 4 | L108: 7271.8272 | M108: 45511.136 | N108: 48057.0928 | O108: 4 | P108: 0.04643988757 | Q108: Decile 10 | S108: 45511.136 | T108: 48057.0928 | U108: 0.009079848296 | W108: 2113.532039
D109: 226 | I109: 55014.58 | J109: 9754.916 | K109: 4 | L109: 7221.5328 | M109: 45259.664 | N109: 47793.0472 | O109: 3 | P109: 0.04647260218 | Q109: Decile 10 | S109: 45259.664 | T109: 47793.0472 | U109: 0.009079848296 | W109: 2103.33436
D110: 226 | I110: 54985.3 | J110: 9749.06 | K110: 4 | L110: 7216.848 | M110: 45236.24 | N110: 47768.452 | O110: 4 | P110: 0.04647566799 | Q110: Decile 10 | S110: 45236.24 | T110: 47768.452 | U110: 0.009079848296 | W110: 2102.384471
D111: 226 | I111: 54687.98 | J111: 9689.596 | K111: 4 | L111: 7169.2768 | M111: 44998.384 | N111: 47518.7032 | O111: 4 | P111: 0.04650698006 | Q111: Decile 10 | S111: 44998.384 | T111: 47518.7032 | U111: 0.009079848296 | W111: 2092.738948
D112: 226 | I112: 54244.39 | J112: 9600.878 | K112: 4 | L112: 7098.3024 | M112: 44643.512 | N112: 47146.0876 | O112: 4 | P112: 0.04655431672 | Q112: Decile 10 | S112: 44643.512 | T112: 47146.0876 | U112: 0.009079848296 | W112: 2078.348197
D113: 226 | I113: 53913.42 | J113: 9534.684 | K113: 4 | L113: 7045.3472 | M113: 44378.736 | N113: 46868.0728 | O113: 4 | P113: 0.04659012855 | Q113: Decile 10 | S113: 44378.736 | T113: 46868.0728 | U113: 0.009079848296 | W113: 2067.611015
D114: 226 | I114: 53846.16 | J114: 9521.232 | K114: 4 | L114: 7034.5856 | M114: 44324.928 | N114: 46811.5744 | O114: 4 | P114: 0.04659745857 | Q114: Decile 10 | S114: 44324.928 | T114: 46811.5744 | U114: 0.009079848296 | W114: 2065.428996
D115: 226 | I115: 53473.2 | J115: 9446.64 | K115: 4 | L115: 6974.912 | M115: 44026.56 | N115: 46498.288 | O115: 4 | P115: 0.04663842901 | Q115: Decile 10 | S115: 44026.56 | T115: 46498.288 | U115: 0.009079848296 | W115: 2053.329593
D116: 226 | I116: 53405.66 | J116: 9433.132 | K116: 4 | L116: 6964.1056 | M116: 43972.528 | N116: 46441.5544 | O116: 4 | P116: 0.04664590788 | Q116: Decile 10 | S116: 43972.528 | T116: 46441.5544 | U116: 0.009079848296 | W116: 2051.13849
D117: 226 | I117: 52898.86 | J117: 9331.772 | K117: 4 | L117: 6883.0176 | M117: 43567.088 | N117: 46015.8424 | O117: 4 | P117: 0.04670261894 | Q117: Decile 10 | S117: 43567.088 | T117: 46015.8424 | U117: 0.009079848296 | W117: 2034.697109
D118: 226 | I118: 52776.77 | J118: 9307.354 | K118: 4 | L118: 6863.4832 | M118: 43469.416 | N118: 45913.2868 | O118: 4 | P118: 0.04671643897 | Q118: Decile 10 | S118: 43469.416 | T118: 45913.2868 | U118: 0.009079848296 | W118: 2030.736319
D119: 226 | I119: 52677.68 | J119: 9287.536 | K119: 4 | L119: 6847.6288 | M119: 43390.144 | N119: 45830.0512 | O119: 4 | P119: 0.04672770124 | Q119: Decile 10 | S119: 43390.144 | T119: 45830.0512 | U119: 0.009079848296 | W119: 2027.521686
D120: 226 | I120: 52579 | J120: 9267.8 | K120: 4 | L120: 6831.84 | M120: 43311.2 | N120: 45747.16 | O120: 4 | P120: 0.04673895789 | Q120: Decile 10 | S120: 43311.2 | T120: 45747.16 | U120: 0.009079848296 | W120: 2024.320353
D121: 226 | I121: 52455.86 | J121: 9243.172 | K121: 4 | L121: 6812.1376 | M121: 43212.688 | N121: 45643.7224 | O121: 4 | P121: 0.04675306242 | Q121: Decile 10 | S121: 43212.688 | T121: 45643.7224 | U121: 0.009079848296 | W121: 2020.325499
D122: 226 | I122: 52375.08 | J122: 9227.016 | K122: 4 | L122: 6799.2128 | M122: 43148.064 | N122: 45575.8672 | O122: 4 | P122: 0.04676235 | Q122: Decile 10 | S122: 43148.064 | T122: 45575.8672 | U122: 0.009079848296 | W122: 2017.70487
D123: 226 | I123: 52138.2 | J123: 9179.64 | K123: 4 | L123: 6761.312 | M123: 42958.56 | N123: 45376.888 | O123: 4 | P123: 0.04678974608 | Q123: Decile 10 | S123: 42958.56 | T123: 45376.888 | U123: 0.009079848296 | W123: 2010.020114
D124: 226 | I124: 51985.84 | J124: 9149.168 | K124: 4 | L124: 6736.9344 | M124: 42836.672 | N124: 45248.9056 | O124: 4 | P124: 0.0468074952 | Q124: Decile 10 | S124: 42836.672 | T124: 45248.9056 | U124: 0.009079848296 | W124: 2005.077319
D125: 226 | I125: 51950.8 | J125: 9142.16 | K125: 4 | L125: 6731.328 | M125: 42808.64 | N125: 45219.472 | O125: 4 | P125: 0.04681159146 | Q125: Decile 10 | S125: 42808.64 | T125: 45219.472 | U125: 0.009079848296 | W125: 2003.940567
D126: 226 | I126: 51894.53 | J126: 9130.906 | K126: 4 | L126: 6722.3248 | M126: 42763.624 | N126: 45172.2052 | O126: 4 | P126: 0.0468181808 | Q126: Decile 10 | S126: 42763.624 | T126: 45172.2052 | U126: 0.009079848296 | W126: 2002.11508
D127: 226 | I127: 51596.04 | J127: 9071.208 | K127: 4 | L127: 6674.5664 | M127: 42524.832 | N127: 44921.4736 | O127: 4 | P127: 0.04685336793 | Q127: Decile 10 | S127: 42524.832 | T127: 44921.4736 | U127: 0.009079848296 | W127: 1992.4316
D128: 226 | I128: 51515.03 | J128: 9055.006 | K128: 4 | L128: 6661.6048 | M128: 42460.024 | N128: 44853.4252 | O128: 4 | P128: 0.04686298598 | Q128: Decile 10 | S128: 42460.024 | T128: 44853.4252 | U128: 0.009079848296 | W128: 1989.803509
D129: 226 | I129: 51316.39 | J129: 9015.278 | K129: 4 | L129: 6629.8224 | M129: 42301.112 | N129: 44686.5676 | O129: 4 | P129: 0.04688669458 | Q129: Decile 10 | S129: 42301.112 | T129: 44686.5676 | U129: 0.009079848296 | W129: 1983.359319
D130: 226 | I130: 51255.31 | J130: 9003.062 | K130: 4 | L130: 6620.0496 | M130: 42252.248 | N130: 44635.2604 | O130: 4 | P130: 0.0468940206 | Q130: Decile 10 | S130: 42252.248 | T130: 44635.2604 | U130: 0.009079848296 | W130: 1981.377788
D131: 226 | I131: 50764.86 | J131: 8904.972 | K131: 4 | L131: 6541.5776 | M131: 41859.888 | N131: 44223.2824 | O131: 4 | P131: 0.04695346597 | Q131: Decile 10 | S131: 41859.888 | T131: 44223.2824 | U131: 0.009079848296 | W131: 1965.466827
D132: 226 | I132: 50725.64 | J132: 8897.128 | K132: 4 | L132: 6535.3024 | M132: 41828.512 | N132: 44190.3376 | O132: 4 | P132: 0.04695826781 | Q132: Decile 10 | S132: 41828.512 | T132: 44190.3376 | U132: 0.009079848296 | W132: 1964.194469
D133: 226 | I133: 50567.12 | J133: 8865.424 | K133: 4 | L133: 6509.9392 | M133: 41701.696 | N133: 44057.1808 | O133: 4 | P133: 0.04697774961 | Q133: Decile 10 | S133: 41701.696 | T133: 44057.1808 | U133: 0.009079848296 | W133: 1959.051833
D134: 226 | I134: 50446.08 | J134: 8841.216 | K134: 4 | L134: 6490.5728 | M134: 41604.864 | N134: 43955.5072 | O134: 4 | P134: 0.04699270516 | Q134: Decile 10 | S134: 41604.864 | T134: 43955.5072 | U134: 0.009079848296 | W134: 1955.125107
D135: 226 | I135: 50328.74 | J135: 8817.748 | K135: 4 | L135: 6471.7984 | M135: 41510.992 | N135: 43856.9416 | O135: 4 | P135: 0.04700727014 | Q135: Decile 10 | S135: 41510.992 | T135: 43856.9416 | U135: 0.009079848296 | W135: 1951.318415
D136: 226 | I136: 50098.16 | J136: 8771.632 | K136: 4 | L136: 6434.9056 | M136: 41326.528 | N136: 43663.2544 | O136: 4 | P136: 0.04703608396 | Q136: Decile 10 | S136: 41326.528 | T136: 43663.2544 | U136: 0.009079848296 | W136: 1943.838041
D137: 226 | I137: 50000.08 | J137: 8752.016 | K137: 4 | L137: 6419.2128 | M137: 41248.064 | N137: 43580.8672 | O137: 4 | P137: 0.04704841839 | Q137: Decile 10 | S137: 41248.064 | T137: 43580.8672 | U137: 0.009079848296 | W137: 1940.656173
D138: 226 | I138: 49992.6 | J138: 8750.52 | K138: 4 | L138: 6418.016 | M138: 41242.08 | N138: 43574.584 | O138: 4 | P138: 0.04704936099 | Q138: Decile 10 | S138: 41242.08 | T138: 43574.584 | U138: 0.009079848296 | W138: 1940.41351
D139: 226 | I139: 49930.91 | J139: 8738.182 | K139: 4 | L139: 6408.1456 | M139: 41192.728 | N139: 43522.7644 | O139: 4 | P139: 0.04705714538 | Q139: Decile 10 | S139: 41192.728 | T139: 43522.7644 | U139: 0.009079848296 | W139: 1938.41219
D140: 226 | I140: 49504 | J140: 8652.8 | K140: 4 | L140: 6339.84 | M140: 40851.2 | N140: 43164.16 | O140: 4 | P140: 0.04711153075 | Q140: Decile 10 | S140: 40851.2 | T140: 43164.16 | U140: 0.009079848296 | W140: 1924.562565
D141: 226 | I141: 49453.98 | J141: 8642.796 | K141: 4 | L141: 6331.8368 | M141: 40811.184 | N141: 43122.1432 | O141: 3 | P141: 0.04711796253 | Q141: Decile 10 | S141: 40811.184 | T141: 43122.1432 | U141: 0.009079848296 | W141: 1922.939838
D142: 226 | I142: 49410.61 | J142: 8634.122 | K142: 4 | L142: 6324.8976 | M142: 40776.488 | N142: 43085.7124 | O142: 4 | P142: 0.04712354944 | Q142: Decile 10 | S142: 40776.488 | T142: 43085.7124 | U142: 0.009079848296 | W142: 1921.532848
D143: 226 | I143: 49396.34 | J143: 8631.268 | K143: 4 | L143: 6322.6144 | M143: 40765.072 | N143: 43073.7256 | O143: 4 | P143: 0.04712538977 | Q143: Decile 10 | S143: 40765.072 | T143: 43073.7256 | U143: 0.009079848296 | W143: 1921.069907
D144: 226 | I144: 49308.17 | J144: 8613.634 | K144: 4 | L144: 6308.5072 | M144: 40694.536 | N144: 42999.6628 | O144: 4 | P144: 0.04713678355 | Q144: Decile 10 | S144: 40694.536 | T144: 42999.6628 | U144: 0.009079848296 | W144: 1918.209535
D145: 226 | I145: 49219.99 | J145: 8595.998 | K145: 4 | L145: 6294.3984 | M145: 40623.992 | N145: 42925.5916 | O145: 4 | P145: 0.04714821819 | Q145: Decile 10 | S145: 40623.992 | T145: 42925.5916 | U145: 0.009079848296 | W145: 1915.348839
D146: 226 | I146: 48988.71 | J146: 8549.742 | K146: 4 | L146: 6257.3936 | M146: 40438.968 | N146: 42731.3164 | O146: 4 | P146: 0.0471783987 | Q146: Decile 10 | S146: 40438.968 | T146: 42731.3164 | U146: 0.009079848296 | W146: 1907.845755
D147: 226 | I147: 48922.93 | J147: 8536.586 | K147: 4 | L147: 6246.8688 | M147: 40386.344 | N147: 42676.0612 | O147: 4 | P147: 0.04718703306 | Q147: Decile 10 | S147: 40386.344 | T147: 42676.0612 | U147: 0.009079848296 | W147: 1905.71175
D148: 226 | I148: 48838.83 | J148: 8519.766 | K148: 4 | L148: 6233.4128 | M148: 40319.064 | N148: 42605.4172 | O148: 4 | P148: 0.04719810496 | Q148: Decile 10 | S148: 40319.064 | T148: 42605.4172 | U148: 0.009079848296 | W148: 1902.983415
D149: 226 | I149: 48615.86 | J149: 8475.172 | K149: 4 | L149: 6197.7376 | M149: 40140.688 | N149: 42418.1224 | O149: 4 | P149: 0.04722763897 | Q149: Decile 10 | S149: 40140.688 | T149: 42418.1224 | U149: 0.009079848296 | W149: 1895.749921
D150: 226 | I150: 48495.26 | J150: 8451.052 | K150: 4 | L150: 6178.4416 | M150: 40044.208 | N150: 42316.8184 | O150: 4 | P150: 0.04724372296 | Q150: Decile 10 | S150: 40044.208 | T150: 42316.8184 | U150: 0.009079848296 | W150: 1891.837469
D151: 226 | I151: 48430.22 | J151: 8438.044 | K151: 4 | L151: 6168.0352 | M151: 39992.176 | N151: 42262.1848 | O151: 4 | P151: 0.04725242933 | Q151: Decile 10 | S151: 39992.176 | T151: 42262.1848 | U151: 0.009079848296 | W151: 1889.72747
D152: 226 | I152: 48315.38 | J152: 8415.076 | K152: 4 | L152: 6149.6608 | M152: 39900.304 | N152: 42165.7192 | O152: 4 | P152: 0.04726785745 | Q152: Decile 10 | S152: 39900.304 | T152: 42165.7192 | U152: 0.009079848296 | W152: 1886.001882
D153: 226 | I153: 48279.62 | J153: 8407.924 | K153: 4 | L153: 6143.9392 | M153: 39871.696 | N153: 42135.6808 | O153: 4 | P153: 0.04727267613 | Q153: Decile 10 | S153: 39871.696 | T153: 42135.6808 | U153: 0.009079848296 | W153: 1884.841772
D154: 226 | I154: 48087.96 | J154: 8369.592 | K154: 4 | L154: 6113.2736 | M154: 39718.368 | N154: 41974.6864 | O154: 4 | P154: 0.0472986207 | Q154: Decile 10 | S154: 39718.368 | T154: 41974.6864 | U154: 0.009079848296 | W154: 1878.624023
D155: 226 | I155: 48061.08 | J155: 8364.216 | K155: 4 | L155: 6108.9728 | M155: 39696.864 | N155: 41952.1072 | O155: 4 | P155: 0.04730227541 | Q155: Decile 10 | S155: 39696.864 | T155: 41952.1072 | U155: 0.009079848296 | W155: 1877.751994
D156: 226 | I156: 48046.2 | J156: 8361.24 | K156: 4 | L156: 6106.592 | M156: 39684.96 | N156: 41939.608 | O156: 4 | P156: 0.04730430025 | Q156: Decile 10 | S156: 39684.96 | T156: 41939.608 | U156: 0.009079848296 | W156: 1877.269263
D157: 226 | I157: 47808.64 | J157: 8313.728 | K157: 4 | L157: 6068.5824 | M157: 39494.912 | N157: 41740.0576 | O157: 4 | P157: 0.04733679232 | Q157: Decile 10 | S157: 39494.912 | T157: 41740.0576 | U157: 0.009079848296 | W157: 1869.562447
D158: 226 | I158: 47228.65 | J158: 8197.73 | K158: 4 | L158: 5975.784 | M158: 39030.92 | N158: 41252.866 | O158: 4 | P158: 0.04741744926 | Q158: Decile 10 | S158: 39030.92 | T158: 41252.866 | U158: 0.009079848296 | W158: 1850.746669
D159: 226 | I159: 47164.58 | J159: 8184.916 | K159: 4 | L159: 5965.5328 | M159: 38979.664 | N159: 41199.0472 | O159: 4 | P159: 0.047426477 | Q159: Decile 10 | S159: 38979.664 | T159: 41199.0472 | U159: 0.009079848296 | W159: 1848.668138
D160: 226 | I160: 46959.97 | J160: 8143.994 | K160: 4 | L160: 5932.7952 | M160: 38815.976 | N160: 41027.1748 | O160: 4 | P160: 0.04745546707 | Q160: Decile 10 | S160: 38815.976 | T160: 41027.1748 | U160: 0.009079848296 | W160: 1842.030271
D161: 226 | I161: 46783.89 | J161: 8108.778 | K161: 4 | L161: 5904.6224 | M161: 38675.112 | N161: 40879.2676 | O161: 4 | P161: 0.04748061135 | Q161: Decile 10 | S161: 38675.112 | T161: 40879.2676 | U161: 0.009079848296 | W161: 1836.317962
D162: 226 | I162: 46783.24 | J162: 8108.648 | K162: 4 | L162: 5904.5184 | M162: 38674.592 | N162: 40878.7216 | O162: 3 | P162: 0.04748070451 | Q162: Decile 10 | S162: 38674.592 | T162: 40878.7216 | U162: 0.009079848296 | W162: 1836.296875
D163: 226 | I163: 46720.8 | J163: 8096.16 | K163: 4 | L163: 5894.528 | M163: 38624.64 | N163: 40826.272 | O163: 4 | P163: 0.04748966525 | Q163: Decile 10 | S163: 38624.64 | T163: 40826.272 | U163: 0.009079848296 | W163: 1834.271224
D164: 226 | I164: 46696.24 | J164: 8091.248 | K164: 4 | L164: 5890.5984 | M164: 38604.992 | N164: 40805.6416 | O164: 4 | P164: 0.0474931962 | Q164: Decile 10 | S164: 38604.992 | T164: 40805.6416 | U164: 0.009079848296 | W164: 1833.474459
D165: 226 | I165: 46665.33 | J165: 8085.066 | K165: 4 | L165: 5885.6528 | M165: 38580.264 | N165: 40779.6772 | O165: 4 | P165: 0.04749764519 | Q165: Decile 10 | S165: 38580.264 | T165: 40779.6772 | U165: 0.009079848296 | W165: 1832.471691
D166: 226 | I166: 46153.68 | J166: 7982.736 | K166: 4 | L166: 5803.7888 | M166: 38170.944 | N166: 40349.8912 | O166: 4 | P166: 0.04757212628 | Q166: Decile 10 | S166: 38170.944 | T166: 40349.8912 | U166: 0.009079848296 | W166: 1815.872968
D167: 226 | I167: 46060.68 | J167: 7964.136 | K167: =IF(I167>$S$6,$R$6,INDEX($R$3:$R$5,MATCH(I167,$S$3:$S$5,1))) -> 4 | L167: =INDEX($V$3:$V$6,MATCH(K167,$R$3:$R$6,0))+INDEX($U$3:$U$6,MATCH(K167,$R$3:$R$6,0))*(I167-INDEX($S$3:$S$6,MATCH(K167,$R$3:$R$6,0))) -> 5788.9088 | M167: 38096.544 | N167: 40271.7712 | O167: 4 | P167: 0.04758583622 | Q167: Decile 10 | S167: 38096.544 | T167: 40271.7712 | U167: 0.009079848296 | W167: 1812.855903
D168: 226 | I168: 46027.06 | J168: =IF(I168<=10400,IF(I168<5200,IF(I168<1560,0,(I168-1560)*0.08),I168*0.08),I168*0.08+(I168-10400)*0.12) -> 7957.412 | K168: 4 | L168: 5783.5296 | M168: =I168-J168 -> 38069.648 | N168: =I168-L168 -> 40243.5304 | O168: 4 | P168: =W168/S168 -> 0.04759080562 | Q168: Decile 10 | S168: =I168-J168 -> 38069.648 | T168: =I168-L168 -> 40243.5304 | U168: =INDEX($S$33:$AB$33,MATCH(Q168,$S$12:$AB$12,0)) -> 0.009079848296 | W168: =(T168/(1+U168)-S168) -> 1811.765218
D169: 226 | I169: 45935.59 | J169: 7939.118 | K169: 4 | L169: 5768.8944 | M169: 37996.472 | N169: 40166.6956 | O169: 4 | P169: 0.0476043615 | Q169: Decile 10 | S169: 37996.472 | T169: 40166.6956 | U169: 0.009079848296 | W169: 1808.797789
D170: 226 | I170: 45912.31 | J170: 7934.462 | K170: 4 | L170: 5765.1696 | M170: 37977.848 | N170: 40147.1404 | O170: 4 | P170: 0.04760781995 | Q170: Decile 10 | S170: 37977.848 | T170: 40147.1404 | U170: 0.009079848296 | W170: 1808.042549
D171: 226 | I171: 45866.19 | J171: 7925.238 | K171: 4 | L171: 5757.7904 | M171: 37940.952 | N171: 40108.3996 | O171: 4 | P171: 0.04761468149 | Q171: Decile 10 | S171: 37940.952 | T171: 40108.3996 | U171: 0.009079848296 | W171: 1806.546345
D172: 226 | I172: 45346.17 | J172: 7821.234 | K172: 4 | L172: 5674.5872 | M172: 37524.936 | N172: 39671.5828 | O172: 4 | P172: 0.04769298171 | Q172: Decile 10 | S172: 37524.936 | T172: 39671.5828 | U172: 0.009079848296 | W172: 1789.676086
D173: 226 | I173: 45259.64 | J173: 7803.928 | K173: 4 | L173: 5660.7424 | M173: 37455.712 | N173: 39598.8976 | O173: 4 | P173: 0.04770617946 | Q173: Decile 10 | S173: 37455.712 | T173: 39598.8976 | U173: 0.009079848296 | W173: 1786.868919
D174: 226 | I174: 45226.84 | J174: 7797.368 | K174: 4 | L174: 5655.4944 | M174: 37429.472 | N174: 39571.3456 | O174: 3 | P174: 0.04771119495 | Q174: Decile 10 | S174: 37429.472 | T174: 39571.3456 | U174: 0.009079848296 | W174: 1785.804835
D175: 226 | I175: 45206.14 | J175: 7793.228 | K175: 4 | L175: 5652.1824 | M175: 37412.912 | N175: 39553.9576 | O175: 4 | P175: 0.04771436383 | Q175: Decile 10 | S175: 37412.912 | T175: 39553.9576 | U175: 0.009079848296 | W175: 1785.133295
D176: 226 | I176: 45120.31 | J176: 7776.062 | K176: 4 | L176: 5638.4496 | M176: 37344.248 | N176: 39481.8604 | O176: 4 | P176: 0.0477275332 | Q176: Decile 10 | S176: 37344.248 | T176: 39481.8604 | U176: 0.009079848296 | W176: 1782.348836
D177: 226 | I177: 45117 | J177: 7775.4 | K177: 4 | L177: 5637.92 | M177: 37341.6 | N177: 39479.08 | O177: 4 | P177: 0.04772804205 | Q177: Decile 10 | S177: 37341.6 | T177: 39479.08 | U177: 0.009079848296 | W177: 1782.241455
D178: 226 | I178: 45085.03 | J178: 7769.006 | K178: 4 | L178: 5632.8048 | M178: 37316.024 | N178: 39452.2252 | O178: 4 | P178: 0.04773296046 | Q178: Decile 10 | S178: 37316.024 | T178: 39452.2252 | U178: 0.009079848296 | W178: 1781.204298
D179: 226 | I179: 45041.76 | J179: 7760.352 | K179: 4 | L179: 5625.8816 | M179: 37281.408 | N179: 39415.8784 | O179: 4 | P179: 0.04773962808 | Q179: Decile 10 | S179: 37281.408 | T179: 39415.8784 | U179: 0.009079848296 | W179: 1779.800552
D180: 226 | I180: 45000.02 | J180: 7752.004 | K180: 4 | L180: 5619.2032 | M180: 37248.016 | N180: 39380.8168 | O180: 4 | P180: 0.04774607167 | Q180: Decile 10 | S180: 37248.016 | T180: 39380.8168 | U180: 0.009079848296 | W180: 1778.446442
D181: 226 | I181: 45000.02 | J181: 7752.004 | K181: 4 | L181: 5619.2032 | M181: 37248.016 | N181: 39380.8168 | O181: 4 | P181: 0.04774607167 | Q181: Decile 10 | S181: 37248.016 | T181: 39380.8168 | U181: 0.009079848296 | W181: 1778.446442
D182: 226 | I182: 44906.19 | J182: 7733.238 | K182: 4 | L182: 5604.1904 | M182: 37172.952 | N182: 39301.9996 | O182: 4 | P182: 0.04776059889 | Q182: Decile 10 | S182: 37172.952 | T182: 39301.9996 | U182: 0.009079848296 | W182: 1775.40245
D183: 226 | I183: 44856.64 | J183: 7723.328 | K183: 4 | L183: 5596.2624 | M183: 37133.312 | N183: 39260.3776 | O183: 3 | P183: 0.04776829417 | Q183: Decile 10 | S183: 37133.312 | T183: 39260.3776 | U183: 0.009079848296 | W183: 1773.794971
D184: 226 | I184: 44738.88 | J184: 7699.776 | K184: 4 | L184: 5577.4208 | M184: 37039.104 | N184: 39161.4592 | O184: 4 | P184: 0.04778664876 | Q184: Decile 10 | S184: 37039.104 | T184: 39161.4592 | U184: 0.009079848296 | W184: 1769.974653
D185: 226 | I185: 44542.8 | J185: 7660.56 | K185: 4 | L185: 5546.048 | M185: 36882.24 | N185: 38996.752 | O185: 4 | P185: 0.0478174187 | Q185: Decile 10 | S185: 36882.24 | T185: 38996.752 | U185: 0.009079848296 | W185: 1763.613513
D186: 226 | I186: 44520.68 | J186: 7656.136 | K186: 4 | L186: 5542.5088 | M186: 36864.544 | N186: 38978.1712 | O186: 4 | P186: 0.04782090633 | Q186: Decile 10 | S186: 36864.544 | T186: 38978.1712 | U186: 0.009079848296 | W186: 1762.895906
D187: 226 | I187: 44463.36 | J187: 7644.672 | K187: 4 | L187: 5533.3376 | M187: 36818.688 | N187: 38930.0224 | O187: 4 | P187: 0.04782995949 | Q187: Decile 10 | S187: 36818.688 | T187: 38930.0224 | U187: 0.009079848296 | W187: 1761.036356
D188: 226 | I188: 44448 | J188: 7641.6 | K188: 4 | L188: 5530.88 | M188: 36806.4 | N188: 38917.12 | O188: 4 | P188: 0.04783238929 | Q188: Decile 10 | S188: 36806.4 | T188: 38917.12 | U188: 0.009079848296 | W188: 1760.538053
D189: 226 | I189: 44115.5 | J189: 7575.1 | K189: 4 | L189: 5477.68 | M189: 36540.4 | N189: 38637.82 | O189: 4 | P189: 0.04788538811 | Q189: Decile 10 | S189: 36540.4 | T189: 38637.82 | U189: 0.009079848296 | W189: 1749.751236
D190: 226 | I190: 44082.5 | J190: 7568.5 | K190: 4 | L190: 5472.4 | M190: 36514 | N190: 38610.1 | O190: 4 | P190: 0.04789069026 | Q190: Decile 10 | S190: 36514 | T190: 38610.1 | U190: 0.009079848296 | W190: 1748.680664
D191: 226 | I191: 44000 | J191: 7552 | K191: 4 | L191: 5459.2 | M191: 36448 | N191: 38540.8 | O191: 4 | P191: 0.04790397925 | Q191: Decile 10 | S191: 36448 | T191: 38540.8 | U191: 0.009079848296 | W191: 1746.004236
D192: 226 | I192: 43992 | J192: 7550.4 | K192: 4 | L192: 5457.92 | M192: 36441.6 | N192: 38534.08 | O192: 4 | P192: 0.04790527044 | Q192: Decile 10 | S192: 36441.6 | T192: 38534.08 | U192: 0.009079848296 | W192: 1745.744703
D193: 226 | I193: 43953.41 | J193: 7542.682 | K193: 4 | L193: 5451.7456 | M193: 36410.728 | N193: 38501.6644 | O193: 4 | P193: 0.04791150519 | Q193: Decile 10 | S193: 36410.728 | T193: 38501.6644 | U193: 0.009079848296 | W193: 1744.492784
D194: 226 | I194: 43750.99 | J194: 7502.198 | K194: 4 | L194: 5419.3584 | M194: 36248.792 | N194: 38331.6316 | O194: 4 | P194: 0.04794438291 | Q194: Decile 10 | S194: 36248.792 | T194: 38331.6316 | U194: 0.009079848296 | W194: 1737.925964
D195: 226 | I195: 43749.94 | J195: 7501.988 | K195: 4 | L195: 5419.1904 | M195: 36247.952 | N195: 38330.7496 | O195: 4 | P195: 0.04794455422 | Q195: Decile 10 | S195: 36247.952 | T195: 38330.7496 | U195: 0.009079848296 | W195: 1737.8919
D196: 226 | I196: 43749.94 | J196: 7501.988 | K196: 4 | L196: 5419.1904 | M196: 36247.952 | N196: 38330.7496 | O196: 4 | P196: 0.04794455422 | Q196: Decile 10 | S196: 36247.952 | T196: 38330.7496 | U196: 0.009079848296 | W196: 1737.8919
D197: 226 | I197: 43749.94 | J197: 7501.988 | K197: 4 | L197: 5419.1904 | M197: 36247.952 | N197: 38330.7496 | O197: 4 | P197: 0.04794455422 | Q197: Decile 10 | S197: 36247.952 | T197: 38330.7496 | U197: 0.009079848296 | W197: 1737.8919
D198: 226 | I198: 43570.67 | J198: 7466.134 | K198: 4 | L198: 5390.5072 | M198: 36104.536 | N198: 38180.1628 | O198: 4 | P198: 0.04797391946 | Q198: Decile 10 | S198: 36104.536 | T198: 38180.1628 | U198: 0.009079848296 | W198: 1732.076102
D199: 226 | I199: 43341.46 | J199: 7420.292 | K199: 4 | L199: 5353.8336 | M199: 35921.168 | N199: 37987.6264 | O199: 4 | P199: 0.04801180665 | Q199: Decile 10 | S199: 35921.168 | T199: 37987.6264 | U199: 0.009079848296 | W199: 1724.640173
D200: 226 | I200: 43324.58 | J200: 7416.916 | K200: 4 | L200: 5351.1328 | M200: 35907.664 | N200: 37973.4472 | O200: 4 | P200: 0.04801461213 | Q200: Decile 10 | S200: 35907.664 | T200: 37973.4472 | U200: 0.009079848296 | W200: 1724.092559
D201: 226 | I201: 43312.91 | J201: 7414.582 | K201: 4 | L201: 5349.2656 | M201: 35898.328 | N201: 37963.6444 | O201: 4 | P201: 0.04801655293 | Q201: Decile 10 | S201: 35898.328 | T201: 37963.6444 | U201: 0.009079848296 | W201: 1723.713966
D202: 226 | I202: 43199.02 | J202: 7391.804 | K202: 4 | L202: 5331.0432 | M202: 35807.216 | N202: 37867.9768 | O202: 4 | P202: 0.04803554673 | Q202: Decile 10 | S202: 35807.216 | T202: 37867.9768 | U202: 0.009079848296 | W202: 1720.019197
D203: 226 | I203: 43146.72 | J203: 7381.344 | K203: 4 | L203: 5322.6752 | M203: 35765.376 | N203: 37824.0448 | O203: 4 | P203: 0.04804430139 | Q203: Decile 10 | S203: 35765.376 | T203: 37824.0448 | U203: 0.009079848296 | W203: 1718.322504
D204: 226 | I204: 43130.61 | J204: 7378.122 | K204: 4 | L204: 5320.0976 | M204: 35752.488 | N204: 37810.5124 | O204: 4 | P204: 0.04804700223 | Q204: Decile 10 | S204: 35752.488 | T204: 37810.5124 | U204: 0.009079848296 | W204: 1717.799871
... 4296 more rows

Sheet Profits Tax (hidden)
G4: 0 | O4: FY22
G5: 1 | O5: 22214308.75
G6: 2 | O6: 15999160.05
G7: 3 | O7: 11239957.45 | R7: Reform Estimates | V7: Operating Surplus | W7: =SUM(Data!G42:G43)*1000000 -> 62962121.01
G8: 4 | O8: 10229038.11 | V8: Depcreciation Rate | W8: 0.17
G9: 5 | O9: 7863146.877 | V9: Interest,bad debts, etc | W9: 0.05
G10: 6 | O10: 7083155.013 | R10: Business Profits Tax Rate | S10: ='Dash-1'!I21 -> 0.2 | V10: Non-compliance | W10: 0.2
G11: 7 | O11: 7075996.97 | R11: Number of Businesses within the Band | S11: =COUNTIF(O5:O1097,">="&S14) -> 89
G12: 8 | O12: 6926016.003 | R12: Revenue Collection: | S12: =W7*(1-W8)*(1-W9)*(1-W10)*S28*S10 -> 7472122.527
G13: 9 | O13: 6354740.4
G14: 10 | O14: 5457885.143 | R14: Business Profits Tax Threshold | S14: ='Dash-1'!I23 -> 100000
G15: 11 | O15: 4235574.17 | R15: Number of Busniesses in GRT Band | S15: =COUNTIF(O5:O377,"<="&S14)-S22 -> 228
G16: 12 | O16: 3958567.813 | R16: Gross receipts of business in GRT net | S16: =(SUMIF(O5:O377,"<"&S14,O5:O377)-SUMIF(O5:O377,"<"&S20,O5:O377)) -> 9898109.117
G17: 13 | O17: 3653395.033 | R17: GRT Rate | S17: 0.03
G18: 14 | O18: 3403619.34 | R18: Tax Collected | S18: =S16*S17 -> 296943.2735
G19: 15 | O19: 3136937.303
G20: 16 | O20: 2583952.827 | R20: Presumptive tax threshold | S20: 10000
G21: 17 | O21: 2545256.84 | R21: Presumtive tax rate | S21: 80
G22: 18 | O22: 2516329.07 | R22: Number of business in presumptive net | S22: =COUNTIF(O5:O377,"<="&S20) -> 56
G23: 19 | O23: 2451634 | R23: Revenue collected | S23: =S21*S22 -> 4480
G24: 20 | O24: 2251563.98
G25: 21 | O25: 2016767.91
G26: 22 | O26: 1897334.97 | R26: Revenues of All Firms in RMI | S26: =SUM(O5:O1097) -> 171353667.1
G27: 23 | O27: 1487498.44 | R27: ="Revenue of Firms Earning Above "&TEXT(S14,"$0,000") -> Revenue of Firms Earning Above $100,000 | S27: =SUM(INDIRECT(ADDRESS(ROW(O5),15)):INDIRECT(ADDRESS(ROW(O5)+S11-1,15))) -> 161189355.2
G28: 24 | O28: 1319103.413 | R28: Share | S28: =S27/S26 -> 0.9406822619
G29: 25 | O29: 1081994.22
G30: 26 | O30: 1023336.24
G31: 27 | O31: 957872.52
G32: 28 | O32: 954942.4833
G33: 29 | O33: 946193.9333
G34: 30 | O34: 759103.4978
G35: 31 | O35: 739049.2233
G36: 32 | O36: 736133.66
G37: 33 | O37: 709074.4367
G38: 34 | O38: 701001.39
G39: 35 | O39: 693425.3333
G40: 36 | O40: 681424.6533
G41: 37 | O41: 652903.34
G42: 38 | O42: 639844.21
G43: 39 | O43: 604031.2267
G44: 40 | O44: 528950.16
G45: 41 | O45: 495055.58
G46: 42 | O46: 491261.53
G47: 43 | O47: 476734.43
G48: 44 | O48: 469984.65
G49: 45 | O49: 453681.9
G50: 46 | O50: 450000
G51: 47 | O51: 439363.9767
G52: 48 | O52: 406765.56
G53: 49 | O53: 334416.5367
G54: 50 | O54: 271607.67
G55: 51 | O55: 264004
G56: 52 | O56: 256837.36
G57: 53 | O57: 255477.8
G58: 54 | O58: 250909.24
G59: 55 | O59: 247804.44
G60: 56 | O60: 243318.1
G61: 57 | O61: 240577.83
G62: 58 | O62: 220772.7867
G63: 59 | O63: 207000
G64: 60 | O64: 204860.24
G65: 61 | O65: 203974.78
G66: 62 | O66: 203548.2
G67: 63 | O67: 202040.3
G68: 64 | O68: 187287.5333
G69: 65 | O69: 185540
G70: 66 | O70: 175988.06
G71: 67 | O71: 173542.62
G72: 68 | O72: 172933.3333
G73: 69 | O73: 158186.2
G74: 70 | O74: 150450.95
G75: 71 | O75: 147736
G76: 72 | O76: 144676
G77: 73 | O77: 139220
G78: 74 | O78: 137235
G79: 75 | O79: 135925.26
G80: 76 | O80: 135729.65
G81: 77 | O81: 133453.68
G82: 78 | O82: 133086
G83: 79 | O83: 126740
G84: 80 | O84: 122596.3
G85: 81 | O85: 121765.6667
G86: 82 | O86: 120052
G87: 83 | O87: 117664.2
G88: 84 | O88: 117242.26
G89: 85 | O89: 115579.8
G90: 86 | O90: 111513.25
G91: 87 | O91: 110340.2
G92: 88 | O92: 109640
G93: 89 | O93: 105013.88
G94: 90 | O94: 98100
G95: 91 | O95: 98043.74
G96: 92 | O96: 96959.24
G97: 93 | O97: 96952.68
G98: 94 | O98: 96499.75
G99: 95 | O99: 95838.12
G100: 96 | O100: 95052.04
G101: 97 | O101: 94741.98667
G102: 98 | O102: 94484
G103: 99 | O103: 93390
G104: 100 | O104: 92311.41333
G105: 101 | O105: 91860
G106: 102 | O106: 91254.53
G107: 103 | O107: 90931.52
G108: 104 | O108: 90770.2
G109: 105 | O109: 89660.41333
G110: 106 | O110: 87404
G111: 107 | O111: 86472
G112: 108 | O112: 85462.67
G113: 109 | O113: 85324
G114: 110 | O114: 85000
G115: 111 | O115: 84160.92
G116: 112 | O116: 83425
G117: 113 | O117: 83386.55
G118: 114 | O118: 82485.96
G119: 115 | O119: 81703.38667
G120: 116 | O120: 80857.8
G121: 117 | O121: 80428.29333
G122: 118 | O122: 80400
G123: 119 | O123: 80324.1
G124: 120 | O124: 79220
G125: 121 | O125: 77454
G126: 122 | O126: 77290.96
G127: 123 | O127: 76600
G128: 124 | O128: 75463
G129: 125 | O129: 75034.66667
G130: 126 | O130: 74425
G131: 127 | O131: 73716.59
G132: 128 | O132: 73370.15
G133: 129 | O133: 71921.35
G134: 130 | O134: 70675.56
G135: 131 | O135: 70412.65
G136: 132 | O136: 70269.48
G137: 133 | O137: 69800.44
G138: 134 | O138: 69778.2
G139: 135 | O139: 69142
G140: 136 | O140: 69001.84
G141: 137 | O141: 68608.62
G142: 138 | O142: 67658
G143: 139 | O143: 66676
G144: 140 | O144: 63900
G145: 141 | O145: 63690
G146: 142 | O146: 63461.05333
G147: 143 | O147: 63325.8
G148: 144 | O148: 62684.64
G149: 145 | O149: 62040
G150: 146 | O150: 61923.44
G151: 147 | O151: 61325.45
G152: 148 | O152: 59874.09
G153: 149 | O153: 58018.34667
G154: 150 | O154: 57839.8
G155: 151 | O155: 57700.46
G156: 152 | O156: 57587.29333
G157: 153 | O157: 56202
G158: 154 | O158: 55738.66667
G159: 155 | O159: 54879.4
G160: 156 | O160: 53942
G161: 157 | O161: 52445
G162: 158 | O162: 50879.18
G163: 159 | O163: 50000
G164: 160 | O164: 49190.25
G165: 161 | O165: 49162.4
G166: 162 | O166: 49066.66667
G167: 163 | O167: 48660
G168: 164 | O168: 48553.33333
G169: 165 | O169: 48438.55
G170: 166 | O170: 47837.04
G171: 167 | O171: 47500
G172: 168 | O172: 46256.63
G173: 169 | O173: 46062.5
G174: 170 | O174: 44610
G175: 171 | O175: 44313.45
G176: 172 | O176: 44223.14
G177: 173 | O177: 44023.43
G178: 174 | O178: 43723
G179: 175 | O179: 43643.9
G180: 176 | O180: 43446
G181: 177 | O181: 43440
G182: 178 | O182: 43296
G183: 179 | O183: 43246.66667
G184: 180 | O184: 41324.6
G185: 181 | O185: 40929
G186: 182 | O186: 40805.87
G187: 183 | O187: 39275
G188: 184 | O188: 38978.5
G189: 185 | O189: 38736
G190: 186 | O190: 38554.57
G191: 187 | O191: 38478.1
G192: 188 | O192: 38425.6
G193: 189 | O193: 38185.7
G194: 190 | O194: 38080
G195: 191 | O195: 38060
G196: 192 | O196: 37986
G197: 193 | O197: 37928.75
G198: 194 | O198: 37862
G199: 195 | O199: 37771.16
G200: 196 | O200: 37679.8
G201: 197 | O201: 37311.42667
G202: 198 | O202: 37201
G203: 199 | O203: 36891.6
... 894 more rows

Sheet  (hidden)

Sheet CPI (hidden)
J2: MICT | K2: =IF('Dash-1'!I25="Yes",'Dash-1'!I10,'Dash-1'!I27) -> 0.1 | N2: General Import Duty | O2: 0.08 | R2: Distributors Margin | S2: 0.3333333333
D3: Total Impact of MICT on the CPI | J3: Existing GRT Rate | K3: 0.03 | N3: Foodstuff Import Duty | O3: 0.05 | R3: Fuel Margins | S3: 0.4827248348
D4: =SUM(O20:O80) -> -0.003774239428 | J4: Inverse of GRT | K4: =1/(1+K3) -> 0.9708737864 | W4: Total Impact of MICT on the CPI by Decile
N5: ="Inverse of "&N2 -> Inverse of General Import Duty | O5: =1/(1+O2) -> 0.9259259259 | S5: Embedded Taxes | Y5: 1 | Z5: 2 | AA5: 3 | AB5: 4 | AC5: 5 | AD5: 6 | AE5: 7 | AF5: 8 | AG5: 9 | AH5: 10 | AJ5: Overall
N6: ="Inverse of "&N3 -> Inverse of Foodstuff Import Duty | O6: =1/(1+O3) -> 0.9523809524 | S6: Distribution | T6: 0.03 | X6: Food | Y6: =SUMIF($B$20:$B$80,$X6,AE$20:AE$80) -> -0.01351334515 | Z6: -0.01697438182 | AA6: -0.01429152701 | AB6: -0.01275396649 | AC6: -0.008049999979 | AD6: -0.006150525032 | AE6: -0.006601448539 | AF6: -0.006890768655 | AG6: -0.004067534007 | AH6: 0.0003819729451 | AJ6: =SUMIF($B$20:$B$80,$X6,O$20:O$80) -> -0.01433114367
S7: Fuel | T7: 0.02 | X7: Alcoholic Beverage | Y7: =SUMIF($B$20:$B$80,$X7,AE$20:AE$80) -> 0 | Z7: =SUMIF($B$20:$B$80,$X7,AF$20:AF$80) -> 0.0001942748352 | AA7: 0.0007946409716 | AB7: 0.001210347838 | AC7: 0.002011839969 | AD7: 0.001740948702 | AE7: 0.002148661784 | AF7: 0.001381955308 | AG7: 0.002209185598 | AH7: 0.002480564987 | AJ7: 0.0009605054108
O8: Weight | S8: Manufacturing | T8: 0.05 | X8: Housing, Utilities and Major Appliances | Y8: 0.000385319358 | Z8: 0.00286961267 | AA8: 0.004020968924 | AB8: 0.004425981646 | AC8: 0.006391396737 | AD8: 0.006420271135 | AE8: 0.007161180845 | AF8: 0.008388243595 | AG8: 0.007912460245 | AH8: 0.004678651771 | AJ8: 0.00606558263
N9: Food | O9: =SUMIF($B$20:$B$80,N9,$G$20:$G$80) -> 0.3591361388 | S9: Personal Services | T9: 0.03 | X9: Apparel | Y9: -0.003366104817 | Z9: -0.003812105707 | AA9: -0.003801127618 | AB9: -0.003329516319 | AC9: -0.004063439281 | AD9: -0.003646796151 | AE9: -0.003751858869 | AF9: -0.00304173181 | AG9: -0.003682894723 | AH9: -0.004346272372 | AJ9: -0.002916693017
N10: Alcoholic Beverage | O10: 0.01676814531 | S10: Business Services | T10: 0.015 | X10: Transportation | Y10: 0.0003652573195 | Z10: 0.0002221221566 | AA10: 0.000148381263 | AB10: 0.0003012564122 | AC10: 0.0005762726447 | AD10: 0.0007102473375 | AE10: 0.0009109324437 | AF10: 0.001083135717 | AG10: 0.001305856527 | AH10: 0.001575972237 | AJ10: 0.002298597083
N11: Housing, Utilities and Major Appliances | O11: 0.1707335415 | X11: Medical Care | Y11: 1.183716479e-06 | Z11: 0 | AA11: 8.331541052e-05 | AB11: 0 | AC11: 0 | AD11: 0 | AE11: 2.149982671e-06 | AF11: 0 | AG11: 2.249878258e-06 | AH11: 0 | AJ11: 0.0003912025681
N12: Apparel | O12: 0.04328393729 | X12: Recreation | Y12: -0.0001084871259 | Z12: -7.618981348e-05 | AA12: -0.0001065943206 | AB12: -0.0001098269037 | AC12: -0.0001289961039 | AD12: -0.0001366678074 | AE12: -0.0001216230197 | AF12: -0.0001786188313 | AG12: -0.0001310391001 | AH12: -0.0001177909575 | AJ12: -0.0005315410452
N13: Transportation | O13: 0.1373246115 | X13: Education and Comm. | Y13: 0.001408093303 | Z13: 0.001473187504 | AA13: 0.002212012399 | AB13: 0.001710894048 | AC13: 0.002474435408 | AD13: 0.002591139856 | AE13: 0.002423915173 | AF13: 0.002310338982 | AG13: 0.00302505259 | AH13: 0.003116846116 | AJ13: 0.0007249261888
N14: Medical Care | O14: 0.02225110511 | X14: Other Goods and Services | Y14: 0.002350847237 | Z14: 0.002292258137 | AA14: 0.001788543002 | AB14: 0.001590157612 | AC14: 0.001110745074 | AD14: 0.0008707306362 | AE14: 0.0004807412633 | AF14: 0.000432654155 | AG14: 0.0006442307588 | AH14: 0.00130990357 | AJ14: 0.003564324422
N15: Recreation | O15: 0.02321847578 | Y15: =SUM(Y6:Y14) -> -0.01247723616 | Z15: =SUM(Z6:Z14) -> -0.01381122204 | AA15: -0.009151386978 | AB15: -0.006954672155 | AC15: 0.000322254468 | AD15: 0.002399348676 | AE15: 0.002652651063 | AF15: 0.003485208462 | AG15: 0.007217567766 | AH15: 0.009079848296 | AJ15: -0.003774239428
N16: Education and Comm. | O16: 0.06555461821
N17: Other Goods and Services | O17: 0.1617294264
T18: Structure of Consumption Pattern | AE18: Impact*Weight
B19: Division | D19: Item | G19: Weight | H19: Local Sales Taxes | I19: GRT | J19: Embedded Indirect Taxes | K19: Direct Import tax | L19: Producer Grt | M19: Producer input tax loss | N19: MICT Impact | O19: Impact*Weight | R19: No | S19: Item | T19: 1 | U19: 2 | V19: 3 | W19: 4 | X19: 5 | Y19: 6 | Z19: 7 | AA19: 8 | AB19: 9 | AC19: 10 | AE19: 1 | AF19: 2 | AG19: 3 | AH19: 4 | AI19: 5 | AJ19: 6 | AK19: 7 | AL19: 8 | AM19: 9 | AN19: 10
B20: Food | C20: 1 | D20: Cereals (breakfast cereal, etc.) | E20: I | F20: Food | G20: 0.004760198883 | H20: =IF('Dash-1'!$I$25="Yes",-0.06,0) -> -0.06 | I20: =-(1-$K$4) -> -0.02912621359 | J20: =-$K$4*$S$2*$T$6 -> -0.009708737864 | K20: =-$O$3*(1-$S$2) -> -0.03333333333 | N20: =(1+I20+J20+K20+H20)*(1+$K$2)-1 -> -0.04538511327 | O20: =N20*G20 -> -0.0002160421655 | R20: 1 | S20: Cereals (breakfast cereal, etc.) | T20: 0.008514984617 | U20: 0.004003251253 | V20: 0.003825600578 | W20: 0.007880799755 | X20: 0.007384595107 | Y20: 0.01072151304 | Z20: 0.01299027543 | AA20: 0.0132099242 | AB20: 0.01107534141 | AC20: 0.01457706364 | AE20: =T20*$N20 -> -0.0003864535413 | AF20: =U20*$N20 -> -0.0001816880116 | AG20: -0.0001736253156 | AH20: -0.0003576709895 | AI20: -0.0003351506854 | AJ20: -0.0004865970836 | AK20: -0.000589565122 | AL20: -0.0005995339063 | AM20: -0.0005026556243 | AN20: -0.0006615816843 | AO20: =SUM(AE20:AN20)-O20 -> -0.004058479798
B21: Food | C21: 2 | D21: Rice | E21: I | F21: Food | G21: 0.04860044495 | H21: =IF('Dash-1'!$I$25="Yes",-0.06,0) -> -0.06 | I21: =-(1-$K$4) -> -0.02912621359 | J21: -0.009708737864 | K21: =-$O$3*(1-$S$2) -> -0.03333333333 | N21: =(1+I21+J21+K21+H21)*(1+$K$2)-1 -> -0.04538511327 | O21: =N21*G21 -> -0.002205736699 | R21: 2 | S21: Rice | T21: 0.08957770123 | U21: 0.07415139864 | V21: 0.07482778409 | W21: 0.06663622096 | X21: 0.04718431905 | Y21: 0.04244292441 | Z21: 0.03896873779 | AA21: 0.04159403751 | AB21: 0.0416159976 | AC21: 0.03084300018 | AE21: =T21*$N21 -> -0.004065494117 | AF21: =U21*$N21 -> -0.003365369626 | AG21: =V21*$N21 -> -0.003396067457 | AH21: =W21*$N21 -> -0.003024292436 | AI21: =X21*$N21 -> -0.002141465665 | AJ21: =Y21*$N21 -> -0.001926276932 | AK21: =Z21*$N21 -> -0.001768600578 | AL21: =AA21*$N21 -> -0.001887750104 | AM21: =AB21*$N21 -> -0.001888746765 | AN21: =AC21*$N21 -> -0.001399813057
B22: Food | C22: 3 | D22: Flour | E22: I | F22: Food | G22: 0.01427109215 | H22: =IF('Dash-1'!$I$25="Yes",-0.06,0) -> -0.06 | I22: -0.02912621359 | J22: -0.009708737864 | K22: -0.03333333333 | N22: -0.04538511327 | O22: -0.0006476951336 | R22: 3 | S22: Flour | T22: 0.04362379867 | U22: 0.04316828977 | V22: 0.02706392231 | W22: 0.02467247592 | X22: 0.02171488388 | Y22: 0.01856624295 | Z22: 0.01552870831 | AA22: 0.01492869136 | AB22: 0.01666099365 | AC22: 0.01018771366 | AE22: -0.001979871044 | AF22: -0.001959197721 | AG22: -0.00122829918 | AH22: -0.001119763114 | AI22: -0.0009855324646 | AJ22: -0.0008426310394 | AK22: -0.0007047721856 | AL22: -0.0006775403483 | AM22: -0.0007561610839 | AN22: -0.0004623705386
B23: Food | C23: 4 | D23: Ramen and other instant noodles | E23: I | F23: Food | G23: 0.01039722846 | H23: =IF('Dash-1'!$I$25="Yes",-0.06,0) -> -0.06 | I23: -0.02912621359 | J23: -0.009708737864 | K23: -0.03333333333 | N23: -0.04538511327 | O23: -0.0004718793915 | R23: 4 | S23: Ramen and other instant noodles | T23: 0.03366793091 | U23: 0.03373363377 | V23: 0.03976129178 | W23: 0.04001241583 | X23: 0.03017510792 | Y23: 0.02740247255 | Z23: 0.03201336494 | AA23: 0.02547918563 | AB23: 0.0249240663 | AC23: 0.01913532677 | AE23: -0.001528022858 | AF23: -0.00153100479 | AG23: -0.001804570731 | AH23: -0.001815968024 | AI23: -0.001369500691 | AJ23: -0.001243664321 | AK23: -0.001452930194 | AL23: -0.001156375726 | AM23: -0.001131181572 | AN23: -0.0008684589727
B24: Food | C24: 5 | D24: Bread | E24: D | F24: Food | G24: 0.01153578203 | H24: =IF('Dash-1'!$I$25="Yes",-0.06,0) -> -0.06 | I24: -0.02912621359 | J24: -0.009708737864 | L24: =-(1-$K$4)*$S$2 -> -0.009708737864 | M24: =-$K$4*$S$2*$T$6 -> -0.009708737864 | N24: =(1+I24+J24+H24+L24+M24)*(1+$K$2)-1 -> -0.0300776699 | O24: -0.0003469694441 | R24: 5 | S24: Bread | T24: 0.008786600764 | U24: 0.01341799778 | V24: 0.0103962572 | W24: 0.01393417959 | X24: 0.01531326483 | Y24: 0.01133602883 | Z24: 0.0143475679 | AA24: 0.01350496818 | AB24: 0.01628329058 | AC24: 0.0146316598 | AE24: -0.0002642804774 | AF24: -0.000403582108 | AG24: -0.0003126951924 | AH24: -0.000419107654 | AI24: -0.0004605873246 | AJ24: -0.000340961333 | AK24: -0.0004315414113 | AL24: -0.000406197975 | AM24: -0.000489763439 | AN24: -0.0004400862335
B25: Food | C25: 6 | D25: Donuts, pastries, etc. | E25: D | F25: Food | G25: 0.008719442003 | H25: =IF('Dash-1'!$I$25="Yes",-0.06,0) -> -0.06 | I25: -0.02912621359 | J25: -0.009708737864 | L25: =-(1-$K$4)*$S$2 -> -0.009708737864 | M25: =-$K$4*$S$2*$T$6 -> -0.009708737864 | N25: =(1+I25+J25+H25+L25+M25)*(1+$K$2)-1 -> -0.0300776699 | O25: -0.0002622604983 | R25: 6 | S25: Donuts, pastries, etc. | T25: 0.007684248903 | U25: 0.005308808599 | V25: 0.005204320349 | W25: 0.005582643332 | X25: 0.006101251761 | Y25: 0.005769488518 | Z25: 0.00757844187 | AA25: 0.0060280647 | AB25: 0.007207008615 | AC25: 0.0064416492 | AE25: -0.000231124302 | AF25: -0.0001596765926 | AG25: -0.0001565338295 | AH25: -0.0001679129033 | AI25: -0.0001835114365 | AJ25: -0.0001735327711 | AK25: -0.000227941873 | AL25: -0.0001813101402 | AM25: -0.0002167700261 | AN25: -0.0001937497983
B26: Food | C26: 7 | D26: Steak/beef (all types) | E26: I | F26: Food | G26: 0.007274274232 | H26: =IF('Dash-1'!$I$25="Yes",-0.06,0) -> -0.06 | I26: -0.02912621359 | J26: -0.009708737864 | K26: =-$O$3*(1-$S$2) -> -0.03333333333 | N26: -0.04538511327 | O26: -0.00033014376 | R26: 7 | S26: Steak/beef (all types) | T26: 0.002527711659 | U26: 0.001907421031 | V26: 0.004012145055 | W26: 0.003859364671 | X26: 0.00723672179 | Y26: 0.01155642745 | Z26: 0.009285636393 | AA26: 0.008997217089 | AB26: 0.0110117269 | AC26: 0.007180185038 | AE26: -0.0001147204799 | AF26: -8.656851953e-05 | AG26: -0.0001820916578 | AH26: -0.0001751577027 | AI26: -0.0003284394381 | AJ26: -0.0005244897688 | AK26: -0.0004214296595 | AL26: -0.0004083397167 | AM26: -0.0004997684726 | AN26: -0.0003258735112
B27: Food | C27: 8 | D27: Canned corned beef | E27: I | F27: Food | G27: 0.0242350871 | H27: =IF('Dash-1'!$I$25="Yes",-0.06,0) -> -0.06 | I27: -0.02912621359 | J27: -0.009708737864 | K27: -0.03333333333 | N27: -0.04538511327 | O27: -0.001099912173 | R27: 8 | S27: Canned corned beef | T27: 0.02419025996 | U27: 0.02348107951 | V27: 0.018927974 | W27: 0.02321669527 | X27: 0.02468691632 | Y27: 0.01820253892 | Z27: 0.02039808228 | AA27: 0.01328573894 | AB27: 0.01504577267 | AC27: 0.00809338121 | AE27: -0.001097877688 | AF27: -0.001065691453 | AG27: -0.0008590482438 | AH27: -0.001053692345 | AI27: -0.001120418494 | AJ27: -0.0008261242908 | AK27: -0.0009257692747 | AL27: -0.0006029747667 | AM27: -0.0006828540968 | AN27: -0.0003673190229
B28: Food | C28: 9 | D28: Canned luncheon meat (Hormel Spam) | E28: I | F28: Food | G28: 0.01421981079 | H28: =IF('Dash-1'!$I$25="Yes",-0.06,0) -> -0.06 | I28: -0.02912621359 | J28: -0.009708737864 | K28: -0.03333333333 | N28: -0.04538511327 | O28: -0.0006453677233 | R28: 9 | S28: Canned luncheon meat (Hormel Spam) | T28: 0.01538258429 | U28: 0.02422479953 | V28: 0.02884390368 | W28: 0.02037063695 | X28: 0.01708470405 | Y28: 0.01553626406 | Z28: 0.01487567529 | AA28: 0.009612714625 | AB28: 0.01048805671 | AC28: 0.007982014219 | AE28: -0.0006981403304 | AF28: -0.001099445271 | AG28: -0.001309083836 | AH28: -0.0009245236651 | AI28: -0.0007753912283 | AJ28: -0.0007051151042 | AK28: -0.0006751342078 | AL28: -0.0004362741421 | AM28: -0.0004760016416 | AN28: -0.0003622646195
B29: Food | C29: 10 | D29: Whole chicken (frying chicken, etc.) | E29: I | F29: Food | G29: 0.0201625954 | H29: =IF('Dash-1'!$I$25="Yes",-0.06,0) -> -0.06 | I29: -0.02912621359 | J29: -0.009708737864 | K29: -0.03333333333 | N29: -0.04538511327 | O29: -0.0009150816762 | R29: 10 | S29: Whole chicken (frying chicken, etc.) | T29: 0.01255671898 | U29: 0.0149349611 | V29: 0.01794753558 | W29: 0.01447507313 | X29: 0.01474696632 | Y29: 0.01328882648 | Z29: 0.01332985868 | AA29: 0.01202109704 | AB29: 0.01252512445 | AC29: 0.00994683245 | AE29: -0.0005698881131 | AF29: -0.0006778249011 | AG29: -0.000814550935 | AH29: -0.0006569528336 | AI29: -0.0006692927366 | AJ29: -0.0006031148949 | AK29: -0.000604977146 | AL29: -0.0005455788509 | AM29: -0.0005684541917 | AN29: -0.0004514381174
B30: Food | C30: 11 | D30: Turkey and turkey parts | E30: I | F30: Food | G30: 0.01409920562 | H30: =IF('Dash-1'!$I$25="Yes",-0.06,0) -> -0.06 | I30: -0.02912621359 | J30: -0.009708737864 | K30: -0.03333333333 | N30: -0.04538511327 | O30: -0.0006398940442 | R30: 11 | S30: Turkey and turkey parts | T30: 0.00878060385 | U30: 0.0104436499 | V30: 0.01255026892 | W30: 0.01012206159 | X30: 0.01031218979 | Y30: 0.009292548566 | Z30: 0.009321241371 | AA30: 0.008406056642 | AB30: 0.008758510573 | AC30: 0.006955574577 | AE30: -0.0003985087003 | AF30: -0.0004739862337 | AG30: -0.0005695953766 | AH30: -0.0004593909117 | AI30: -0.0004680199015 | AJ30: -0.0004217433692 | AK30: -0.0004230455954 | AL30: -0.0003815098328 | AM30: -0.0003975059944 | AN30: -0.00031567954
B31: Food | C31: 12 | D31: Chicken legs | E31: I | F31: Food | G31: 0.03110206383 | H31: =IF('Dash-1'!$I$25="Yes",-0.06,0) -> -0.06 | I31: -0.02912621359 | J31: -0.009708737864 | K31: -0.03333333333 | N31: -0.04538511327 | O31: -0.00141157069 | R31: 12 | S31: Chicken legs | T31: 0.01936952398 | U31: 0.02303811112 | V31: 0.02768519558 | W31: 0.02232870518 | X31: 0.02274811742 | Y31: 0.02049884556 | Z31: 0.0205621403 | AA31: 0.01854329366 | AB31: 0.01932078744 | AC31: 0.01534361086 | AE31: -0.0008790880398 | AF31: -0.001045587283 | AG31: -0.001256495737 | AH31: -0.001013390814 | AI31: -0.001032425886 | AJ31: -0.0009303424278 | AK31: -0.0009332150665 | AL31: -0.0008415894832 | AM31: -0.0008768761264 | AN31: -0.0006963715168
B32: Food | C32: 13 | D32: Chicken breasts and all other parts | E32: I | F32: Food | G32: 0.004172691709 | H32: =IF('Dash-1'!$I$25="Yes",-0.06,0) -> -0.06 | I32: -0.02912621359 | J32: -0.009708737864 | K32: -0.03333333333 | N32: -0.04538511327 | O32: -0.0001893780859 | R32: 13 | S32: Chicken breasts and all other parts | T32: 0.002598639517 | U32: 0.003090821747 | V32: 0.003714280399 | W32: 0.002995646961 | X32: 0.00305191583 | Y32: 0.00275015071 | Z32: 0.002758642411 | AA32: 0.002487791426 | AB32: 0.002592100962 | AC32: 0.002058517987 | AE32: -0.0001179395488 | AF32: -0.0001402772951 | AG32: -0.0001685730366 | AH32: -0.0001359577766 | AI32: -0.0001385115456 | AJ32: -0.0001248159015 | AK32: -0.0001252012983 | AL32: -0.0001129086956 | AM32: -0.0001176427957 | AN32: -9.342607199e-05
B33: Food | C33: 14 | D33: Canned mackeral | E33: I | F33: Food | G33: 0.0069899983 | H33: =IF('Dash-1'!$I$25="Yes",-0.06,0) -> -0.06 | I33: -0.02912621359 | J33: -0.009708737864 | K33: -0.03333333333 | N33: -0.04538511327 | O33: -0.0003172418646 | R33: 14 | S33: Canned mackeral | T33: 0.01164806466 | U33: 0.01986314975 | V33: 0.01703234651 | W33: 0.01865825924 | X33: 0.01155686054 | Y33: 0.009460406647 | Z33: 0.01040193997 | AA33: 0.008932589585 | AB33: 0.007080016952 | AC33: 0.009046764792 | AE33: -0.0005286487338 | AF33: -0.0009014913011 | AG33: -0.0007730149758 | AH33: -0.0008468072092 | AI33: -0.0005245094247 | AJ33: -0.0004293616272 | AK33: -0.0004720932237 | AL33: -0.0004054065901 | AM33: -0.0003213273713 | AN33: -0.0004105884448
B34: Food | C34: 15 | D34: Canned tuna | E34: I | F34: Food | G34: 0.02048725205 | H34: =IF('Dash-1'!$I$25="Yes",-0.06,0) -> -0.06 | I34: -0.02912621359 | J34: -0.009708737864 | K34: -0.03333333333 | N34: -0.04538511327 | O34: -0.0009298162549 | R34: 15 | S34: Canned tuna | T34: 0.01989316025 | U34: 0.02909235697 | V34: 0.02539494452 | W34: 0.02716293241 | X34: 0.01875301326 | Y34: 0.01689791299 | Z34: 0.01519374835 | AA34: 0.01323248267 | AB34: 0.011305943 | AC34: 0.01134271321 | AE34: -0.0009028533311 | AF34: -0.001320359916 | AG34: -0.001152552433 | AH34: -0.001232792764 | AI34: -0.000851107631 | AJ34: -0.0007669136952 | AK34: -0.00068956999 | AL34: -0.0006005577248 | AM34: -0.0005131215036 | AN34: -0.0005147903239
B35: Food | C35: 16 | D35: Fresh deep-sea fish (tuna, marlin, wahoo, etc.) | E35: D | F35: Food | G35: 0.005156058758 | H35: =IF('Dash-1'!$I$25="Yes",-0.06,0) -> -0.06 | I35: -0.02912621359 | J35: -0.009708737864 | L35: =-(1-$K$4)*$S$2 -> -0.009708737864 | M35: =-$K$4*$S$2*$T$6 -> -0.009708737864 | N35: =(1+I35+J35+H35+L35+M35)*(1+$K$2)-1 -> -0.0300776699 | O35: -0.0001550822333 | R35: 16 | S35: Fresh deep-sea fish (tuna, marlin, wahoo, etc.) | T35: 0.007222882694 | U35: 0.008407478799 | V35: 0.01019617151 | W35: 0.01081287926 | X35: 0.006214038422 | Y35: 0.01135782896 | Z35: 0.009149038303 | AA35: 0.01085635283 | AB35: 0.01255542314 | AC35: 0.008371469663 | AE35: -0.0002172474814 | AF35: -0.000252877372 | AG35: -0.0003066770809 | AH35: -0.000325226213 | AI35: -0.0001869037964 | AJ35: -0.0003416170302 | AK35: -0.000275181754 | AL35: -0.0003265337968 | AM35: -0.0003776378728 | AN35: -0.0002517943011
B36: Food | C36: 17 | D36: Fresh reef fish | E36: D | F36: Food | G36: 0.006714099217 | H36: =IF('Dash-1'!$I$25="Yes",-0.06,0) -> -0.06 | I36: -0.02912621359 | J36: -0.009708737864 | L36: -0.009708737864 | M36: =-$K$4*$S$2*$T$6 -> -0.009708737864 | N36: -0.0300776699 | O36: -0.0002019444599 | R36: 17 | S36: Fresh reef fish | T36: 0.06015551575 | U36: 0.04169572663 | V36: 0.04004158989 | W36: 0.05330942883 | X36: 0.02197259252 | Y36: 0.02642687129 | Z36: 0.02475621386 | AA36: 0.0234550114 | AB36: 0.01530748893 | AC36: 0.0120227835 | AE36: -0.001809337746 | AF36: -0.001254110302 | AG36: -0.001204357723 | AH36: -0.001603423403 | AI36: -0.0006608843848 | AJ36: -0.0007948587112 | AK36: -0.0007446092287 | AL36: -0.0007054720905 | AM36: -0.000460413599 | AN36: -0.0003616173133
B37: Food | C37: 18 | D37: Eggs | E37: I | F37: Food | G37: 0.009092158144 | H37: =IF('Dash-1'!$I$25="Yes",-0.06,0) -> -0.06 | I37: -0.02912621359 | J37: -0.009708737864 | K37: =-$O$3*(1-$S$2) -> -0.03333333333 | N37: -0.04538511327 | O37: -0.0004126486272 | R37: 18 | S37: Eggs | T37: 0.009116995371 | U37: 0.006127623954 | V37: 0.008010832398 | W37: 0.0052904777 | X37: 0.01033894221 | Y37: 0.01143990252 | Z37: 0.008826493598 | AA37: 0.01085469717 | AB37: 0.008756521956 | AC37: 0.009152156462 | AE37: -0.0004137758676 | AF37: -0.0002781029072 | AG37: -0.0003635725358 | AH37: -0.0002401089297 | AI37: -0.0004692340631 | AJ37: -0.0005192012717 | AK37: -0.0004005914117 | AL37: -0.0004926416605 | AM37: -0.0003974157408 | AN37: -0.0004153716577
B38: Food | C38: 19 | D38: Milk - evaporated | E38: I | F38: Food | G38: 0.005267481607 | H38: =IF('Dash-1'!$I$25="Yes",-0.06,0) -> -0.06 | I38: -0.02912621359 | J38: -0.009708737864 | K38: -0.03333333333 | N38: -0.04538511327 | O38: -0.0002390652494 | R38: 19 | S38: Milk - evaporated | T38: 0.004382603662 | U38: 0.00505579843 | V38: 0.004848051923 | W38: 0.004312769848 | X38: 0.00551710242 | Y38: 0.007051695627 | Z38: 0.005490585435 | AA38: 0.008628720367 | AB38: 0.00503268066 | AC38: 0.009079335398 | AE38: -0.0001989049636 | AF38: -0.0002294579844 | AG38: -0.0002200293857 | AH38: -0.0001957355481 | AI38: -0.0002503943183 | AJ38: -0.0003200420048 | AK38: -0.0002491908419 | AL38: -0.0003916154512 | AM38: -0.0002284087818 | AN38: -0.0004120666654
B39: Food | C39: 20 | D39: Ice cream | E39: I | F39: Food | G39: 0.005394262014 | H39: =IF('Dash-1'!$I$25="Yes",-0.06,0) -> -0.06 | I39: -0.02912621359 | J39: -0.009708737864 | K39: -0.03333333333 | N39: -0.04538511327 | O39: -0.0002448191925 | R39: 20 | S39: Ice cream | T39: 0.001834112314 | U39: 0.001426013392 | V39: 0.0007294055676 | W39: 0.001136702816 | X39: 0.003259028001 | Y39: 0.00329836604 | Z39: 0.001912113918 | AA39: 0.001505386886 | AB39: 0.004778614075 | AC39: 0.004821434907 | AE39: -8.32413951e-05 | AF39: -6.471977931e-05 | AG39: -3.310415431e-05 | AH39: -5.158938604e-05 | AI39: -0.000147911355 | AJ39: -0.0001496967163 | AK39: -8.678150674e-05 | AL39: -6.832215432e-05 | AM39: -0.0002168779411 | AN39: -0.0002188213694
B40: Food | C40: 21 | D40: Other fruits and vegetables | E40: I | F40: Food | G40: 0.005248257809 | H40: =IF('Dash-1'!$I$25="Yes",-0.06,0) -> -0.06 | I40: -0.02912621359 | J40: -0.009708737864 | K40: -0.03333333333 | N40: -0.04538511327 | O40: -0.0002381927751 | R40: 21 | S40: Other fruits and vegetables | T40: 0.1192474942 | U40: 0.1311010705 | V40: 0.09293666442 | W40: 0.08605465701 | X40: 0.0835860539 | Y40: 0.07598890414 | Z40: 0.0794210905 | AA40: 0.1054659139 | AB40: 0.06686790694 | AC40: 0.0633847163 | AE40: -0.00541206103 | AF40: -0.005950036936 | AG40: -0.004217941041 | AH40: -0.003905600356 | AI40: -0.003793562524 | AJ40: -0.003448765022 | AK40: -0.003604535188 | AL40: -0.004786582451 | AM40: -0.00303480753 | AN40: -0.002876722529
B41: Food | C41: 22 | D41: Coke | E41: I | F41: Food | G41: 0.00790624315 | H41: =IF('Dash-1'!$I$25="Yes",-0.06,0) -> -0.06 | I41: -0.02912621359 | J41: -0.009708737864 | K41: -0.03333333333 | N41: -0.04538511327 | O41: -0.0003588257409 | R41: 22 | S41: Coke | T41: 0.007762756728 | U41: 0.0061186203 | V41: 0.007828831297 | W41: 0.005881125124 | X41: 0.006340976338 | Y41: 0.006924495068 | Z41: 0.004229704723 | AA41: 0.005453298063 | AB41: 0.004524109504 | AC41: 0.005003617969 | AE41: -0.0003523135934 | AF41: -0.0002776942754 | AG41: -0.0003553123952 | AH41: -0.0002669155299 | AI41: -0.0002877859293 | AJ41: -0.000314268993 | AK41: -0.000191965628 | AL41: -0.0002474985503 | AM41: -0.0002053272223 | AN41: -0.0002270897683
B42: Food | C42: 23 | D42: Pepsi | E42: I | F42: Food | G42: 0.005936877862 | H42: =IF('Dash-1'!$I$25="Yes",-0.06,0) -> -0.06 | I42: -0.02912621359 | J42: -0.009708737864 | K42: -0.03333333333 | N42: -0.04538511327 | O42: -0.0002694458743 | R42: 23 | S42: Pepsi | T42: 0.005829132458 | U42: 0.004594533803 | V42: 0.00587874852 | W42: 0.004416196276 | X42: 0.004761503198 | Y42: 0.005199673308 | Z42: 0.003176128011 | AA42: 0.004094936613 | AB42: 0.003397199536 | AC42: 0.003757267287 | AE42: -0.0002645558369 | AF42: -0.0002085234371 | AG42: -0.0002668076674 | AH42: -0.0002004295682 | AI42: -0.000216101362 | AJ42: -0.000235987762 | AK42: -0.0001441489296 | AL42: -0.000185849162 | AM42: -0.0001541822857 | AN42: -0.0001705240014
B43: Food | C43: 24 | D43: Colas- all others | E43: I | F43: Food | G43: 0.0075050135 | H43: =IF('Dash-1'!$I$25="Yes",-0.06,0) -> -0.06 | I43: -0.02912621359 | J43: -0.009708737864 | K43: -0.03333333333 | N43: -0.04538511327 | O43: -0.0003406158878 | R43: 24 | S43: Colas- all others | T43: 0.002548164737 | U43: 0.006136325446 | V43: 0.003637439678 | W43: 0.006815566173 | X43: 0.003257912525 | Y43: 0.003805765774 | Z43: 0.004231380114 | AA43: 0.005200888656 | AB43: 0.002743392231 | AC43: 0.002948480834 | AE43: -0.0001156487452 | AF43: -0.0002784978254 | AG43: -0.0001650856118 | AH43: -0.0003093252428 | AI43: -0.000147860729 | AJ43: -0.0001727251107 | AK43: -0.0001920416658 | AL43: -0.0002360429207 | AM43: -0.0001245091672 | AN43: -0.0001338171366
B44: Food | C44: 25 | D44: Coffee (instant coffee) | E44: I | F44: Food | G44: 0.009067188686 | H44: =IF('Dash-1'!$I$25="Yes",-0.06,0) -> -0.06 | I44: -0.02912621359 | J44: -0.009708737864 | K44: -0.03333333333 | N44: -0.04538511327 | O44: -0.0004115153856 | R44: 25 | S44: Coffee (instant coffee) | T44: 0.01047759023 | U44: 0.008044800407 | V44: 0.009776769274 | W44: 0.01447956562 | X44: 0.01019934729 | Y44: 0.01084175507 | Z44: 0.01494739437 | AA44: 0.006449436788 | AB44: 0.005099353926 | AC44: 0.00521671055 | AE44: -0.0004755266195 | AF44: -0.0003651141777 | AG44: -0.0004437197809 | AH44: -0.0006571567258 | AI44: -0.0004628985321 | AJ44: -0.0004920542821 | AK44: -0.0006783891868 | AL44: -0.0002927084191 | AM44: -0.0002314347555 | AN44: -0.0002367609992
B45: Food | C45: 26 | D45: Bottled water/spring water | E45: I | F45: Food | G45: 0.005822179451 | H45: =IF('Dash-1'!$I$25="Yes",-0.06,0) -> -0.06 | I45: -0.02912621359 | J45: -0.009708737864 | K45: -0.03333333333 | N45: -0.04538511327 | O45: -0.0002642402738 | R45: 26 | S45: Bottled water/spring water | T45: 0.0009177970067 | U45: 0.001517365964 | V45: 0.004429737345 | W45: 0.002049221915 | X45: 0.004402707879 | Y45: 0.005331468344 | Z45: 0.004111745926 | AA45: 0.007485396297 | AB45: 0.006860618704 | AC45: 0.004463208697 | AE45: -4.165432111e-05 | AF45: -6.886582614e-05 | AG45: -0.0002010441312 | AH45: -9.300416871e-05 | AI45: -0.0001998173958 | AJ45: -0.0002419692947 | AK45: -0.0001866120546 | AL45: -0.0003397255588 | AM45: -0.000311369957 | AN45: -0.0002025632323
B46: Food | C46: 27 | D46: Drink mix (KoolAid, Luau mix, etc.) | E46: I | F46: Food | G46: 0.005965337674 | H46: =IF('Dash-1'!$I$25="Yes",-0.06,0) -> -0.06 | I46: -0.02912621359 | J46: -0.009708737864 | K46: -0.03333333333 | N46: -0.04538511327 | O46: -0.000270737526 | R46: 27 | S46: Drink mix (KoolAid, Luau mix, etc.) | T46: 0.004147611811 | U46: 0.004559505132 | V46: 0.003858089823 | W46: 0.006014962476 | X46: 0.004260416947 | Y46: 0.003443833689 | Z46: 0.005156404673 | AA46: 0.003700220588 | AB46: 0.004041688648 | AC46: 0.003290902718 | AE46: -0.0001882398318 | AF46: -0.0002069336569 | AG46: -0.0001750998436 | AH46: -0.0002729897533 | AI46: -0.0001933595057 | AJ46: -0.000156298782 | AK46: -0.0002340240102 | AL46: -0.0001679349305 | AM46: -0.0001834324971 | AN46: -0.0001493579926
B47: Food | C47: 28 | D47: Sugar | E47: I | F47: Food | G47: 0.0104106529 | H47: =IF('Dash-1'!$I$25="Yes",-0.06,0) -> -0.06 | I47: -0.02912621359 | J47: -0.009708737864 | K47: -0.03333333333 | N47: -0.04538511327 | O47: -0.0004724886612 | R47: 28 | S47: Sugar | T47: 0.017175139 | U47: 0.01829095508 | V47: 0.0117029795 | W47: 0.01204494297 | X47: 0.009756767768 | Y47: 0.00691328322 | Z47: 0.007163611201 | AA47: 0.004770550441 | AB47: 0.005635846621 | AC47: 0.004136792873 | AE47: -0.0007794956289 | AF47: -0.0008301370682 | AG47: -0.0005311410502 | AH47: -0.000546661101 | AI47: -0.0004428120103 | AJ47: -0.000313760142 | AK47: -0.0003251213058 | AL47: -0.0002165119721 | AM47: -0.0002557835373 | AN47: -0.0001877488131
B48: Food | C48: 29 | D48: Chips- potato, banana, etc. | E48: I | F48: Food | G48: 0.004728141322 | H48: =IF('Dash-1'!$I$25="Yes",-0.06,0) -> -0.06 | I48: -0.02912621359 | J48: -0.009708737864 | K48: -0.03333333333 | N48: -0.04538511327 | O48: -0.0002145872294 | R48: 29 | S48: Chips- potato, banana, etc. | T48: 0.01011731696 | U48: 0.009131890563 | V48: 0.009762111972 | W48: 0.005446317825 | X48: 0.005570886215 | Y48: 0.007737632004 | Z48: 0.005441735061 | AA48: 0.003434958348 | AB48: 0.005390010461 | AC48: 0.004098265798 | AE48: -0.0004591755761 | AF48: -0.0004144518876 | AG48: -0.0004430545576 | AH48: -0.0002471817514 | AI48: -0.0002528353019 | AJ48: -0.0003511733049 | AK48: -0.0002469737621 | AL48: -0.0001558959737 | AM48: -0.0002446262353 | AN48: -0.0001860002574
B49: Food | C49: 30 | D49: Soy sauce (kikkoman, btl) | E49: I | F49: Food | G49: 0.007473492916 | H49: =IF('Dash-1'!$I$25="Yes",-0.06,0) -> -0.06 | I49: -0.02912621359 | J49: -0.009708737864 | K49: -0.03333333333 | N49: -0.04538511327 | O49: -0.0003391853225 | R49: 30 | S49: Soy sauce (kikkoman, btl) | T49: 0.01169533266 | U49: 0.01609272283 | V49: 0.01357617247 | W49: 0.01117980595 | X49: 0.01197596383 | Y49: 0.01094319194 | Z49: 0.009735771817 | AA49: 0.01074499691 | AB49: 0.007494839126 | AC49: 0.005556263965 | AE49: -0.0005307939973 | AF49: -0.0007303700486 | AG49: -0.0006161561252 | AH49: -0.0005073967592 | AI49: -0.0005435304747 | AJ49: -0.0004966580056 | AK49: -0.0004418591067 | AL49: -0.0004876629017 | AM49: -0.0003401541227 | AN49: -0.0002521716694
B50: Food | C50: 31 | D50: Other food products(Catsup, 24 fl oz, Western Family branch) | E50: I | F50: Food | G50: 0.005711186184 | I50: -0.02912621359 | J50: -0.009708737864 | K50: -0.03333333333 | N50: 0.02061488673 | O50: 0.0001177354563 | R50: 31 | S50: Other food products(Catsup, 24 fl oz, Western Family branch) | T50: 0.006744399304 | U50: 0.008615952207 | V50: 0.01180175824 | W50: 0.007972057582 | X50: 0.009639737137 | Y50: 0.01293843538 | Z50: 0.009999458788 | AA50: 0.011645646 | AB50: 0.00786489749 | AC50: 0.008038839513 | AE50: 0.0001390350277 | AF50: 0.0001776168788 | AG50: 0.0002432919094 | AH50: 0.0001643430641 | AI50: 0.0001987220892 | AJ50: 0.0002667243799 | AK50: 0.0002061377103 | AL50: 0.0002400736731 | AM50: 0.0001621339709 | AN50: 0.000165719766
B51: Food | C51: 32 | D51: Plate lunch | E51: D | F51: Food | G51: 0.003999623834 | I51: -0.02912621359 | J51: -0.009708737864 | N51: 0.0572815534 | O51: 0.0002291046662 | R51: 32 | S51: Plate lunch | T51: 0.01963973355 | U51: 0.00794781598 | V51: 0.01141667385 | W51: 0.0075543887 | X51: 0.01028820749 | Y51: 0.00958172657 | Z51: 0.01165342902 | AA51: 0.01153258923 | AB51: 0.01183214652 | AC51: 0.004391022294 | AE51: 0.001124994446 | AF51: 0.0004552632455 | AG51: 0.0006539648128 | AH51: 0.0004327271197 | AI51: 0.0005893245065 | AJ51: 0.0005488561822 | AK51: 0.0006675265167 | AL51: 0.0006606046261 | AM51: 0.0006777637325 | AN51: 0.000251524578
B52: Food | C52: 33 | D52: Restaurant meals | E52: D | F52: Per_serv | G52: 0.006710716258 | I52: -0.02912621359 | J52: =-$K$4*$S$2*$T$9 -> -0.009708737864 | N52: 0.0572815534 | O52: 0.0003844002517 | R52: 33 | S52: Restaurant meals | T52: 0.1802938067 | U52: 0.1434036278 | V52: 0.148583912 | W52: 0.165412569 | X52: 0.1885722195 | Y52: 0.2047544926 | Z52: 0.1915572988 | AA52: 0.1842373053 | AB52: 0.1972324347 | AC52: 0.2411067253 | AE52: 0.01032750931 | AF52: 0.008214382565 | AG52: 0.008511117288 | AH52: 0.009475088906 | AI52: 0.01080170966 | AJ52: 0.0117286554 | AK52: 0.01097269964 | AL52: 0.01055339904 | AM52: 0.01129778024 | AN52: 0.01381096776
B53: Housing, Utilities and Major Appliances | C53: 34 | D53: Rent | E53: D | F53: Bus_Serv | G53: 0.01426730456 | I53: -0.02912621359 | J53: =-$K$4*$S$2*$T$10 -> -0.004854368932 | N53: 0.06262135922 | O53: 0.0008934380038 | R53: 34 | S53: Rent | T53: 0.002518216633 | U53: 0 | V53: 0 | W53: 0.007384945988 | X53: 0 | Y53: 0.008888589662 | Z53: 0.006947072131 | AA53: 0.03924476278 | AB53: 0.02769335637 | AC53: 0.002102170293 | AE53: 0.0001576941484 | AF53: 0 | AG53: 0 | AH53: 0.0004624553555 | AI53: 0 | AJ53: 0.0005566155662 | AK53: 0.0004350350995 | AL53: 0.002457560388 | AM53: 0.001734195617 | AN53: 0.0001316407611
B54: Alcoholic Beverage | C54: 35 | D54: Beer | E54: I | F54: Food | G54: 0.01676814531 | I54: -0.02912621359 | J54: =-$K$4*$S$2*$T$6 -> -0.009708737864 | N54: =(1+I54+J54)*(1+$K$2)-1 -> 0.0572815534 | O54: 0.0009605054108 | R54: 35 | S54: Beer | T54: 0 | U54: 0.003391577631 | V54: 0.01387254578 | W54: 0.02112980124 | X54: 0.035121952 | Y54: 0.03039283327 | Z54: 0.03751053622 | AA54: 0.02412566046 | AB54: 0.0385671384 | AC54: 0.04330477859 | AE54: 0 | AF54: 0.0001942748352 | AG54: 0.0007946409716 | AH54: 0.001210347838 | AI54: 0.002011839969 | AJ54: 0.001740948702 | AK54: 0.002148661784 | AL54: 0.001381955308 | AM54: 0.002209185598 | AN54: 0.002480564987
B55: Housing, Utilities and Major Appliances | C55: 36 | D55: Kerosene | E55: I | F55: Fuel | G55: 0.01611912069 | I55: -0.02912621359 | J55: =-$K$4*$S$2*$T$7 -> -0.006472491909 | N55: =(1+I55+J55)*(1+$K$2)-1 -> 0.06084142395 | O55: 0.0009807102553 | R55: 36 | S55: Kerosene | T55: 0 | U55: 0.004202948895 | V55: 0.0006457238803 | W55: 0.001184144649 | X55: 0.00151047916 | Y55: 7.849389905e-05 | Z55: 0.002820991496 | AA55: 0.0001251474536 | AB55: 0.0002387835752 | AC55: 0.0003213694939 | AE55: 0 | AF55: 0.0002557133956 | AG55: 3.928676035e-05 | AH55: 7.204504662e-05 | AI55: 9.189970297e-05 | AJ55: 4.775680589e-06 | AK55: 0.0001716331395 | AL55: 7.614149281e-06 | AM55: 1.452793273e-05 | AN55: 1.955257762e-05
B56: Housing, Utilities and Major Appliances | C56: 37 | D56: Water (piped to housing unit) | E56: D | F56: Bus_Serv | G56: 0.01870044394 | I56: -0.02912621359 | J56: =-$K$4*$S$2*$T$10 -> -0.004854368932 | N56: 0.06262135922 | O56: 0.001171047218 | R56: 37 | S56: Water (piped to housing unit) | T56: 0 | U56: 0.0008556958358 | V56: 0.003752254833 | W56: 0.0005411905844 | X56: 0.003174535233 | Y56: 0.001840125466 | Z56: 0.004822662923 | AA56: 0.007116431931 | AB56: 0.003102087128 | AC56: 0.00566088424 | AE56: 0 | AF56: 5.358483632e-05 | AG56: 0.0002349712978 | AH56: 3.389008999e-05 | AI56: 0.0001987937112 | AJ56: 0.0001152311578 | AK56: 0.0003020017073 | AL56: 0.0004456406404 | AM56: 0.0001942569124 | AN56: 0.0003544922655
B57: Housing, Utilities and Major Appliances | C57: 38 | D57: Electricity (Residential meter) | E57: D | F57: Bus_serv | G57: 0.0862846421 | I57: -0.02912621359 | J57: =-$K$4*$S$2*$T$10 -> -0.004854368932 | N57: 0.06262135922 | O57: 0.005403261568 | R57: 38 | S57: Electricity (Residential meter) | T57: 0.01533604472 | U57: 0.04722607442 | V57: 0.06684929967 | W57: 0.06919424921 | X57: 0.1059630254 | Y57: 0.1012082108 | Z57: 0.1066290601 | AA57: 0.09744554449 | AB57: 0.1045714124 | AC57: 0.07449999113 | AE57: 0.0009603639656 | AF57: 0.002957360971 | AG57: 0.004186194009 | AH57: 0.004333037936 | AI57: 0.006635548678 | AJ57: 0.006337795727 | AK57: 0.006677256675 | AL57: 0.006102172446 | AM57: 0.006548403982 | AN57: 0.004665290707
B58: Housing, Utilities and Major Appliances | C58: 39 | D58: Refrigerator | E58: I | F58: Goods | G58: 0.006306033577 | H58: =IF('Dash-1'!$I$25="Yes",-0.06,0) -> -0.06 | I58: -0.02912621359 | J58: =-$K$4*$S$2*$T$6 -> -0.009708737864 | K58: =-$O$2*(1-$S$2) -> -0.05333333333 | N58: -0.06738511327 | O58: -0.0004249327868 | R58: 39 | S58: Refrigerator | T58: 0.00256831806 | U58: 0.00256831806 | V58: 0.00256831806 | W58: 0.00256831806 | X58: 0.00256831806 | Y58: 0.00256831806 | Z58: 0.00256831806 | AA58: 0.00256831806 | AB58: 0.00256831806 | AC58: 0.00256831806 | AE58: -0.0001730664034 | AF58: -0.0001730664034 | AG58: -0.0001730664034 | AH58: -0.0001730664034 | AI58: -0.0001730664034 | AJ58: -0.0001730664034 | AK58: -0.0001730664034 | AL58: -0.0001730664034 | AM58: -0.0001730664034 | AN58: -0.0001730664034
B59: Housing, Utilities and Major Appliances | C59: 40 | D59: Freezer | E59: I | F59: Goods | G59: 0.006028897003 | H59: =IF('Dash-1'!$I$25="Yes",-0.06,0) -> -0.06 | I59: -0.02912621359 | J59: -0.009708737864 | K59: =-$O$2*(1-$S$2) -> -0.05333333333 | N59: -0.06738511327 | O59: -0.0004062579074 | R59: 40 | S59: Freezer | T59: 0.002455446021 | U59: 0.0001419110694 | V59: 0.0008089080521 | W59: 0.001340351213 | X59: 0.000880370923 | Y59: 0.001630401344 | Z59: -9.344353351e-05 | AA59: 0.00118715593 | AB59: 0.0005805036316 | AC59: -0.0002878315227 | AE59: -0.0001654605083 | AF59: -9.562693486e-06 | AG59: -5.450836072e-05 | AH59: -9.031971834e-05 | AI59: -5.932389436e-05 | AJ59: -0.0001098647792 | AK59: 6.29670309e-06 | AL59: -7.999663684e-05 | AM59: -3.911730297e-05 | AN59: 1.939555976e-05
B60: Housing, Utilities and Major Appliances | C60: 41 | D60: Washing machine | E60: I | F60: Goods | G60: 0.007297711901 | H60: =IF('Dash-1'!$I$25="Yes",-0.06,0) -> -0.06 | I60: -0.02912621359 | J60: -0.009708737864 | K60: -0.05333333333 | N60: -0.06738511327 | O60: -0.0004917571431 | R60: 41 | S60: Washing machine | T60: 0.002023880866 | U60: 0.001379647079 | V60: 0.001184278932 | W60: 0.0009472627293 | X60: 0.001253802777 | Y60: 0.00134875412 | Z60: 0.0008852609278 | AA60: 0.001648111735 | AB60: 0.001036098897 | AC60: 0.001000992151 | AE60: -0.0001363794414 | AF60: -9.296767467e-05 | AG60: -7.980276997e-05 | AH60: -6.383140631e-05 | AI60: -8.448764217e-05 | AJ60: -9.088594913e-05 | AK60: -5.965340789e-05 | AL60: -0.000111058196 | AM60: -6.98176415e-05 | AN60: -6.745196947e-05
B61: Housing, Utilities and Major Appliances | C61: 42 | D61: Air conditioner | E61: I | F61: Goods | G61: 0.01111330733 | H61: =IF('Dash-1'!$I$25="Yes",-0.06,0) -> -0.06 | I61: -0.02912621359 | J61: -0.009708737864 | K61: -0.05333333333 | N61: -0.06738511327 | O61: -0.0007488714734 | R61: 42 | S61: Air conditioner | T61: 0.002916832946 | U61: 0.00162248715 | V61: 0.001912241244 | W61: 0.001870728161 | X61: 0.00323465236 | Y61: 0.00325172308 | Z61: 0.002943122871 | AA61: 0.003801181691 | AB61: 0.004249667945 | AC61: 0.003671158979 | AE61: -0.0001965511184 | AF61: -0.0001093314804 | AG61: -0.0001288565928 | AH61: -0.000126059229 | AI61: -0.0002179674157 | AJ61: -0.0002191177281 | AK61: -0.000198322668 | AL61: -0.0002561430588 | AM61: -0.0002863643558 | AN61: -0.0002473814636
B62: Housing, Utilities and Major Appliances | C62: 43 | D62: Fishing Gear | E62: I | F62: Goods | G62: 0.004616080453 | H62: =IF('Dash-1'!$I$25="Yes",-0.06,0) -> -0.06 | I62: -0.02912621359 | J62: -0.009708737864 | K62: -0.05333333333 | N62: -0.06738511327 | O62: -0.0003110551042 | R62: 43 | S62: Fishing Gear | T62: 0.0009094187345 | U62: 0.0001798361752 | V62: 4.821562387e-05 | W62: 0.0003290047852 | X62: 0 | Y62: 1.79882024e-05 | Z62: 0 | AA62: 6.647956722e-05 | AB62: 0.0001566888451 | AC62: 0.0003534944491 | AE62: -6.128128443e-05 | AF62: -1.211828104e-05 | AG62: -3.249015276e-06 | AH62: -2.217002472e-05 | AI62: 0 | AJ62: -1.212137056e-06 | AK62: 0 | AL62: -4.479733167e-06 | AM62: -1.055849557e-05 | AN62: -2.382026349e-05
B63: Apparel | C63: 44 | D63: Other men's and boys' clothing | E63: I | F63: Goods | G63: 0.009425352735 | H63: =IF('Dash-1'!$I$25="Yes",-0.06,0) -> -0.06 | I63: -0.02912621359 | J63: -0.009708737864 | K63: -0.05333333333 | N63: -0.06738511327 | O63: -0.0006351284616 | R63: 44 | S63: Other men's and boys' clothing | T63: 0.001593794889 | U63: 0.002295674481 | V63: 0.00308773888 | W63: 0.002674550036 | X63: 0.003164700967 | Y63: 0.00268456438 | Z63: 0.002192966712 | AA63: 0.001786144387 | AB63: 0.003430098954 | AC63: 0.002314568313 | AE63: -0.0001073980491 | AF63: -0.0001546942849 | AG63: -0.0002080676342 | AH63: -0.0001802248571 | AI63: -0.0002132537331 | AJ63: -0.0001808996748 | AK63: -0.0001477733103 | AL63: -0.0001203595418 | AM63: -0.0002311376066 | AN63: -0.000155967448
B64: Apparel | C64: 45 | D64: Shirts (men's or women's) | E64: I | F64: Goods | G64: 0.005465841126 | H64: =IF('Dash-1'!$I$25="Yes",-0.06,0) -> -0.06 | I64: -0.02912621359 | J64: -0.009708737864 | K64: -0.05333333333 | N64: -0.06738511327 | O64: -0.0003683163234 | R64: 45 | S64: Shirts (men's or women's) | T64: 0.01693160977 | U64: 0.01636400811 | V64: 0.01343901053 | W64: 0.008979668646 | X64: 0.01386900066 | Y64: 0.01338141398 | Z64: 0.013435641 | AA64: 0.01032529972 | AB64: 0.01210015329 | AC64: 0.01477614073 | AE64: -0.001140938442 | AF64: -0.00110269054 | AG64: -0.0009055892466 | AH64: -0.0006050959889 | AI64: -0.0009345641805 | AJ64: -0.0009017080969 | AK64: -0.0009053621907 | AL64: -0.0006957714915 | AM64: -0.0008153702003 | AN64: -0.0009956919169
B65: Apparel | C65: 46 | D65: Other women's and girls' clothing | E65: I | F65: Goods | G65: 0.005409780666 | H65: =IF('Dash-1'!$I$25="Yes",-0.06,0) -> -0.06 | I65: -0.02912621359 | J65: -0.009708737864 | K65: -0.05333333333 | N65: -0.06738511327 | O65: -0.000364538683 | R65: 46 | S65: Other women's and girls' clothing | T65: 0.01675795053 | U65: 0.01619617048 | V65: 0.01330117317 | W65: 0.008887568576 | X65: 0.0137267531 | Y65: 0.01324416736 | Z65: 0.0132978382 | AA65: 0.01021939817 | AB65: 0.01197604794 | AC65: 0.01462458908 | AE65: -0.001129236395 | AF65: -0.001091380782 | AG65: -0.0008963010605 | AH65: -0.0005988898152 | AI65: -0.0009249788127 | AJ65: -0.0008924597179 | AK65: -0.0008960763334 | AL65: -0.0006886353035 | AM65: -0.0008070073469 | AN65: -0.0009854795918
B66: Apparel | C66: 47 | D66: Sandals | E66: I | F66: Goods | G66: 0.005217972274 | H66: =IF('Dash-1'!$I$25="Yes",-0.06,0) -> -0.06 | I66: -0.02912621359 | J66: -0.009708737864 | K66: -0.05333333333 | N66: -0.06738511327 | O66: -0.0003516136527 | R66: 47 | S66: Sandals | T66: 0.002989077307 | U66: 0.003174076907 | V66: 0.00339973784 | W66: 0.003085023705 | X66: 0.004003871308 | Y66: 0.003205286221 | Z66: 0.004179749195 | AA66: 0.004087336377 | AB66: 0.004599531098 | AC66: 0.005092148856 | AE66: -0.0002014193129 | AF66: -0.0002138855319 | AG66: -0.0002290917194 | AH66: -0.0002078846718 | AI66: -0.0002698013216 | AJ66: -0.0002159885751 | AK66: -0.0002816528729 | AL66: -0.0002754256247 | AM66: -0.000309939924 | AN66: -0.0003431350275
B67: Apparel | C67: 48 | D67: Zorries | E67: I | F67: Goods | G67: 0.005591171694 | H67: =IF('Dash-1'!$I$25="Yes",-0.06,0) -> -0.06 | I67: -0.02912621359 | J67: -0.009708737864 | K67: -0.05333333333 | N67: -0.06738511327 | O67: -0.0003767617379 | R67: 48 | S67: Zorries | T67: 0.006402012386 | U67: 0.005909508975 | V67: 0.004912232855 | W67: 0.003889853044 | X67: 0.005809517845 | Y67: 0.005653703901 | Z67: 0.00518649198 | AA67: 0.003844312751 | AB67: 0.003647583351 | AC67: 0.004151302173 | AE67: -0.0004314003298 | AF67: -0.0003982129317 | AG67: -0.0003310113674 | AH67: -0.000262118188 | AI67: -0.000391475018 | AJ67: -0.0003809754778 | AK67: -0.0003494923495 | AL67: -0.0002590494502 | AM67: -0.0002457928173 | AN67: -0.0002797359671
B68: Apparel | C68: 49 | D68: Diapers (disposable) | E68: I | F68: Goods | G68: 0.0121738188 | H68: =IF('Dash-1'!$I$25="Yes",-0.06,0) -> -0.06 | I68: -0.02912621359 | J68: -0.009708737864 | K68: -0.05333333333 | N68: -0.06738511327 | O68: -0.0008203341587 | R68: 49 | S68: Diapers (disposable) | T68: 0.005278796317 | U68: 0.01263248802 | V68: 0.01826911805 | W68: 0.02189360121 | X68: 0.01972789168 | Y68: 0.01594958525 | Z68: 0.01738517242 | AA68: 0.0148770307 | AB68: 0.0189010119 | AC68: 0.02354025013 | AE68: -0.0003557122877 | AF68: -0.0008512416363 | AG68: -0.001231066589 | AH68: -0.001475302798 | AI68: -0.001329366215 | AJ68: -0.001074764609 | AK68: -0.001171501813 | AL68: -0.001002490399 | AM68: -0.001273646828 | AN68: -0.001586262421
B69: Transportation | C69: 50 | D69: Gasoline (for car, truck or boat) | E69: I | F69: Fuel | G69: 0.03778013291 | I69: -0.02912621359 | J69: =-$K$4*$S$2*$T$7 -> -0.006472491909 | N69: 0.06084142395 | O69: 0.002298597083 | R69: 50 | S69: Gasoline (for car, truck or boat) | T69: 0.006003431475 | U69: 0.003650837574 | V69: 0.002438819695 | W69: 0.004951501669 | X69: 0.009471715278 | Y69: 0.01167374613 | Z69: 0.0149722407 | AA69: 0.01780260302 | AB69: 0.02146328014 | AC69: 0.02590294794 | AE69: 0.0003652573195 | AF69: 0.0002221221566 | AG69: 0.000148381263 | AH69: 0.0003012564122 | AI69: 0.0005762726447 | AJ69: 0.0007102473375 | AK69: 0.0009109324437 | AL69: 0.001083135717 | AM69: 0.001305856527 | AN69: 0.001575972237
B70: Transportation | C70: 51 | D70: Off-island travel expenditures (airfares) | E70: D | F70: Exempt | G70: 0.09954447863 | N70: 0 | O70: 0 | R70: 51 | S70: Off-island travel expenditures (airfares) | T70: 0.02889563734 | U70: 0.03280855913 | V70: 0.02757818234 | W70: 0.03076280849 | X70: 0.01317712077 | Y70: 0.013366106 | Z70: 0.02361777577 | AA70: 0.02132366424 | AB70: 0.02907185714 | AC70: 0.07358764328 | AE70: 0 | AF70: 0 | AG70: 0 | AH70: 0 | AI70: 0 | AJ70: 0 | AK70: 0 | AL70: 0 | AM70: 0 | AN70: 0
B71: Medical Care | C71: 52 | D71: Hospital visits | E71: D | F71: Exempt | G71: 0.01600399433 | N71: 0 | O71: 0 | R71: 52 | S71: Hospital visits | T71: 0.003051169862 | U71: 0.006376944181 | V71: 0.004397885298 | W71: 0.003862501667 | X71: 0.00347203708 | Y71: 0.004165583428 | Z71: 0.002749837298 | AA71: 0.003400641451 | AB71: 0.004564770245 | AC71: 0.002856162997 | AE71: 0 | AF71: 0 | AG71: 0 | AH71: 0 | AI71: 0 | AJ71: 0 | AK71: 0 | AL71: 0 | AM71: 0 | AN71: 0
B72: Medical Care | C72: 53 | D72: Health insurance | E72: D | F72: Bus_Serv | G72: 0.006247110777 | I72: -0.02912621359 | J72: =-$K$4*$S$2*$T$10 -> -0.004854368932 | N72: 0.06262135922 | O72: 0.0003912025681 | R72: 53 | S72: Health insurance | T72: 1.890275927e-05 | U72: 0 | V72: 0.001330463145 | W72: 0 | X72: 0 | Y72: 0 | Z72: 3.43330566e-05 | AA72: 0 | AB72: 3.592828847e-05 | AC72: 0 | AE72: 1.183716479e-06 | AF72: 0 | AG72: 8.331541052e-05 | AH72: 0 | AI72: 0 | AJ72: 0 | AK72: 2.149982671e-06 | AL72: 0 | AM72: 2.249878258e-06 | AN72: 0
B73: Recreation | C73: 54 | D73: Television | E73: I | F73: Goods | G73: 0.008897945704 | H73: =IF('Dash-1'!$I$25="Yes",-0.06,0) -> -0.06 | I73: -0.02912621359 | J73: =-$K$4*$S$2*$T$6 -> -0.009708737864 | K73: =-$O$2*(1-$S$2) -> -0.05333333333 | N73: -0.06738511327 | O73: -0.0005995890792 | R73: 54 | S73: Television | T73: 0.001203645314 | U73: 0.0008854789867 | V73: 0.00102772132 | W73: 0.001430466794 | X73: 0.001680611105 | Y73: 0.001812895449 | Z73: 0.001687128543 | AA73: 0.002457464777 | AB73: 0.001790088451 | AC73: 0.001625362207 | AE73: -8.110777584e-05 | AF73: -5.966810181e-05 | AG73: -6.925311757e-05 | AH73: -9.639216692e-05 | AI73: -0.0001132481697 | AJ73: -0.0001221621652 | AK73: -0.000113687348 | AL73: -0.0001655965424 | AM73: -0.000120625313 | AN73: -0.0001095252164
B74: Recreation | C74: 55 | D74: Video player | E74: I | F74: Goods | G74: 0.002761698607 | H74: =IF('Dash-1'!$I$25="Yes",-0.06,0) -> -0.06 | I74: -0.02912621359 | J74: =-$K$4*$S$2*$T$6 -> -0.009708737864 | K74: -0.05333333333 | N74: -0.06738511327 | O74: -0.0001860973734 | R74: 55 | S74: Video player | T74: 9.596529746e-05 | U74: 7.020446242e-05 | V74: 5.741611891e-05 | W74: 2.929949487e-05 | X74: 1.376791839e-05 | Y74: 3.279825401e-05 | Z74: 1.738548354e-05 | AA74: 3.552755186e-05 | AB74: 2.413102011e-05 | AC74: 2.746129798e-05 | AE74: -6.466632439e-06 | AF74: -4.730735652e-06 | AG74: -3.868991676e-06 | AH74: -1.974349781e-06 | AI74: -9.2775274e-07 | AJ74: -2.210114062e-06 | AK74: -1.171522777e-06 | AL74: -2.394028106e-06 | AM74: -1.626071524e-06 | AN74: -1.850482675e-06
B75: Recreation | C75: 56 | D75: Radio | E75: I | F75: Goods | G75: 0.003612776512 | H75: =IF('Dash-1'!$I$25="Yes",-0.06,0) -> -0.06 | I75: -0.02912621359 | J75: =-$K$4*$S$2*$T$6 -> -0.009708737864 | K75: -0.05333333333 | N75: -0.06738511327 | O75: -0.0002434473545 | R75: 56 | S75: Radio | T75: 0.0005669411582 | U75: 0.0003626937507 | V75: 0.0006502510079 | W75: 0.0002484148522 | X75: 0.0002567456497 | Y75: 0.0002701634955 | Z75: 0.0001468662934 | AA75: 0.0002527188048 | AB75: 0.0001949325887 | AC75: 0.0001686297489 | AE75: -3.820339416e-05 | AF75: -2.444015948e-05 | AG75: -4.381723782e-05 | AH75: -1.673946296e-05 | AI75: -1.730083469e-05 | AJ75: -1.820499775e-05 | AK75: -9.896601814e-06 | AL75: -1.702948529e-05 | AM75: -1.313555457e-05 | AN75: -1.136313473e-05
B76: Recreation | C76: 57 | D76: Video rentals | E76: D | F76: Bus_Serv | G76: 0.007946054957 | I76: -0.02912621359 | J76: =-$K$4*$S$2*$T$10 -> -0.004854368932 | N76: 0.06262135922 | O76: 0.0004975927619 | R76: 57 | S76: Video rentals | T76: 0.0002761146802 | U76: 0.0002019947127 | V76: 0.0001651996475 | W76: 8.430152223e-05 | X76: 3.961353201e-05 | Y76: 9.43682733e-05 | Z76: 5.002211585e-05 | AA76: 0.0001022211037 | AB76: 6.94306075e-05 | AC76: 7.901259842e-05 | AE76: 1.729067658e-05 | AF76: 1.264918346e-05 | AG76: 1.034502647e-05 | AH76: 5.279075907e-06 | AI76: 2.480653218e-06 | AJ76: 5.909469542e-06 | AK76: 3.132452886e-06 | AL76: 6.401224452e-06 | AM76: 4.347839013e-06 | AN76: 4.947876309e-06
B77: Education and Comm. | C77: 58 | D77: Tuition | E77: D | F77: Exempt | G77: 0.05397827752 | N77: 0 | O77: 0 | R77: 58 | S77: Tuition | T77: 0.0002326407984 | U77: 0.001906763375 | V77: 0.008274709564 | W77: 0.01039126318 | X77: 0.01083843655 | Y77: 0.02018293946 | Z77: 0.01573796252 | AA77: 0.02116548903 | AB77: 0.01840727844 | AC77: 0.02701559085 | AE77: 0 | AF77: 0 | AG77: 0 | AH77: 0 | AI77: 0 | AJ77: 0 | AK77: 0 | AL77: 0 | AM77: 0 | AN77: 0
B78: Education and Comm. | C78: 59 | D78: Telephone | E78: D | F78: Bus_Serv | G78: 0.01157634069 | I78: -0.02912621359 | J78: =-$K$4*$S$2*$T$10 -> -0.004854368932 | N78: 0.06262135922 | O78: 0.0007249261888 | R78: 59 | S78: Telephone | T78: 0.02248583103 | U78: 0.02352531983 | V78: 0.03532360885 | W78: 0.02732125379 | X78: 0.03951423984 | Y78: 0.04137789228 | Z78: 0.03870748261 | AA78: 0.0368937853 | AB78: 0.04830704137 | AC78: 0.04977289147 | AE78: 0.001408093303 | AF78: 0.001473187504 | AG78: 0.002212012399 | AH78: 0.001710894048 | AI78: 0.002474435408 | AJ78: 0.002591139856 | AK78: 0.002423915173 | AL78: 0.002310338982 | AM78: 0.00302505259 | AN78: 0.003116846116
B79: Other Goods and Services | C79: 60 | D79: Cigarettes | E79: I | F79: Goods | G79: 0.116009199 | I79: -0.02912621359 | J79: =-$K$4*$S$2*$T$6 -> -0.009708737864 | N79: 0.0572815534 | O79: 0.006645187126 | R79: 60 | S79: Cigarettes | T79: 0.05689761949 | U79: 0.05078774603 | V79: 0.04380573469 | W79: 0.04136305587 | X79: 0.03569887489 | Y79: 0.03075525461 | Z79: 0.0271277877 | AA79: 0.02742503589 | AB79: 0.03075750277 | AC79: 0.03681120929 | AE79: 0.003259184029 | AF79: 0.002909200986 | AG79: 0.002509260531 | AH79: 0.002369340094 | AI79: 0.002044887008 | AJ79: 0.001761708759 | AK79: 0.00155392182 | AL79: 0.001570948658 | AM79: 0.001761837537 | AN79: 0.00210860325
B80: Other Goods and Services | C80: 61 | D80: Toilet paper | E80: I | F80: Goods | G80: 0.04572022743 | H80: =IF('Dash-1'!$I$25="Yes",-0.06,0) -> -0.06 | I80: -0.02912621359 | J80: =-$K$4*$S$2*$T$6 -> -0.009708737864 | K80: =-$O$2*(1-$S$2) -> -0.05333333333 | N80: -0.06738511327 | O80: -0.003080862704 | R80: 61 | S80: Toilet paper | T80: 0.0134797843 | U80: 0.009155476922 | V80: 0.01069550074 | W80: 0.01156312491 | X80: 0.0138627345 | Y80: 0.01322218038 | Z80: 0.0159260778 | AA80: 0.01689237351 | AB80: 0.01658536618 | AC80: 0.01185276157 | AE80: -0.0009083367921 | AF80: -0.0006169428494 | AG80: -0.000720717529 | AH80: -0.0007791824818 | AI80: -0.0009341419343 | AJ80: -0.0008909781229 | AK80: -0.001073180556 | AL80: -0.001138294503 | AM80: -0.001117606778 | AN80: -0.0007986996808
T82: =SUM(T20:T80) -> 1 | U82: =SUM(U20:U80) -> 1 | V82: 1 | W82: 1 | X82: 1 | Y82: 1 | Z82: 1 | AA82: 1 | AB82: 1 | AC82: 1 | AE82: -0.01247723616 | AF82: -0.01381122204 | AG82: -0.009151386978 | AH82: -0.006954672155 | AI82: 0.000322254468 | AJ82: 0.002399348676 | AK82: 0.002652651063 | AL82: 0.003485208462 | AM82: 0.007217567766 | AN82: 0.009079848296

Sheet Data (hidden)
A1: Expenditure on GDP | B1: FY17 | C1: FY18 | D1: FY19 | E1: FY20 | F1: FY21 | G1: FY22 | H1: FY23 | I1: FY24 | J1: FY25 | K1: Notes
A3: Final Consumption Expenditure
A4: Government Final Consumption Expenditure (GFCE) | B4: 119.1389847 | C4: 131.8689728 | D4: 153.7958069 | E4: 147.9723816 | F4: 156.0260468 | G4: 148.5988007 | H4: 113.0019062 | I4: 112.2781518 | J4: 114.5426052
A5: Compensation of Employees | B5: 66.75689793 | C5: 69.79791451 | D5: 73.16765213 | E5: 75.23176527 | F5: 80.22877169 | G5: 82.64885712 | H5: 0 | I5: 0 | J5: 0
A6: Purchases of goods and services | B6: =B4-B5-B7 -> 43.54926614 | C6: =C4-C5-C7 -> 52.22759418 | D6: 68.59754615 | E6: 60.68979292 | F6: 63.46538834 | G6: 52.94126515
A7: less sales | B7: 8.832820609 | C7: 9.843464091 | D7: 12.03060861 | E7: 12.05082341 | F7: 12.33188672 | G7: 13.00867839
A8: Household Final Consumption Expenditure (HFCE) | B8: =SUM(B9:B11) -> 157.3970728 | C8: =SUM(C9:C11) -> 160.5208931 | D8: 169.9309206 | E8: 164.5059977 | F8: 165.4511471 | G8: 179.5540552 | H8: 152.9974465 | I8: 149.824235 | J8: 153.2777935
A9: Households' acquisition | B9: 132.2481079 | C9: 134.7241821 | D9: 143.7877197 | E9: 139.2101593 | F9: 139.9642487 | G9: 153.6743164 | H9: 130.609639 | I9: 127.5549107 | J9: 131.0339526
A10: Dwellings | B10: 13.96902752 | C10: 14.62896538 | D10: 15.03849697 | E10: 14.26768208 | F10: 14.27592945 | G10: 14.36909676 | H10: 12.25513974 | I10: 12.02490751 | J10: 11.82159125
A11: Other (non-market on production) | B11: 11.17993736 | C11: 11.16774559 | D11: 11.1047039 | E11: 11.02815628 | F11: 11.21096897 | G11: 11.51064205 | H11: 10.13266775 | I11: 10.24441679 | J11: 10.42224964
A12: NGOs | B12: 4.798562527 | C12: 5.263937473 | D12: 5.340916157 | E12: 5.580864906 | F12: 5.50571537 | G12: 5.929604053 | H12: 4.02588073 | I12: 4.1126858 | J12: 4.212684317
A14: Investment and inventories | B14: 48.13791656 | C14: 45.42362976 | D14: 115.8627167 | E14: 48.23237991 | F14: 50.29911804 | G14: 51.33857346 | H14: 51.25797626 | I14: 50.80994021 | J14: 52.12581236
A15: Construction: Other | B15: 9.926758766 | C15: 9.068655968 | D15: 19.18976784 | E15: 10.5250864 | F15: 8.298347473 | G15: 11.43921089 | H15: 9.448811452 | I15: 5.732297231 | J15: 6.20807485
A16: Construction: REPMAR | B16: 6.049285889 | C16: 5.879881382 | D16: 1.69142437 | E16: 6.768885136 | F16: 9.831206322 | G16: 7.589000225 | H16: 2.63438326 | I16: 5.341325014 | J16: 5.799961596
A17: Equipment: other | B17: 29.09185982 | C17: 26.44423294 | D17: 28.56322098 | E17: 24.86843681 | F17: 25.35725403 | G17: 26.94236374 | H17: 9.572177908 | I17: 9.649822651 | J17: 9.722974918
A18: Equipment: REPMAR | B18: 3.0700109 | C18: 2.130860567 | D18: 1.393303156 | E18: 5.069969654 | F18: 5.812309265 | G18: 5.368000031 | H18: 29.60260364 | I18: 30.08649532 | J18: 30.394801
A19: Ships, Aircraft | B19: 0 | C19: 1.899999976 | D19: 65.02500153 | E19: 1 | F19: 1 | G19: 0 | H19: 0 | I19: 0 | J19: 0
A20: Changes in inventories | B20: -0.6894675493 | C20: 3.566958189 | D20: 6.814033508 | E20: 0.5409566164 | F20: -0.9003640413 | G20: 0.6720403433
A22: Exports of goods and services | B22: 83.58433533 | C22: 87.39661407 | D22: 86.31745148 | E22: 85.81112671 | F22: 120.6340408 | G22: 119.7417145 | H22: 97.35899594 | I22: 107.9958581 | J22: 116.4094612
A23: Re-Exports - Goods | B23: 13.07143688 | C23: 17.31560516 | D23: 13.54255295 | E23: 7.575279713 | F23: 13.20856667 | G23: 20.20346451 | H23: 9.654056916 | I23: 9.666133157 | J23: 9.922577513
A24: Exports - Goods, Offshore Fish | B24: 35.90534592 | C24: 35.40793991 | D24: 39.87334442 | E24: 53.44438934 | F24: 82.89298248 | G24: 71.09102631 | H24: 58.24312389 | I24: 65.25061344 | J24: 72.56415838
A25: Exports - Goods, Other | B25: 7.456418037 | C25: 6.037930012 | D25: 5.137625217 | E25: 4.994270802 | F25: 7.296235561 | G25: 8.481425285 | H25: 2.674582913 | I25: 3.198090333 | J25: 3.232173826
A26: Exports: Services | B26: 11.22448635 | C26: 11.37960815 | D26: 10.6052227 | E26: 7.793071747 | F26: 7.110105991 | G26: 7.510590553 | H26: 9.566744823 | I26: 10.22502378 | J26: 10.49100502
A27: Exports: Tourism (Goods & Services) | B27: 6.024318218 | C27: 7.21403265 | D27: 7.21403265 | E27: 2.06115222 | F27: 0 | G27: 2.06115222 | H27: 6.645238876 | I27: 8.340743608 | J27: 8.575329623
A28: Exports: Fishing boat provisions (Goods & Services) | B28: 8.346648216 | C28: 8.4582901 | D28: 8.333445549 | E28: 8.303230286 | F28: 8.457397461 | G28: 8.6957798 | H28: 9.153447443 | I28: 9.854359518 | J28: 10.15102024
A29: Exports (embassies) | B29: 1.555678368 | C29: 1.583207011 | D29: 1.611222744 | E29: 1.639734268 | F29: 1.668750286 | G29: 1.698279858 | H29: 1.421801074 | I29: 1.460894267 | J29: 1.473196649
A31: less Imports | B31: 183.8423309 | C31: 195.2628021 | D31: 270.0257568 | E31: 174.9036713 | F31: 183.6749725 | G31: 190.6400757 | H31: 163.2782552 | I31: 165.6695431 | J31: 171.3423074
A32: Food, beverages, tobacco | B32: 48.90002441 | C32: 48.86218262 | D32: 54.72031784 | E32: 55.04825974 | F32: 56.89505386 | G32: 59.90823746 | H32: 56.37849004 | I32: 58.25606008 | J32: 59.52720063
A33: Fuel (landed) | B33: 27.294384 | C33: 41.43834686 | D33: 42.56388855 | E33: 25.90398026 | F33: 24.08084488 | G33: 29.67877769 | H33: 20.16037153 | I33: 19.86929679 | J33: 20.36408712
A34: Fishing Boats, Aircraft | B34: 0 | C34: 1.899999976 | D34: 65.02500153 | E34: 1 | F34: 1 | G34: 0 | H34: 0 | I34: 0 | J34: 0
A35: Fishing Boat, provisions at sea | B35: 8.866399765 | C35: 6.946711063 | D35: 8.76943779 | E35: 11.63651657 | F35: 24.64391327 | G35: 11.46241951 | H35: 9.597787857 | I35: 10.55756664 | J35: 11.51734543
A36: Other goods | B36: 50.68481827 | C36: 51.06384659 | D36: 55.06192398 | E36: 54.47001648 | F36: 55.98758316 | G36: 59.20892334 | H36: 52.64331207 | I36: 51.69323417 | J36: 53.30233193
A37: Construction | B37: 0 | C37: 0 | D37: 0 | E37: 0 | F37: 0 | G37: 0 | H37: 0 | I37: 0 | J37: 0
A38: Airlines, travel, medical | B38: 28.75175667 | C38: 29.55046463 | D38: 29.86128807 | E38: 12.81252098 | F38: 6.628833294 | G38: 15.63795471 | H38: 13.40285292 | I38: 13.83369393 | J38: 14.3669769
A39: Other services | B39: 19.34494972 | C39: 15.50126076 | D39: 14.02391338 | E39: 14.0323801 | F39: 14.43874359 | G39: 14.74376869 | H39: 11.09544075 | I39: 11.45969151 | J39: 12.26436538
A42: Operating Surplus, Private Sector | B42: 43.71624374 | C42: 43.68755341 | D42: 47.46734238 | E42: 49.40254974 | F42: 62.60290146 | G42: 56.3847084
A43: Operating Surplus, Financial Sector | B43: 7.79469347 | C43: 9.334131241 | D43: 9.378958702 | E43: 7.29325676 | F43: 6.389918327 | G43: 6.577412605
A46: GDP (KP) | B46: 194.1396332 | C46: 205.1264038 | D46: 226.3730469 | E46: 219.9305115 | F46: 222.3768005 | G46: 220.874588
A47: GDP (CP) | B47: 212.9357147 | C47: 219.4300385 | D47: 231.9967041 | E47: 240.7511444 | F47: 257.7848816 | G47: 258.7744751
A49: Existing tax collections
A50: GRT (excluding Hotel GRT) | B50: 5.595945835 | C50: 7.096228123 | D50: 7.576025963 | E50: 6.894680977 | F50: 7.418214798 | G50: 7.962999821
A51: Resident | B51: 5.205945969 | C51: 6.782227993 | D51: 7.269025803 | E51: 6.366681099 | F51: 6.67421484 | G51: 7.065000057
A52: Non-resident | B52: 0.3899999857 | C52: 0.3140000105 | D52: 0.3070000112 | E52: 0.5279999971 | F52: 0.7440000176 | G52: 0.8980000019
A53: Hotel GRT | B53: 0.09399999678 | C53: 0.1059999987 | D53: 0.1199999973 | E53: -0.03099999949 | F53: 0.006000000052 | G53: 0.08299999684
A54: Total Resident GRT (excluding non-resident GRT) | B54: =B51+B53 -> 5.299945965 | C54: =C51+C53 -> 6.888227992 | D54: 7.3890258 | E54: 6.335681099 | F54: 6.68021484 | G54: 7.148000054 | H54: =H51+H53+H52 -> 0 | I54: 0 | J54: 0
A55: Imports | B55: =SUM(B56:B60) -> 8.465757132 | C55: =SUM(C56:C60) -> 8.390719891 | D55: 9.360656142 | E55: 9.265953958 | F55: 9.808018148 | G55: 10.10499984
A56: General imports | B56: =$A$70*SUM(B66:B68)-B57 -> 2.105383368 | C56: =$A$70*SUM(C66:C68)-C57 -> 2.017461469 | D56: 2.249170939 | E56: 2.239752541 | F56: 2.402525502 | G56: 2.374473247
A57: Food | B57: =(B79) -> 2.206630562 | C57: =(C79) -> 2.256332415 | D57: 2.518657744 | E57: 2.479839802 | F57: 2.59316599 | G57: 2.772485187
A58: Alcohol and Tobacco | B58: =B67 -> 1.33099997 | C58: =C67 -> 1.230999947 | D58: 1.524999976 | E58: 1.620000005 | F58: 1.690999985 | G58: 1.465000033
A59: Other Excises | B59: =SUM(B66:B68)-SUM(B56:B58,B60) -> 2.210041219 | C59: =SUM(C66:C68)-SUM(C56:C58,C60) -> 2.27672606 | D59: 2.544266482 | E59: 2.479807605 | F59: 2.532713697 | G59: 2.902041352
A60: Fuel | B60: =B68 -> 0.6127020121 | C60: =C68 -> 0.6092000008 | D60: 0.5235610008 | E60: 0.4465540051 | F60: 0.5886129737 | G60: 0.5910000205
A61: Wages tax | B61: =SUM(B62:B63) -> 14.78181696 | C61: =SUM(C62:C63) -> 15.0647378 | D61: 16.25773716 | E61: 16.42870951 | F61: 17.41085958 | G61: 16.7130003
A62: Marshallese | B62: 9.471817017 | C62: 9.827737808 | D62: 9.974737167 | E62: 10.91770935 | F62: 11.70485973 | G62: 11.64900017 | H62: 11.30200005
A63: non-Marshallese [expatriates] | B63: 5.309999943 | C63: 5.236999989 | D63: 6.282999992 | E63: 5.511000156 | F63: 5.705999851 | G63: 5.06400013 | H63: 4.916999817
A65: Imports Duty Collections (broken by GFS classifications) | B65: =B55-SUM(B66:B68) -> 0 | C65: =C55-SUM(C66:C68) -> 0 | D65: 0 | E65: 0 | F65: 0 | G65: 0 | H65: 0 | I65: 0 | J65: 0
A66: General Imports | B66: 6.522055149 | C66: 6.550519943 | D66: 7.312095165 | E66: 7.199399948 | F66: 7.52840519 | G66: 8.048999786
A67: Imports- CMI | B67: 1.33099997 | C67: 1.230999947 | D67: 1.524999976 | E67: 1.620000005 | F67: 1.690999985 | G67: 1.465000033
A68: Fuel | B68: 0.6127020121 | C68: 0.6092000008 | D68: 0.5235610008 | E68: 0.4465540051 | F68: 0.5886129737 | G68: 0.5910000205
A70: 0.5093477007
A71: Information from Customs
A72: Food | B72: 0.62560502
A73: A&C | B73: 1.12849531
A74: Fuel | B74: 0.65800526
A75: Other | B75: 4.204987492
A76: Total | B76: 6.617093082
A78: Information from SUT Framework [CP]
A79: Food | B79: 2.206630562 | C79: 2.256332415 | D79: 2.518657744 | E79: 2.479839802 | F79: 2.59316599 | G79: 2.772485187
A80: A&C | B80: 1.33099997 | C80: 1.230999947 | D80: 1.524999976 | E80: 1.620000005 | F80: 1.690999985 | G80: 1.465000033
A81: Fuel | B81: 0.6127020121 | C81: 0.6092000008 | D81: 0.5235610008 | E81: 0.4465540051 | F81: 0.5886129737 | G81: 0.5910000205
A82: Other | B82: =6.52205514907837-B79 -> 4.315424587 | C82: =6.5505199432373-C79 -> 4.294187528 | D82: =7.31209516525269-D79 -> 4.793437421 | E82: =7.19939994812012-E79 -> 4.719560146 | F82: =7.52840518951416-F79 -> 4.9352392 | G82: =8.04899978637695-G79 -> 5.276514599
A83: Total | B83: =SUM(B79:B82) -> 8.465757132 | C83: =SUM(C79:C82) -> 8.390719891 | D83: 9.360656142 | E83: 9.265953958 | F83: 9.808018148 | G83: 10.10499984
B84: =B83-SUM(B66:B68) -> 0 | C84: =C83-SUM(C66:C68) -> 0 | D84: 0 | E84: 0 | F84: 0 | G84: 0
A86: FCE: Household Acquisitions | B86: =SUM(B91:B213) -> 132.2481128 | C86: =SUM(C91:C213) -> 134.7241748 | D86: 143.7877261 | E86: 139.2101609 | F86: 139.9642442 | G86: 153.6743204
A87: Total Exempt | B87: =B86-SUMPRODUCT(B91:B213,$L$91:$L$213) -> 6.884247905 | C87: 6.844074602 | D87: 7.17741157 | E87: 4.18150892 | F87: 3.364501987 | G87: =G86-SUMPRODUCT(G91:G213,$L$91:$L$213) -> 4.6584203
A88: Share | B88: =B87/B86 -> 0.05205554739 | C88: =C87/C86 -> 0.05080064221 | D88: 0.04991671936 | E88: 0.03003738299 | F88: 0.02403829639 | G88: 0.03031358972
B90: FY17 | C90: FY18 | D90: FY19 | E90: FY20 | F90: FY21 | G90: FY22 | L90: Vatable
A91: Pr1_11Aa_Ag: BusPriv_Agriculture | B91: 0 | C91: 0 | D91: 0 | E91: 0 | F91: 0 | G91: 0 | L91: 0.5
A92: Pr1_11Af_Fish: BusPriv_Fishing | B92: 0.2488836699 | C92: 0.2671915699 | D92: 0.2514206104 | E92: 0.2086767141 | F92: 0.2167677583 | G92: 0.1945039221 | L92: 0.5
A93: Pr1_11Af_PPFish: BusPriv_PPFish | B93: 0 | C93: 0 | D93: 0 | E93: 0 | F93: 0 | G93: 0 | L93: 1
A94: Pr1_11BA_Mine: BusPriv_Mining & quarrying | B94: 0 | C94: 0 | D94: 0 | E94: 0 | F94: 0 | G94: 0 | L94: 1
A95: Pr1_11CA_PPFood: BusPriv_PPFood | B95: 0 | C95: 0 | D95: 0 | E95: 0 | F95: 0 | G95: 0 | L95: 1
A96: Pr1_11CC_Manuf: BusPriv_Manufacturing | B96: 0.4882608963 | C96: 0.4933355405 | D96: 0.537828978 | E96: 0.5244436819 | F96: 0.6517367937 | G96: 0.7344740977 | L96: 1
A97: Pr1_11CD_MIFV: BusPriv_MIFV | B97: 0 | C97: 0 | D97: 0 | E97: 0 | F97: 0 | G97: 0 | L97: 1
A98: Pr1_11FA_Constr: BusPriv_Construction | B98: 0 | C98: 0 | D98: 0 | E98: 0 | F98: 0 | G98: 0 | L98: 1
A99: Pr1_11FZ_Constr: BusPriv_PPF_OwnAccConstruction | B99: 0 | C99: 0 | D99: 0 | E99: 0 | F99: 0 | G99: 0 | L99: 1
A100: : BusPriv_Vehicle sale, repair | L100: 1
A101: : BusPriv_Retail of fuel | L101: 1
A102: : BusPriv_Wholesale and retail | L102: 1
A103: : BusPriv_Wholesale of fuel | L103: 1
A104: Pr1_11HA_Transport: BusPriv_Transport | B104: 0.164466568 | C104: 0.18039238 | D104: 0.2420744347 | E104: 0.2783186245 | F104: 0.2339358317 | G104: 0.3086125635 | L104: 1
A105: Pr1_11HB_Taxis: BusPriv_Taxis | B105: 0.7388192648 | C105: 0.7182169762 | D105: 0.8247675791 | E105: 0.7696667902 | F105: 0.890480361 | G105: 0.9627822559 | L105: 1
A106: Pr1_11HC_ForAir: BusPriv_Airline ground serv | B106: 0 | C106: 0 | D106: 0 | E106: 0 | F106: 0 | G106: 0 | L106: 1
A107: Pr1_11HD_Koos: BusPriv_Koos | B107: 0 | C107: 0 | D107: 0 | E107: 0 | F107: 0 | G107: 0 | L107: 1
A108: Pr1_11IA_Hotel: BusPriv_Hotels | B108: 0.3686512791 | C108: 0.2404837153 | D108: 0.3962603539 | E108: 0.3584959881 | F108: 0.7023775642 | G108: 0.6607189327 | L108: 1
A109: Pr1_11IB_Rest: BusPriv_Restaurants | B109: 0.5405293295 | C109: 0.6736794306 | D109: 0.8623875307 | E109: 0.9268841825 | F109: 1.115681708 | G109: 1.174124166 | L109: 1
A110: Pr1_11LA_RealEst: BusPriv_Real estate | B110: 0.6960289478 | C110: 0.6525856853 | D110: 0.6159550548 | E110: 0.5761842728 | F110: 0.600856185 | G110: 0.5995218158 | L110: 1
A111: Pr1_11MA_Prof: BusPriv_Professional | B111: 0.09258086795 | C111: 0.1299933446 | D111: 0.1101817109 | E111: 0.08300455622 | F111: 0.07357981505 | G111: 0.03895392679 | L111: 1
A112: Pr1_11NA_Admin: BusPriv_Administrative | B112: 0.08236922252 | C112: 0.1113326776 | D112: 0.08998045622 | E112: 0.08492105183 | F112: 0.09282271428 | G112: 0.0981234911 | L112: 1
A113: Pr1_11QA_Health: BusPriv_Health | B113: 0.2784196126 | C113: 0.1123139817 | D113: 0.155787608 | E113: 0.07923600137 | F113: 0.07125553101 | G113: 0.04888915926 | L113: 1
A114: Pr1_11RS_ServHH: BusPriv_Other services to HH | B114: 0.240603888 | C114: 0.3050220251 | D114: 0.3173937798 | E114: 0.3446641445 | F114: 0.2680848122 | G114: 0.2891716838 | L114: 1
A115: Pr1_12CB_TCCP: BusSOE_TCCP | B115: 0 | C115: 0 | D115: 0 | E115: 0 | F115: 0 | G115: 0 | L115: 1
A116: Pr1_12DA_MEC(U): BusSOE_MEC(U) | B116: 7.137562312 | C116: 7.55621083 | D116: 7.53745266 | E116: 7.909432026 | F116: 7.542975999 | G116: 7.497435191 | L116: 1
A117: Pr1_12DB_Kajur: BusSOE_Kajur | B117: 4.146277316 | C117: 3.908479441 | D117: 3.562212051 | E117: 3.935614518 | F117: 4.088937923 | G117: 4.553621055 | L117: 1
A118: Pr1_12EA_MWSC: BusSOE_MWSC | B118: 0.5542168278 | C118: 0.4895452875 | D118: 0.5595426555 | E118: 0.4903503775 | F118: 0.525459018 | G118: 0.6064309548 | L118: 1
A119: : BusSOE_MEC(F) | L119: 1
A120: Pr1_12HB_AMI: BusSOE_AMI | B120: 1.368754784 | C120: 1.351419454 | D120: 1.550475993 | E120: 1.61077071 | F120: 1.841395982 | G120: 2.405133191 | L120: 1
A121: Pr1_12HC_MIPA: BusSOE_MIPA | B121: 0 | C121: 0 | D121: 0 | E121: 0 | F121: 0 | G121: 0 | L121: 1
A122: Pr1_12HC_MISC: BusSOE_MISC | B122: 0.3693295057 | C122: 0.3201030779 | D122: 0.2876847072 | E122: 0.3534287982 | F122: 0.3035036132 | G122: 0.4282315318 | L122: 1
A123: Pr1_12HD_PO: BusSOE_PO | B123: 0.09481875677 | C123: 0.09079470101 | D123: 0.0832212064 | E123: 0.1072444482 | F123: 0.1576657596 | G123: 0.2041179738 | L123: 1
A124: Pr1_12HE_MIAA: BusSOE_MIAA | B124: 0 | C124: 0 | D124: 0 | E124: 0 | F124: 0 | G124: 0 | L124: 1
A125: Pr1_12IA_MIR: BusSOE_MIR | B125: 0.8229115233 | C125: 0.7382070173 | D125: 0.9186444462 | E125: 0.9400081152 | F125: 0.9463071961 | G125: 1.092669373 | L125: 1
A126: Pr1_12JB_NTA: BusSOE_NTA | B126: 1.952455853 | C126: 1.977197102 | D126: 1.904116449 | E126: 2.148068754 | F126: 2.314795637 | G126: 2.606689754 | L126: 1
A127: Pr1_12LA_RealEst: BusSOE_Real estate | B127: 0 | C127: 0 | D127: 0 | E127: 0 | F127: 0 | G127: 0 | L127: 1
A128: Pr1_21KA_BankCom: BankCom | B128: 0.4466770547 | C128: 0.5467088337 | D128: 0.539912004 | E128: 0.4992793923 | F128: 0.5465418782 | G128: 0.5848979502 | K128: NVI
A129: Pr1_22KB_BankDev: BankDev | B129: 0.912922396 | C129: 0.8021824003 | D129: 0.9902128367 | E129: 0.9098631041 | F129: 0.6751847368 | G129: 0.7429034344 | K129: NVI
A130: Pr1_23KC_FinIns: FinOth_Insurance agents | B130: 0.2381334102 | C130: 0.2899385734 | D130: 0.2907795473 | E130: 0.2734698336 | F130: 0.2756294768 | G130: 0.3334577133 | K130: NVI
A131: Pr1_23KD_FinAux: FinOth_Financial Auxiliaries | B131: 0.4430687017 | C131: 0.4171335282 | D131: 0.5549627387 | E131: 0.4078388275 | F131: 0.2529789962 | G131: 0.6473157025 | K131: NVI
A132: Pr1_23KE_TCMI: FinOth_TCMI | B132: 0 | C132: 0 | D132: 0 | E132: 0 | F132: 0 | G132: 0 | K132: NVI
A133: Pr1_31FC_Constr: GovNat_Construction | B133: 0 | C133: 0 | D133: 0 | E133: 0 | F133: 0 | G133: 0 | L133: 1
A134: Pr1_31HF_Trans: GovNat_Transport | B134: 0 | C134: 0 | D134: 0 | E134: 0 | F134: 0 | G134: 0 | L134: 1
A135: Pr1_31OA_PubAdmin: GovNat_Public Admin | B135: 0.2061058126 | C135: 0.2832395666 | D135: 0.4137371228 | E135: 0.4946685988 | F135: 0.5404323793 | G135: 0.4447500406 | L135: 1
A136: Pr1_31PA_Ed: GovNat_Education | B136: 0 | C136: 0 | D136: 0 | E136: 0 | F136: 0 | G136: 0 | L136: 1
A137: Pr1_31QA_Health: GovNat_Health | B137: 0 | C137: 0 | D137: 0 | E137: 0 | F137: 0 | G137: 0 | L137: 1
A138: Pr1_32OA_PubAdmin: GovAgen_Public Admin | B138: 0.00527166136 | C138: 0.004271316592 | D138: 0.004169666829 | E138: 0.004504954882 | F138: 0.004099118771 | G138: 0.004821860862 | L138: 1
A139: Pr1_32EC_MAWC: GovAgen_MAWC | B139: 0 | C139: 0 | D139: 0 | E139: 0 | F139: 0 | G139: 0 | L139: 1
A140: Pr1_32MB_Prof: GovAgen_Professional | B140: 0 | C140: 0 | D140: 0 | E140: 0 | F140: 0 | G140: 0 | L140: 1
A141: Pr1_32OF_MIMRA: GovAgen_MIMRA | B141: 0 | C141: 0 | D141: 0 | E141: 0 | F141: 0 | G141: 0 | L141: 1
A142: Pr1_32PA_CMI: GovAgen_CMI | B142: 4.874848843 | C142: 5.331486225 | D142: 5.674497604 | E142: 5.525814056 | F142: 5.659751415 | G142: 6.595784187 | L142: 1
A143: Pr1_32PA_Ed: GovAgen_Education | B143: 0 | C143: 0 | D143: 0 | E143: 0 | F143: 0 | G143: 0 | L143: 1
A144: Pr1_32QA_HCRF: GovAgen_HCRF | B144: 0.380480051 | C144: 0.37976408 | D144: 0.4318630695 | E144: 0.4186267853 | F144: 0.4447350502 | G144: 0.4575958252 | L144: 1
A145: Pr1_32QA_Health: GovAgen_Health | B145: 0 | C145: 0 | D145: 0 | E145: 0 | F145: 0 | G145: 0 | L145: 1
A146: Pr1_32QA_HF: GovAgen_HF | B146: 0.6729111671 | C146: 0.6695718765 | D146: 0.6522068977 | E146: 0.63022995 | F146: 0.6446490288 | G146: 0.6632566452 | L146: 1
A147: Pr1_33OA_LocGov: GovLoc_OthLGov | B147: 0 | C147: 0 | D147: 0 | E147: 0 | F147: 0 | G147: 0 | L147: 1
A148: Pr1_33OA_KalGov: GovLoc_KalGov | B148: 0 | C148: 0 | D148: 0 | E148: 0 | F148: 0 | G148: 0 | L148: 1
A149: Pr1_33OA_MalGov: GovLoc_MalGov | B149: 0 | C149: 0 | D149: 0 | E149: 0 | F149: 0 | G149: 0 | L149: 1
A150: Pr1_34OK_MISSA: GovSSF_MISSA | B150: 0 | C150: 0 | D150: 0 | E150: 0 | F150: 0 | G150: 0 | L150: 1
A151: Pr1_41PA_Ed: Npish_Education | B151: 1.55246371 | C151: 1.444787592 | D151: 1.451262087 | E151: 1.521729946 | F151: 1.458878338 | G151: 1.566563785 | L151: 1
A152: Pr1_41PA_USP: Npish_USP | B152: 2.620255337 | C152: 2.654728863 | D152: 2.832317664 | E152: 2.674798745 | F152: 2.467850049 | G152: 2.332381524 | L152: 1
A153: Pr1_41QA_Health: Npish_Health | B153: 0 | C153: 0 | D153: 0 | E153: 0 | F153: 0 | G153: 0 | L153: 1
A154: Pr1_41SB_ServHH: Npish_Other services to HH | B154: 0 | C154: 0 | D154: 0 | E154: 0 | F154: 0 | G154: 0 | K154: NVI
A155: Pr1_51Aa_Csh_Copra: HHcash_Csh_Copra | B155: 0 | C155: 0 | D155: 0 | E155: 0 | F155: 0 | G155: 0 | L155: 1
A156: Pr1_51Af_Csh_Fish: HHcash_Csh_Fish | B156: 2.887760639 | C156: 2.929766655 | D156: 2.943907499 | E156: 2.486410141 | F156: 2.417907953 | G156: 2.718879223 | L156: 1
A157: Pr1_51CE_Csh_Man: HHcash_Csh_Man | B157: 0.9043486303 | C157: 0.8350187011 | D157: 0.8054342933 | E157: 0.965983183 | F157: 1.021686584 | G157: 0.9609381266 | L157: 1
A158: Pr1_52Aa_Sub_Ag: HHsubs_Sub_Ag | B158: 0 | C158: 0 | D158: 0 | E158: 0 | F158: 0 | G158: 0 | L158: 1
A159: Pr1_52Af_Sub_Fish: HHsubs_Sub_Fish | B159: 0 | C159: 0 | D159: 0 | E159: 0 | F159: 0 | G159: 0 | L159: 1
A160: Pr1_52FF_Sub_Cnst: HHsubs_Sub_Cnst | B160: 0 | C160: 0 | D160: 0 | E160: 0 | F160: 0 | G160: 0 | L160: 1
A161: Pr1_53LB_OwnDwell: HHdwell_OwnDwell | B161: 0 | C161: 0 | D161: 0 | E161: 0 | F161: 0 | G161: 0 | L161: 1
L162: 1
A163: Pr1_FISIM: FISIM | B163: 8.555717397 | C163: 9.976019539 | D163: 10.04332753 | E163: 9.214745286 | F163: 9.139954267 | G163: 9.54601645 | L163: 1
L164: 1
A165: Pr1_ImGd01: Imports, Goods, Food | B165: 63.5796612 | C165: 65.37083235 | D165: 72.0429016 | E165: 73.60598678 | F165: 78.32087694 | G165: 82.19399704 | L165: 1
A166: Pr1_ImGd02: Imports, Goods, Alcohol | B166: 3.132077229 | C166: -0.04934870494 | D166: 0.02911981553 | E166: 0.1916937246 | F166: 0.2460893618 | G166: 0.2168143687 | L166: 1
A167: Pr1_ImGd03: Imports, Goods, Cigarettes, and other non-alcohol stimulants | B167: 1.026962519 | C167: 2.72559166 | D167: 2.929788828 | E167: 3.269038677 | F167: 3.418541431 | G167: 3.416520834 | L167: 1
A168: Pr1_ImGd04: Imports, Goods, Medical supplies and pharmaceuticals | B168: 0.134073927 | C168: 0.1340985914 | D168: 0.1497882508 | E168: 0.1510336541 | F168: 0.1566397809 | G168: 0.1647613669 | L168: 1
A169: Pr1_ImGd05: Imports, Goods, Textbooks | B169: 0 | C169: 0 | D169: 0 | E169: 0 | F169: 0 | G169: 0 | L169: 1
A170: Pr1_ImGd06: Imports, Goods, Industrial supplies (construction) | B170: 0 | C170: 0 | D170: 0 | E170: 0 | F170: 0 | G170: 0 | L170: 1
A171: Pr1_ImGd07: Imports, Goods, Industrial supplies (non-food), other | B171: 0.09027497223 | C171: 0.09022662076 | D171: 0.09979734923 | E171: 0.101392301 | F171: 0.1071047921 | G171: 0.1125841297 | L171: 1
A172: Pr1_ImGd09: Imports, Goods, Fuels gasoline | B172: 1.257967708 | C172: 1.402759567 | D172: 1.264118729 | E172: 1.798094687 | F172: 1.288738233 | G172: 2.067385486 | L172: 1
A173: Pr1_ImGd10: Imports, Goods, Fuels -deisel | B173: 0 | C173: 0 | D173: 0 | E173: 0 | F173: 0 | G173: 0 | L173: 1
A174: Pr1_ImGd11: Imports, Goods, Fuels - aviation gas lubricants | B174: 0.05300769885 | C174: 0.07019786939 | D174: 0.05440654836 | E174: 0.02669205705 | F174: 0.04064321579 | G174: 0.06294932459 | L174: 1
A175: Pr1_ImGd12: Imports, Goods, Fuels - lubricants | B175: 0.03176572282 | C175: 0.03495438364 | D175: 0.03646084242 | E175: 0.0337975256 | F175: 0.04028667263 | G175: 0.04122692016 | L175: 1
A176: Pr1_ImGd13: Imports, Goods, Machinery and other capital equipment | B176: -0.6425319291 | C176: -0.6420292473 | D176: -0.7145088302 | E176: -0.7207744229 | F176: -0.7518749349 | G176: -0.7916067718 | L176: 1
A177: Pr1_ImGd14: Imports, Goods, Parts and accessories | B177: 0.04033051818 | C177: 0.05096210187 | D177: 0.0518117005 | E177: 0.04371029697 | F177: 0.0469385381 | G177: 0.05592326516 | L177: 1
A178: Pr1_ImGd15: Imports, Goods, Passenger motor vehicles | B178: 3.110495405 | C178: 3.108161954 | D178: 3.266862332 | E178: 3.292223012 | F178: 3.410342066 | G178: 3.712357955 | L178: 1
A179: Pr1_ImGd16: Imports, Goods, Other transport equipment, for industry | B179: 0 | C179: 0 | D179: 0 | E179: 0 | F179: 0 | G179: 0 | L179: 1
A180: Pr1_ImGd17: Imports, Goods, Other transport equipment, non-industrial | B180: 0 | C180: 0 | D180: 0 | E180: 0 | F180: 0 | G180: 0 | L180: 1
A181: Pr1_ImGd18: Imports, Goods, Parts and accessories, non-industrial | B181: 0 | C181: 0 | D181: 0 | E181: 0 | F181: 0 | G181: 0 | L181: 1
A182: Pr1_ImGd19: Imports, Goods, Consumer goods not elsewhere specified | B182: 2.82488201 | C182: 2.823553323 | D182: 3.11042672 | E182: 3.168972625 | F182: 3.366242743 | G182: 3.536181133 | L182: 1
L183: 1
A184: Pr1_ImGd20: Imports, Goods, Fuel imports, MEC | B184: 0 | C184: 0 | D184: 0 | E184: 0 | F184: 0 | G184: 0 | L184: 1
A185: Pr1_ImGd21: Imports, Goods, AMI, fuel and landing services | B185: 0 | C185: 0 | D185: 0 | E185: 0 | F185: 0 | G185: 0 | L185: 1
A186: Pr1_ImGd22: Imports, Goods, PPFish, goods at sea | B186: 0 | C186: 0 | D186: 0 | E186: 0 | F186: 0 | G186: 0 | L186: 1
A187: Pr1_ImGd23: Imports, Goods, Humanitarian assistance | B187: 0.5688916445 | C187: 0.5724497437 | D187: 0.571959734 | E187: 0.569016695 | F187: 0.5789929032 | G187: 0.5936769843 | L187: 1
A188: Pr1_ImGd24: Imports, Goods, Vessels and aircraft | B188: 0 | C188: 0 | D188: 0 | E188: 0 | F188: 0 | G188: 0 | L188: 1
A189: Pr1_ImGd25: Imports, Goods, Fish for PPFood | B189: 0 | C189: 0 | D189: 0 | E189: 0 | F189: 0 | G189: 0 | L189: 1
A190: : | L190: 1
A191: Pr1_ImSv01: Imports, Services, Maintenance and repair services: AMI | B191: 0 | C191: 0 | D191: 0 | E191: 0 | F191: 0 | G191: 0 | L191: 1
A192: Pr1_ImSv02: Imports, Services, Maintenance and repair services: PPFish | B192: 0 | C192: 0 | D192: 0 | E192: 0 | F192: 0 | G192: 0 | L192: 1
A193: Pr1_ImSv03: Imports, Services, Foreign Airlines | B193: 4.262586797 | C193: 4.115579526 | D193: 4.136281298 | E193: 1.474603347 | F193: 0.9877147943 | G193: 1.641475212 | K193: NVI
A194: : Imports, Services, Freight on Imported goods | L194: 1
A195: Pr1_ImSv05: Imports, Services, Business travel | B195: 0 | C195: 0 | D195: 0 | E195: 0 | F195: 0 | G195: 0 | L195: 1
A196: Pr1_ImSv06: Imports, Services, Personal travel | B196: 7.234344482 | C196: 7.496127129 | D196: 7.782979488 | E196: 3.93518734 | F196: 0 | G196: 3.93518734 | L196: 1
A197: Pr1_ImSv07: Imports, Services, Off Island Travel | B197: 0 | C197: 0 | D197: 0 | E197: 0 | F197: 0 | G197: 0 | L197: 1
A198: Pr1_ImSv08: Imports, Services, Off Island medical | B198: 0 | C198: 0 | D198: 0 | E198: 0 | F198: 0 | G198: 0 | L198: 1
A199: Pr1_ImSv09: Imports, Services, Construction | B199: 0 | C199: 0 | D199: 0 | E199: 0 | F199: 0 | G199: 0 | L199: 1
A200: : Imports, Services, Insurance service charge on imported goods | L200: 1
A201: Pr1_ImSv11: Imports, Services, Financial services | B201: 0.4564177104 | C201: 0.5389359554 | D201: 0.5395528397 | E201: 0.5121160584 | F201: 0.518068226 | G201: 0.6111183258 | K201: NVI
A202: Pr1_ImSv12: Imports, Services, Telecommunications, computer & information services | B202: 0 | C202: 0 | D202: 0 | E202: 0 | F202: 0 | G202: 0 | L202: 1
A203: Pr1_ImSv13: Imports, Services, International subscriptions | B203: 0 | C203: 0 | D203: 0 | E203: 0 | F203: 0 | G203: 0 | L203: 1
A204: Pr1_ImSv14: Imports, Services, Government: Embassy operations | B204: 0 | C204: 0 | D204: 0 | E204: 0 | F204: 0 | G204: 0 | L204: 1
A205: Pr1_ImSv15: Imports, Services, Government: Construction related management, architecture, engineering etc | B205: 0 | C205: 0 | D205: 0 | E205: 0 | F205: 0 | G205: 0 | L205: 1
A206: Pr1_ImSv16: Imports, Services, Government: Business services and activities | B206: 0 | C206: 0 | D206: 0 | E206: 0 | F206: 0 | G206: 0 | L206: 1
A207: Pr1_ImSv17: Imports, Services, Pan Pacific Fish, service imports | B207: 0 | C207: 0 | D207: 0 | E207: 0 | F207: 0 | G207: 0 | L207: 1
A208: Pr1_ImSv18: Imports, Services, Pan Pacific Foods, service imports | B208: 0 | C208: 0 | D208: 0 | E208: 0 | F208: 0 | G208: 0 | L208: 1
A209: Pr1_ImSv19: Imports, Services, Air Marshall Islands aircraft lease | B209: 0 | C209: 0 | D209: 0 | E209: 0 | F209: 0 | G209: 0 | L209: 1
A210: Pr1_ImSv20: Imports, Services, NTA circuit lease | B210: 0 | C210: 0 | D210: 0 | E210: 0 | F210: 0 | G210: 0 | L210: 1
A211: Pr1_ImSv21: Imports, Services, Construction related | B211: 0 | C211: 0 | D211: 0 | E211: 0 | F211: 0 | G211: 0 | L211: 1
A212: Pr1_ImSv22: Imports, Services, Personal, cultural and recreational services | B212: 0 | C212: 0 | D212: 0 | E212: 0 | F212: 0 | G212: 0 | L212: 1
A213: Pr1_ImSv23: Imports, Services, Government goods and services n.e.i., technical assistance | B213: 0 | C213: 0 | D213: 0 | E213: 0 | F213: 0 | G213: 0 | L213: 1
A216: Fuel Use | B216: Notional
... 24 more rows
